Workbook

Sheet Overview
C8: Version: | D8: GLA_1.1 | F8: Adjusted for UK Government decision on FiTs from 2016.
C9: Date: | D9: 2015-12-18
C10: Issued to: | D10: GLA
C14: This finance model is the property of Energiesprong UK.
C15: © Energiesprong UK ltd 2015
C17: This Energiesprong finance model provides an approach to assess the investment capacity of housing providers into net zero energy refurbishments.
C18: Investment decisions can be informed by this finance model but are entirely at the discreation and responsibility of individual housing providers.
C19: The methodology of this finance model has been tested independently by Frontier Economics.
C20: The finance model has also been tested and informed by the Energiesprong UK Finance Working Group.
C24: The default input is based on sector / industry averages. Users are able to enter their own data as indicated on the 'input' spreadsheet.
C25: Please use 'Input' to enter your user-specific data - and 'Input2' where you have property-specific annual data.
C26: Where you are not certain about user-specific data or you do not have specific date the default (sector / industry average) will be used.
C28: A more detailed user guidance is provided with this model.

Sheet Input
F2: Data input fields currently used and required for finance model
F3: Data input fields current NOT used but provided as placeholders for future iterations (depending on need).
F4: Automated calculation fields.
F5: Comments / short explanation / source of default data.
B8: GENERAL | D8: Default | E8: User
B9: Select archetype (ensure the following checkbox is unchecked for your selection to run) | E9: GLA1_SD_3049_Gas | F9: =IF(Results!G4=FALSE,Input!E9,Results!F11) -> GLA1_SD_3049_Gas | H9: This user option can also be changed in the 'Results' tab to allow for easy comparison.
B10: Dwelling type | F10: =INDEX(Parameters!H9:H33,MATCH(F9,Parameters!B9:B33,0)) -> House | H10: GLA London Archetypes derived from DECC National Energy Efficiency Database based upon London region sample with 5 years actual gas and electric consumption (574,551 properties weighted to represent the 3.2m stock).
B11: Dwelling form | F11: =INDEX(Parameters!I9:I33,MATCH(F9,Parameters!B9:B33,0)) -> Semi-detached house
B12: Age band | F12: =INDEX(Parameters!G9:G33,MATCH(F9,Parameters!B9:B33,0)) -> 1930-1949
B13: Dwelling total floor area | C13: m2/unit | F13: =INDEX(Parameters!J9:J33,MATCH(F9,Parameters!B9:B33,0)) -> 121
B14: Number of habitable rooms | F14: =INDEX(Parameters!L9:L33,MATCH(F9,Parameters!B9:B33,0)) -> 0
B15: EPC label | C15: A++/G | F15: =INDEX(Parameters!O9:O33,MATCH(F9,Parameters!B9:B33,0)) -> E
B16: SAP rating | F16: =INDEX(Parameters!N9:N33,MATCH(F9,Parameters!B9:B33,0)) -> 0
B17: Number of units | D17: 1 | F17: =IF(E17="",D17,E17) -> 1 | H17: This multiplier is currently not used by the finance model but will be a factor in determining the size of schemes once the financial envelope for a single unit has been calculated
B18: Building lifetime before renovation | C18: years | D18: 30 | F18: =IF(E18="",D18,E18) -> 30
B19: Valuation | C19: £/unit | F19: =IF(E19=0,D19,E19) -> 0
B20: Book value at lifetime end (before renovation) | C20: £ | D20: 0 | F20: 0
B21: Building lifetime after renovation | C21: years | D21: 30 | E21: =D21+Results!F14 -> 30 | F21: 30 | H21: The default is not to differentiate between the building lifetime post Energiesprong compared with the BaU counterfactual case.
B22: Book value at lifetime end (after renovation) | C22: £ | D22: 0 | F22: 0
B24: RENT | D24: =D8 -> Default | E24: =E8 -> User
B25: Select a London borough (for rent levels) | E25: Barking and Dagenham | F25: =IF(E25=0,D25,E25) -> Barking and Dagenham
B26: Select whether you want to calculate for LA or RP | E26: =Results!F10 -> LA | F26: =IF(Results!G4=FALSE,Input!E26,Results!F10) -> LA | H26: This user option can also be changed in the 'Results' tab to allow for easy comparison.
B27: Current rent | C27: £/[unit-week] | D27: 85 | E27: =IF(E26="LA",INDEX(Parameters!D41:D73,MATCH(Input!E25,Parameters!C41:C73,0)),INDEX(Parameters!E41:E73,MATCH(Input!E25,Parameters!C41:C73,0))) -> 90.39 | F27: 90.39 | H27: Default is national average for RPs (HCA Global Accounts 2014)
B29: CHARGES | D29: =D24 -> Default | E29: =E24 -> User
B30: Service charges before renovation | C30: £/[unit_week] | D30: 8 | F30: =IF(E30=0,D30,E30) -> 8
B31: Service charges after renovation | C31: £/[unit_week] | D31: 8 | F31: 8 | H31: Default assumption is that there is no change in the service charge.
B33: PROVIDER COST | D33: =D29 -> Default | E33: =E29 -> User
B34: Do you have detailed annual cost for the property that you would like to assess? | C34: Yes/No | D34: No | F34: =IF(E34=0,D34,E34) -> No | H34: If you have detailed annual cost please use table "Input2".
B35: Management cost before renovation | C35: £/[unit_year] | D35: 990 | F35: =IF(E35=0,D35,E35) -> 990 | H35: National average (HCA Global Accounts 2014)
B36: Management cost after renovation | C36: £/[unit_year] | D36: =D35*0.9 -> 891 | F36: 891 | H36: The default assumption is a 10% reduction in management cost per unit post Energiesprong.
B37: Planned & routine maintenance before renovation | C37: £/[unit_year] | D37: 1015 | F37: 1015 | H37: National average (HCA Global Accounts 2014)
B38: Planned & routine maintenance after renovation (total) | C38: £/[unit_year] | D38: =D37*0.75 -> 761.25 | E38: =SUM(E39:E40) -> 0 | F38: 761.25 | H38: The default assumption is a 25% reduction in planned & routine maintenance cost per unit post Energiesprong.
B39: Planned & routine maintenance after renovation (for Energiesprong solution) | C39: £/[unit_year] | D39: =D38*0.75 -> 570.9375 | F39: 570.9375 | H39: The default assumption is that 75% of the planned & routine maintenance cost relate to the Energiesprong maintenance contract. Not index-linked.
B40: Planned & routine maintenance after renovation (for non-Energiesprong related works) | C40: £/[unit_year] | D40: =D38*0.25 -> 190.3125 | F40: 190.3125 | H40: The default assumption is that 25% of the planned & routine maintenance cost relate to non-Energiesprong maintenance contract(s). CPI-linked and HCA forecast reduction for BaU.
B41: Major repairs cost before renovation (total) | C41: £/[unit_year] | D41: 913 | F41: 913 | H41: National average (HCA Global Accounts 2014)
B42: Major repairs cost before renovation (expensed) | C42: £/[unit_year] | D42: 218 | F42: 218 | H42: National average (HCA Global Accounts 2014)
B43: Major repairs cost before renovation (capitalised) | C43: £/[unit_year] | D43: 695 | F43: 695 | H43: National average (HCA Global Accounts 2014)
B44: Major repairs cost after renovation (total) | C44: £/[unit_year] | D44: =D41*0.5 -> 456.5 | F44: 456.5 | H44: The default assumption is a 50% reduction in major repair costs per unit post Energiesprong. CPI-linked and HCA forecast reduction for BaU.
B45: Major repairs cost after renovation (expensed) | C45: £/[unit_year]
B46: Major repairs cost after renovation (capitalised) | C46: £/[unit_year]
B50: UTILITIES COST | D50: =D33 -> Default | E50: =E33 -> User
B51: Energy supply on the basis of | C51: Pre-paid/Consumption | D51: Consumption | F51: =IF(E51=0,D51,E51) -> Consumption
B52: Total energy consumption | C52: kWh/year | D52: =INDEX(Parameters!P9:P33,MATCH(F9,Parameters!B9:B33,0)) -> 29008.63414 | F52: 29008.63414 | H52: Default is based upon detailed energy modelling behind selected archetype. If actual is known, user can enter an alternative figure.
B53: Average energy cost | C53: £/year | D53: =INDEX(Parameters!T9:T33,MATCH(F9,Parameters!B9:B33,0)) -> 1659.7344 | F53: 1659.7344 | H53: Default is based upon SAP 2012 fuel tariffs applied to modelled energy consumption for each archetype. If actual is known, user can enter an alternative figure.
B54: Electricity consumption before renovation | C54: kWh/year | D54: =INDEX(Parameters!AM9:AM33,MATCH(F9,Parameters!B9:B33,0))-INDEX(Parameters!AR9:AR33,MATCH(F9,Parameters!B9:B33,0)) -> 4904.571899 | F54: =IF(E54=0,D54,E54) -> 4904.571899 | H54: Default is based upon detailed energy modelling behind selected archetype. If actual is known, user can enter an alternative figure.
B55: Gas consumption before renovation | C55: kWh/year | D55: =INDEX(Parameters!AI9:AI33,MATCH(F9,Parameters!B9:B33,0)) -> 24104.06224 | F55: =IF(E55=0,D55,E55) -> 24104.06224
B56: Electricity spend before renovation | C56: £/year | D56: =INDEX(Parameters!V9:V33,MATCH(F9,Parameters!B9:B33,0)) -> 700.9130335 | F56: =IF(E56=0,D56,E56) -> 700.9130335
B57: Gas spend before renovation | C57: £/year | D57: =INDEX(Parameters!U9:U33,MATCH(F9,Parameters!B9:B33,0)) -> 958.821366 | F57: =IF(E57=0,D57,E57) -> 958.821366 | H57: Default is based upon SAP 2012 fuel tariffs applied to modelled energy consumption for each archetype. If actual is known, user can enter an alternative figure.
B58: Electricity consumption after renovation for appliances and lighting | C58: kWh/year | D58: ='Energy assumptions'!D21 -> 2500 | F58: =IF(E58=0,D58,E58) -> 2500 | H58: This is the annual allowance included in the 'energy plan'. Modelling of specific upgrade packages and 'optimal' archetype specific interventions forms part next phase.
B59: Electricity consumption after renovation for space heating | C59: kWh/year | D59: ='Energy assumptions'!F19*Input!F13 -> 1452 | F59: 1452
B60: Electricity consumption after renovation for hot water | C60: kWh/year | D60: ='Energy assumptions'!D20 -> 800 | F60: 800
B61: Total electicity consumption after renovation | C61: kWh/year | D61: =SUM(D58:D60) -> 4752 | F61: 4752
B62: Grid exchange balance (percentage of auto-consumption) | C62: percentage | D62: 0.78 | F62: 0.78 | H62: This percentage represents the exchange with the grid post refurbishment, e.g. 22% consumed direct (self-consumption of PV generate electric), 78% exchanged with grid.
B63: Post refurbishment electricity cost | C63: pence/kWh | D63: 13.19 | F63: 13.19 | H63: Unit cost for electricity post refurbishment. CPI linked. Inclusion of a multi-tariff to be added. Default currently reflects SAP 2012 Table 12.
B64: Post refurbishment electricity standing charge | C64: £/year | D64: 54 | F64: 54 | H64: Annual standing charge for electricity post refurbishment. CPI linked. Default currently reflects SAP 2012 Table 12.
B65: Water supplied on the basis of | C65: Metered/Unmetered | D65: Metered
B66: Water and sewage charges | C66: £/year | D66: 393 | F66: 393 | H66: http://www.uswitch.com/water/price-of-water/
B69: ENERGIESPRONG ENERGY GENERATION | D69: =D50 -> Default | E69: =E50 -> User
B70: FiTs
B71: Solar PV (generation tariff) - higher rate; EPC D or above; <4 kW (commissioned 1 Oct - 31 Dec 2015) | C71: pence/kWh | D71: Q1 2016 | E71: Q1 2016 | F71: =IF(E71=0,D71,E71) -> Q1 2016 | H71: https://www.ofgem.gov.uk/sites/default/files/docs/2015/07/fit_payment_rate_table_for_publication_1_october_2015_pv_tariffs.pdf
B72: Solar PV (generation tariff) - higher rate; EPC D or above; >4-10 kW (commissioned 1 Oct - 31 Dec 2015) | C72: pence/kWh | D72: ='Energy assumptions'!F9 -> 4.39 | E72: =INDEX('Energy assumptions'!F9:R9,MATCH(E71,'Energy assumptions'!F8:R8,0)) -> 4.39 | F72: 4.39
B73: Solar PV (export tariff) - (commissioned 1 Oct - 31 Dec 2015) | C73: pence/kWh | D73: 4.85 | F73: 4.85 | H73: Index-linked to RPI
B74: Size of solar PV installed by energiesprong | C74: kW | D74: 5 | E74: =Results!F9 -> 0 | F74: =IF(E74=0,D74,E74) -> 5 | H74: This user option can be changed in the 'Results' tab to allow for easy comparison.
B75: Average output by installed solar PV | C75: kW/year | D75: =IF(D74='Energy assumptions'!$B$9,'Energy assumptions'!$C$9,IF(D74='Energy assumptions'!$B$10,'Energy assumptions'!$C$10,IF(D74='Energy assumptions'!$B$11,'Energy assumptions'!$C$11,IF(D74='Energy assumptions'!$B$12,'Energy assumptions'!$C$12,IF(D74='Energy assumptions'!$B$13,'Energy assumptions'!$C$13,IF(D74='Energy assumptions'!$B$14,'Energy assumptions'!C14,IF(D74='Energy assumptions'!$B$15,'Energy assumptions'!$C$15,'Energy assumptions'!$C$16))))))) -> 4250 | E75: =IF(E74=0,0,IF(E74='Energy assumptions'!$B$9,'Energy assumptions'!$C$9,IF(E74='Energy assumptions'!$B$10,'Energy assumptions'!$C$10,IF(E74='Energy assumptions'!$B$11,'Energy assumptions'!$C$11,IF(E74='Energy assumptions'!$B$12,'Energy assumptions'!$C$12,IF(E74='Energy assumptions'!$B$13,'Energy assumptions'!$C$13,IF(E74='Energy assumptions'!$B$14,'Energy assumptions'!$C$14,IF(E74='Energy assumptions'!$B$15,'Energy assumptions'!$C$15,'Energy assumptions'!$C$16)))))))) -> 0 | F75: =IF(E75=0,D75,E75) -> 4250 | H75: Currently a maximum of 8kW is supported by the model (systems with more than 8kW are calculated using the 8kW output).
B76: Applicable generation tariff | C76: pence/kWh | D76: =F72 -> 4.39 | E76: =D76 -> 4.39 | F76: =IF(E76=0,D76,E76) -> 4.39
B77: Assumed export element of the solar PV system | C77: per cent of annual | D77: 0.5 | F77: 0.5 | H77: In the absence of smart meters (interim measure) - Government set percentage for export of energy from solar PV.
B78: Solar PV export element | C78: kW/year | D78: =D77*D75 -> 2125 | F78: =F75*F77 -> 2125
B79: Solar PV effectiveness (yr 1) | C79: per cent | D79: 0.995 | F79: 0.995
B80: Annual decline in solar PV effectiveness | C80: per cent | D80: -0.005 | F80: -0.005
B81: Duration of solar PV FiT | C81: years | D81: 20 | F81: =IF(E81=0,D81,E81) -> 20
B82: Domestic RHI | H82: The current model does not factor in any income from RHI (due to policy uncertainty and relative short timeframe for RHI payments).
B83: Payment term for RHI | C83: years | D83: 7 | F83: =IF(E83=0,D83,E83) -> 7 | H83: https://www.ofgem.gov.uk/environmental-programmes/domestic-renewable-heat-incentive-domestic-rhi/about-domestic-rhi/tariffs-and-payments-domestic-renewable-heat-incentive
B84: Air source heat pump | C84: pence/kWh | D84: 7.42 | F84: =IF(E84=0,D84,E84) -> 7.42 | H84: For applications submitted 01/07/15 - 30/09/15
B85: Ground source heat pump | C85: pence/kWh | D85: 19.1 | F85: 19.1 | H85: For applications submitted 01/07/15 - 30/09/15
B86: Solar thermal | C86: pence/kWh | D86: 19.51 | F86: 19.51 | H86: For applications submitted 01/07/15 - 30/09/15
B87: Annual running cost of ASHP | C87: £/year
B88: Annual running cost of GSHP | C88: £/year
B89: Annual running cost of solar thermal | C89: £/year
B91: ENERGY PLAN
B92: Monthly fixed price energy plan | C92: £/month | D92: 79.5 | F92: 80 | H92: The default monthly energy plan is set to £79.50 which 75% of the average monthly spend on household energy in the UK. Source: ONS Household Energy Spending in the UK, 2002-2012. Published 3 March 2014
B93: Link energy plan to CPI (Yes/No) | C93: Yes/No | D93: Yes | E93: =Results!F7 -> Yes | F93: =IF(E93=0,D93,E93) -> Yes | H93: This user option can be changed in the 'Results' tab to allow for easy comparison.
B95: FINANCING OPTIONS
B96: Discount rate for NPV calculation | C96: % | D96: 0.035 | F96: =IF(E96=0,D96,E96) -> 0.035
B97: Cost of borrowing | C97: % interest | D97: =IF(E26="LA",Parameters!D77,Parameters!E77) -> 0.028 | F97: 0.028 | H97: Cost of borrowing is adjusted for LAs / RPs taken from selection in field E26.
B98: Grant finance | C98: Percentage of total | D98: 0 | E98: =Results!F13 -> 0 | F98: 0
B99: Housing providers own investment (non debt finance) | C99: Percentage of total | D99: 0 | F99: 0 | H99: The NPV discount rate for own investment is applied where housing provider's own investment is used in the financing mix.
B100: Debt finance | C100: Percentage of total | D100: 1 | E100: =D100-E98 -> 1 | F100: 1 | G100: =IF(F98+F99+F100>1,"ERROR",IF(F98+F99+F100<1,"ERROR","")) ->  | H100: (total balance of finance needs to be 100%)
B101: Loan period | C101: Years | D101: 30 | F101: =IF(E101=0,D101,E101) -> 30
B103: OPTIONS FOR CALCULATING RESULTS
B104: Include rental income in NPV calculation for Energiesprong | C104: Yes/No | D104: No | E104: =Results!F12 -> No | F104: =IF(E104=0,D104,E104) -> No | H104: This user option can be changed in the 'Results' tab to allow for easy comparison.
B105: What percentage of rental income should be used for Energiesprong refinancing? | C105: Percentage | D105: 0.1 | F105: =IF(E105=0,D105,E105) -> 0.1 | H105: User option to include a percentage of rental income for Energiesprong refinancing (as would be the case for repairs, maintenance and major works).
B106: Include Energy Plan | C106: Yes/No | D106: Yes | E106: =Results!F6 -> Yes | F106: =IF(E106=0,D106,E106) -> Yes | H106: This user option can be changed in the 'Results' tab to allow for easy comparison.
B107: Include FiT | C107: Yes/No | D107: Yes | E107: =Results!F8 -> Yes | F107: Yes | H107: This user option can be changed in the 'Results' tab to allow for easy comparison.

Sheet Input2
A6: Housing provider detailed input | E6: 1 | F6: =E6+1 -> 2 | G6: =F6+1 -> 3 | H6: 4 | I6: 5 | J6: 6 | K6: 7 | L6: 8 | M6: 9 | N6: 10 | O6: 11 | P6: 12 | Q6: 13 | R6: 14 | S6: 15 | T6: 16 | U6: 17 | V6: 18 | W6: 19 | X6: 20 | Y6: 21 | Z6: 22 | AA6: 23 | AB6: 24 | AC6: 25 | AD6: 26 | AE6: 27 | AF6: 28 | AG6: 29 | AH6: 30 | AI6: 31 | AJ6: 32 | AK6: 33 | AL6: 34 | AM6: 35 | AN6: 36 | AO6: 37 | AP6: 38 | AQ6: 39 | AR6: 40 | AS6: 41 | AT6: 42 | AU6: =AT6+1 -> 43 | AV6: 44 | AW6: =AV6+1 -> 45 | AX6: 46 | AY6: 47 | AZ6: =AY6+1 -> 48 | BA6: 49 | BB6: 50
B8: Income
C9: Rental income (£) | D9: =SUM(E9:BB9) -> 0 | E9: 0 | F9: 0 | G9: 0 | H9: 0 | I9: 0 | J9: 0 | K9: 0 | L9: 0 | M9: 0 | N9: 0 | O9: 0 | P9: 0 | Q9: 0 | R9: 0 | S9: 0 | T9: 0 | U9: 0 | V9: 0 | W9: 0 | X9: 0 | Y9: 0 | Z9: 0 | AA9: 0 | AB9: 0 | AC9: 0 | AD9: 0 | AE9: 0 | AF9: 0 | AG9: 0 | AH9: 0 | AI9: 0 | AJ9: 0 | AK9: 0 | AL9: 0 | AM9: 0 | AN9: 0 | AO9: 0 | AP9: 0 | AQ9: 0 | AR9: 0 | AS9: 0 | AT9: 0 | AU9: 0 | AV9: 0 | AW9: 0 | AX9: 0 | AY9: 0 | AZ9: 0 | BA9: 0 | BB9: 0
C10: Bad debt (£) | D10: =SUM(E10:BB10) -> 0 | E10: 0 | F10: 0 | G10: 0 | H10: 0 | I10: 0 | J10: 0 | K10: 0 | L10: 0 | M10: 0 | N10: 0 | O10: 0 | P10: 0 | Q10: 0 | R10: 0 | S10: 0 | T10: 0 | U10: 0 | V10: 0 | W10: 0 | X10: 0 | Y10: 0 | Z10: 0 | AA10: 0 | AB10: 0 | AC10: 0 | AD10: 0 | AE10: 0 | AF10: 0 | AG10: 0 | AH10: 0 | AI10: 0 | AJ10: 0 | AK10: 0 | AL10: 0 | AM10: 0 | AN10: 0 | AO10: 0 | AP10: 0 | AQ10: 0 | AR10: 0 | AS10: 0 | AT10: 0 | AU10: 0 | AV10: 0 | AW10: 0 | AX10: 0 | AY10: 0 | AZ10: 0 | BA10: 0 | BB10: 0
C11: Service charge (£) | D11: =SUM(E11:BB11) -> 0 | E11: 0 | F11: 0 | G11: 0 | H11: 0 | I11: 0 | J11: 0 | K11: 0 | L11: 0 | M11: 0 | N11: 0 | O11: 0 | P11: 0 | Q11: 0 | R11: 0 | S11: 0 | T11: 0 | U11: 0 | V11: 0 | W11: 0 | X11: 0 | Y11: 0 | Z11: 0 | AA11: 0 | AB11: 0 | AC11: 0 | AD11: 0 | AE11: 0 | AF11: 0 | AG11: 0 | AH11: 0 | AI11: 0 | AJ11: 0 | AK11: 0 | AL11: 0 | AM11: 0 | AN11: 0 | AO11: 0 | AP11: 0 | AQ11: 0 | AR11: 0 | AS11: 0 | AT11: 0 | AU11: 0 | AV11: 0 | AW11: 0 | AX11: 0 | AY11: 0 | AZ11: 0 | BA11: 0 | BB11: 0
B13: Operating cost
B14: No | C14: Management costs | D14: =SUM(E14:BB14) -> 0 | E14: 0 | F14: 0 | G14: 0 | H14: 0 | I14: 0 | J14: 0 | K14: 0 | L14: 0 | M14: 0 | N14: 0 | O14: 0 | P14: 0 | Q14: 0 | R14: 0 | S14: 0 | T14: 0 | U14: 0 | V14: 0 | W14: 0 | X14: 0 | Y14: 0 | Z14: 0 | AA14: 0 | AB14: 0 | AC14: 0 | AD14: 0 | AE14: 0 | AF14: 0 | AG14: 0 | AH14: 0 | AI14: 0 | AJ14: 0 | AK14: 0 | AL14: 0 | AM14: 0 | AN14: 0 | AO14: 0 | AP14: 0 | AQ14: 0 | AR14: 0 | AS14: 0 | AT14: 0 | AU14: 0 | AV14: 0 | AW14: 0 | AX14: 0 | AY14: 0 | AZ14: 0 | BA14: 0 | BB14: 0
B15: No | C15: Planned & routine maintenance | D15: =SUM(E15:BB15) -> 0 | E15: 0 | F15: 0 | G15: 0 | H15: 0 | I15: 0 | J15: 0 | K15: 0 | L15: 0 | M15: 0 | N15: 0 | O15: 0 | P15: 0 | Q15: 0 | R15: 0 | S15: 0 | T15: 0 | U15: 0 | V15: 0 | W15: 0 | X15: 0 | Y15: 0 | Z15: 0 | AA15: 0 | AB15: 0 | AC15: 0 | AD15: 0 | AE15: 0 | AF15: 0 | AG15: 0 | AH15: 0 | AI15: 0 | AJ15: 0 | AK15: 0 | AL15: 0 | AM15: 0 | AN15: 0 | AO15: 0 | AP15: 0 | AQ15: 0 | AR15: 0 | AS15: 0 | AT15: 0 | AU15: 0 | AV15: 0 | AW15: 0 | AX15: 0 | AY15: 0 | AZ15: 0 | BA15: 0 | BB15: 0
B16: No | C16: Major repairs | D16: =SUM(E16:BB16) -> 0 | E16: 0 | F16: 0 | G16: 0 | H16: 0 | I16: 0 | J16: 0 | K16: 0 | L16: 0 | M16: 0 | N16: 0 | O16: 0 | P16: 0 | Q16: 0 | R16: 0 | S16: 0 | T16: 0 | U16: 0 | V16: 0 | W16: 0 | X16: 0 | Y16: 0 | Z16: 0 | AA16: 0 | AB16: 0 | AC16: 0 | AD16: 0 | AE16: 0 | AF16: 0 | AG16: 0 | AH16: 0 | AI16: 0 | AJ16: 0 | AK16: 0 | AL16: 0 | AM16: 0 | AN16: 0 | AO16: 0 | AP16: 0 | AQ16: 0 | AR16: 0 | AS16: 0 | AT16: 0 | AU16: 0 | AV16: 0 | AW16: 0 | AX16: 0 | AY16: 0 | AZ16: 0 | BA16: 0 | BB16: 0
C18: Please enter the detailed annual cost for the specific unit that you would like to assess.
C19: The current model supports detailed user data for operating cost but not yet incomce.
C20: Please select 'Yes' for each line where you have specific data - selcting 'no' will use data from 'Input' table (e.g. sector averages / average user data).

Sheet Results
E3: Simplified options analysis
E4: Please check this box to activate this appraisal function | G4: FALSE
E6: Include Energy Plan | F6: Yes
E7: Index-linked Energy Plan | F7: Yes
E8: Include FiT | F8: Yes
B9: Lifetime value before renovation | C9: ='Main calculation'!E26 -> 92040.50397 | E9: Size of solar PV system (up to 8 kW)
B10: Lifetime value after renovation | C10: ='Main calculation'!E57 -> 137494.8672 | E10: Select RP or LA | F10: LA | H10: Total cost of living - savings
B11: Additional borrowing capacity | C11: =C10-C9 -> 45454.36328 | E11: Select archetype | F11: GLA1_SD_3049_Gas | H11: For residents in Energiesprong properties
B12: Include percentage of rent (Y/N) | C12: =IF(F12="No",0,NPV!D40) -> 0 | E12: Include percentage of rent | F12: No | H12: Monthly savings in year 1 | I12: ='Cost of living'!E30 -> 53.81119996
B13: Borrowing capacity (total) | C13: =C11+C12 -> 45454.36328 | E13: Add percentage of grant finance | F13: 0 | H13: Annual savings in year 1 | I13: ='Cost of living'!E29 -> 645.7343995
B14: Borrowing capacity (£/year) | C14: =C13/C28 -> 1515.145443 | E14: Extend building lifetime by (yrs) | F14: 0 | H14: Total savings over 30 yrs | I14: ='Cost of living'!D29 -> 25853.41203
B16: Energiesprong investment envelope
A17: P = A / r * [1-(1/(1+r)^n)] | B17: Investment capacity (principal) -debt | C17: =C14/C27*(1-(1/(1+C27)^C28)) -> 30480.20801 | E17: If rental income is included this is used to increase debt finance.
B18: Investment capacity (own investment) | C18: =Financing!D9 -> 0 | E18: The current model does not factor in opportunity cost for housing providers' own reserves.
B19: Investment capacity (grant) | C19: =Financing!D10 -> 0 | E19: Grant finance is added to the investment envelope.
B20: TOTAL investment envelope (capex) | C20: =SUM(C17:C19) -> 30480.20801 | E20: This is the amount of investment available for the initial installation of an Energiesprong solution.
B22: =NPV!C29 -> Energiesprong maintenance cost | C22: ='Main calculation'!D48 -> 17128.125 | E22: This is the total amount available for the maintance contract of Energiesprong (e.g. paid to Energiesprong solution provider).
B24: Maintenance cost (post Energiesprong) | C24: ='Main calculation'!D49 -> 5603.240694 | E24: This is the total amount available for non-Energiesprong related maintenance (various contracts).
B25: Major repairs (post Energiesprong) | C25: ='Main calculation'!D50 -> 11633.73318 | E25: This is the total amount available for non-Energiesprong related major repairs (various contracts).
B27: Cost of borrowing | C27: =Financing!C12 -> 0.028
B28: Loan period | C28: =Financing!C13 -> 30

Sheet General assumptions
A6: General assumptions | C6: 2015 | D6: 2016 | E6: 2017 | F6: 2018 | G6: 2019 | H6: 2020 | I6: 2021
A7: No. of weeks per year | B7: 52
A8: RPI (long term) | B8: 0.03 | C8: 0.011 | D8: 0.023 | E8: 0.03 | F8: 0.031 | G8: 0.032 | K8: https://www.gov.uk/government/uploads/system/uploads/attachment_data/file/454592/PU797_Forecasts_for_the_UK_economy__338_.pdf
A9: CPI (long term) | B9: 0.02 | C9: 0 | D9: 0.012 | E9: 0.017 | F9: 0.018 | G9: 0.019 | H9: 0.02 | I9: 0.02
A11: Rent formula (CPI+x%) | B11: 0
A12: Rent cut | B12: -0.01
A13: Duration of rent cut | B13: 4
A14: Bad debt | B14: -0.01
A16: Reduction in routine & planned maintenance | B16: -0.02 | C16: HCA global accounts - can use specific numbers for individual organisations.
A17: Reduction in major repairs costs | B17: -0.03 | C17: HCA global accounts - can use specific numbers for individual organisations.
A18: Increase in management cost | B18: 0.02 | C18: HCA global accounts - can use specific numbers for individual organisations.

Sheet Energy assumptions
B7: Solar PV installation | E7: Solar PV
B8: System size (kW) | C8: Annual output (kWh) | E8: p/kWh | F8: Q1 2016 | G8: Q2 2016 | H8: Q3 2016 | I8: Q4 2016 | J8: Q1 2017 | K8: Q2 2017 | L8: Q3 2017 | M8: Q4 2017 | N8: Q1 2018 | O8: Q2 2018 | P8: Q3 2018 | Q8: Q4 2018 | R8: Q1 2019
B9: 1 | C9: 850 | E9: <10kW | F9: 4.39 | G9: 4.32 | H9: 4.25 | I9: 4.18 | J9: 4.11 | K9: 4.04 | L9: 3.91 | M9: 3.9 | N9: 3.83 | O9: 3.76 | P9: 3.69 | Q9: 3.62 | R9: 3.55
B10: 2 | C10: 1700 | E10: https://www.gov.uk/government/uploads/system/uploads/attachment_data/file/486082/FITs_Review_Govt__response_Final.pdf
B11: 3 | C11: 2550
B12: 4 | C12: 3400
B13: 5 | C13: =C12+C9 -> 4250
B14: 6 | C14: =C13+$C$9 -> 5100
B15: 7 | C15: =C14+$C$9 -> 5950
B16: 8 | C16: 6800
B18: Energy plan | C18: 2-3 people in household
C19: Space heating | D19: 30 | E19: kWh/m2 | F19: =D19/2.5 -> 12 | G19: kWh/m2 | H19: electric to drive the heat pump
C20: Hot water | D20: 800 | E20: kWh | G20: this provides 180-200 l of hot water / day
C21: Appliances and light | D21: 2500 | E21: KWh
C23: Grid exchange balance | D23: 0.78 | E23: (22% auto-consumption; 78% exchange with the grid)
E72: =INDEX('Energy assumptions'!F9:R9,MATCH(E71,'[1]Energy assumptions'!F8:R8,0)) -> 

Sheet Main calculation
A6: PRE ENERGIESPRONG | E6: 1 | F6: =E6+1 -> 2 | G6: =F6+1 -> 3 | H6: 4 | I6: 5 | J6: 6 | K6: 7 | L6: 8 | M6: 9 | N6: 10 | O6: 11 | P6: 12 | Q6: 13 | R6: 14 | S6: 15 | T6: 16 | U6: 17 | V6: 18 | W6: 19 | X6: 20 | Y6: 21 | Z6: 22 | AA6: 23 | AB6: 24 | AC6: 25 | AD6: 26 | AE6: 27 | AF6: 28 | AG6: 29 | AH6: 30 | AI6: 31 | AJ6: 32 | AK6: 33 | AL6: 34 | AM6: 35 | AN6: 36 | AO6: 37 | AP6: 38 | AQ6: 39 | AR6: 40 | AS6: 41 | AT6: 42 | AU6: =AT6+1 -> 43 | AV6: 44 | AW6: =AV6+1 -> 45 | AX6: 46 | AY6: 47 | AZ6: =AY6+1 -> 48 | BA6: 49 | BB6: 50
B8: Income
C9: Rental income (£) | D9: =SUM(E9:BB9) -> 170402.863 | E9: =E65*E87 -> 4700.28 | F9: 4653.2772 | G9: 4606.744428 | H9: 4560.676984 | I9: 4515.070214 | J9: 4600.856548 | K9: 4692.873679 | L9: 4786.731152 | M9: 4882.465776 | N9: 4980.115091 | O9: 5079.717393 | P9: 5181.311741 | Q9: 5284.937976 | R9: 5390.636735 | S9: 5498.44947 | T9: 5608.418459 | U9: 5720.586828 | V9: 5834.998565 | W9: 5951.698536 | X9: 6070.732507 | Y9: 6192.147157 | Z9: 6315.9901 | AA9: 6442.309902 | AB9: 6571.1561 | AC9: 6702.579222 | AD9: 6836.630807 | AE9: 6973.363423 | AF9: 7112.830691 | AG9: 7255.087305 | AH9: 7400.189051 | AI9: 0 | AJ9: 0 | AK9: =AK65*AK87 -> 0 | AL9: 0 | AM9: 0 | AN9: 0 | AO9: 0 | AP9: 0 | AQ9: 0 | AR9: 0 | AS9: 0 | AT9: 0 | AU9: 0 | AV9: 0 | AW9: 0 | AX9: 0 | AY9: 0 | AZ9: 0 | BA9: 0 | BB9: 0
C10: Bad debt (£) | D10: =SUM(E10:BB10) -> -1704.02863 | E10: =E9*'General assumptions'!$B$14 -> -47.0028 | F10: =F9*'General assumptions'!$B$14 -> -46.532772 | G10: =G9*'General assumptions'!$B$14 -> -46.06744428 | H10: =H9*'General assumptions'!$B$14 -> -45.60676984 | I10: =I9*'General assumptions'!$B$14 -> -45.15070214 | J10: =J9*'General assumptions'!$B$14 -> -46.00856548 | K10: =K9*'General assumptions'!$B$14 -> -46.92873679 | L10: =L9*'General assumptions'!$B$14 -> -47.86731152 | M10: =M9*'General assumptions'!$B$14 -> -48.82465776 | N10: =N9*'General assumptions'!$B$14 -> -49.80115091 | O10: =O9*'General assumptions'!$B$14 -> -50.79717393 | P10: =P9*'General assumptions'!$B$14 -> -51.81311741 | Q10: =Q9*'General assumptions'!$B$14 -> -52.84937976 | R10: =R9*'General assumptions'!$B$14 -> -53.90636735 | S10: =S9*'General assumptions'!$B$14 -> -54.9844947 | T10: =T9*'General assumptions'!$B$14 -> -56.08418459 | U10: =U9*'General assumptions'!$B$14 -> -57.20586828 | V10: =V9*'General assumptions'!$B$14 -> -58.34998565 | W10: =W9*'General assumptions'!$B$14 -> -59.51698536 | X10: =X9*'General assumptions'!$B$14 -> -60.70732507 | Y10: =Y9*'General assumptions'!$B$14 -> -61.92147157 | Z10: =Z9*'General assumptions'!$B$14 -> -63.159901 | AA10: =AA9*'General assumptions'!$B$14 -> -64.42309902 | AB10: =AB9*'General assumptions'!$B$14 -> -65.711561 | AC10: =AC9*'General assumptions'!$B$14 -> -67.02579222 | AD10: =AD9*'General assumptions'!$B$14 -> -68.36630807 | AE10: =AE9*'General assumptions'!$B$14 -> -69.73363423 | AF10: =AF9*'General assumptions'!$B$14 -> -71.12830691 | AG10: =AG9*'General assumptions'!$B$14 -> -72.55087305 | AH10: =AH9*'General assumptions'!$B$14 -> -74.00189051 | AI10: =AI9*'General assumptions'!$B$14 -> 0 | AJ10: =AJ9*'General assumptions'!$B$14 -> 0 | AK10: =AK9*'General assumptions'!$B$14 -> 0 | AL10: =AL9*'General assumptions'!$B$14 -> 0 | AM10: =AM9*'General assumptions'!$B$14 -> 0 | AN10: =AN9*'General assumptions'!$B$14 -> 0 | AO10: =AO9*'General assumptions'!$B$14 -> 0 | AP10: =AP9*'General assumptions'!$B$14 -> 0 | AQ10: =AQ9*'General assumptions'!$B$14 -> 0 | AR10: =AR9*'General assumptions'!$B$14 -> 0 | AS10: =AS9*'General assumptions'!$B$14 -> 0 | AT10: =AT9*'General assumptions'!$B$14 -> 0 | AU10: =AU9*'General assumptions'!$B$14 -> 0 | AV10: =AV9*'General assumptions'!$B$14 -> 0 | AW10: =AW9*'General assumptions'!$B$14 -> 0 | AX10: =AX9*'General assumptions'!$B$14 -> 0 | AY10: =AY9*'General assumptions'!$B$14 -> 0 | AZ10: =AZ9*'General assumptions'!$B$14 -> 0 | BA10: =BA9*'General assumptions'!$B$14 -> 0 | BB10: =BB9*'General assumptions'!$B$14 -> 0
C11: Service charge (£) | D11: 16655.48469 | E11: =E70*E87 -> 416 | F11: 420.992 | G11: 428.148864 | H11: 435.8555436 | I11: 444.1367989 | J11: 453.0195349 | K11: 462.0799256 | L11: 471.3215241 | M11: 480.7479545 | N11: 490.3629136 | O11: 500.1701719 | P11: 510.1735753 | Q11: 520.3770469 | R11: 530.7845878 | S11: 541.4002795 | T11: 552.2282851 | U11: 563.2728508 | V11: 574.5383079 | W11: 586.029074 | X11: 597.7496555 | Y11: 609.7046486 | Z11: 621.8987416 | AA11: 634.3367164 | AB11: 647.0234507 | AC11: 659.9639198 | AD11: 673.1631981 | AE11: 686.6264621 | AF11: 700.3589914 | AG11: 714.3661712 | AH11: 728.6534946 | AI11: 0 | AJ11: 0 | AK11: =AK70*AK87 -> 0 | AL11: 0 | AM11: 0 | AN11: 0 | AO11: 0 | AP11: 0 | AQ11: 0 | AR11: 0 | AS11: 0 | AT11: 0 | AU11: 0 | AV11: 0 | AW11: 0 | AX11: 0 | AY11: 0 | AZ11: 0 | BA11: 0 | BB11: 0
C12: Residual value at lifetime end (£) | E12: =IF(E6=Input!$F$18,Input!$F$20,0) -> 0 | F12: =IF(F6=Input!$F$18,Input!$F$20,0) -> 0 | G12: =IF(G6=Input!$F$18,Input!$F$20,0) -> 0 | H12: =IF(H6=Input!$F$18,Input!$F$20,0) -> 0 | I12: =IF(I6=Input!$F$18,Input!$F$20,0) -> 0 | J12: =IF(J6=Input!$F$18,Input!$F$20,0) -> 0 | K12: =IF(K6=Input!$F$18,Input!$F$20,0) -> 0 | L12: =IF(L6=Input!$F$18,Input!$F$20,0) -> 0 | M12: =IF(M6=Input!$F$18,Input!$F$20,0) -> 0 | N12: =IF(N6=Input!$F$18,Input!$F$20,0) -> 0 | O12: =IF(O6=Input!$F$18,Input!$F$20,0) -> 0 | P12: =IF(P6=Input!$F$18,Input!$F$20,0) -> 0 | Q12: =IF(Q6=Input!$F$18,Input!$F$20,0) -> 0 | R12: =IF(R6=Input!$F$18,Input!$F$20,0) -> 0 | S12: =IF(S6=Input!$F$18,Input!$F$20,0) -> 0 | T12: =IF(T6=Input!$F$18,Input!$F$20,0) -> 0 | U12: =IF(U6=Input!$F$18,Input!$F$20,0) -> 0 | V12: =IF(V6=Input!$F$18,Input!$F$20,0) -> 0 | W12: =IF(W6=Input!$F$18,Input!$F$20,0) -> 0 | X12: =IF(X6=Input!$F$18,Input!$F$20,0) -> 0 | Y12: =IF(Y6=Input!$F$18,Input!$F$20,0) -> 0 | Z12: =IF(Z6=Input!$F$18,Input!$F$20,0) -> 0 | AA12: =IF(AA6=Input!$F$18,Input!$F$20,0) -> 0 | AB12: =IF(AB6=Input!$F$18,Input!$F$20,0) -> 0 | AC12: =IF(AC6=Input!$F$18,Input!$F$20,0) -> 0 | AD12: =IF(AD6=Input!$F$18,Input!$F$20,0) -> 0 | AE12: =IF(AE6=Input!$F$18,Input!$F$20,0) -> 0 | AF12: =IF(AF6=Input!$F$18,Input!$F$20,0) -> 0 | AG12: =IF(AG6=Input!$F$18,Input!$F$20,0) -> 0 | AH12: =IF(AH6=Input!$F$18,Input!$F$20,0) -> 0 | AI12: =IF(AI6=Input!$F$18,Input!$F$20,0) -> 0 | AJ12: =IF(AJ6=Input!$F$18,Input!$F$20,0) -> 0 | AK12: =IF(AK6=Input!$F$18,Input!$F$20,0) -> 0 | AL12: =IF(AL6=Input!$F$18,Input!$F$20,0) -> 0 | AM12: =IF(AM6=Input!$F$18,Input!$F$20,0) -> 0 | AN12: =IF(AN6=Input!$F$18,Input!$F$20,0) -> 0 | AO12: =IF(AO6=Input!$F$18,Input!$F$20,0) -> 0 | AP12: =IF(AP6=Input!$F$18,Input!$F$20,0) -> 0 | AQ12: =IF(AQ6=Input!$F$18,Input!$F$20,0) -> 0 | AR12: =IF(AR6=Input!$F$18,Input!$F$20,0) -> 0 | AS12: =IF(AS6=Input!$F$18,Input!$F$20,0) -> 0 | AT12: =IF(AT6=Input!$F$18,Input!$F$20,0) -> 0 | AU12: =IF(AU6=Input!$F$18,Input!$F$20,0) -> 0 | AV12: =IF(AV6=Input!$F$18,Input!$F$20,0) -> 0 | AW12: =IF(AW6=Input!$F$18,Input!$F$20,0) -> 0 | AX12: =IF(AX6=Input!$F$18,Input!$F$20,0) -> 0 | AY12: =IF(AY6=Input!$F$18,Input!$F$20,0) -> 0 | AZ12: =IF(AZ6=Input!$F$18,Input!$F$20,0) -> 0 | BA12: =IF(BA6=Input!$F$18,Input!$F$20,0) -> 0 | BB12: =IF(BB6=Input!$F$18,Input!$F$20,0) -> 0
B13: Total revenue | D13: =SUM(E13:BB13) -> 185354.3191 | E13: =SUM(E9:E12) -> 5069.2772 | F13: 5027.736428 | G13: 4988.825848 | H13: 4950.925757 | I13: 4914.056311 | J13: 5007.867517 | K13: 5108.024868 | L13: 5210.185365 | M13: 5314.389072 | N13: 5420.676854 | O13: 5529.090391 | P13: 5639.672199 | Q13: 5752.465643 | R13: 5867.514955 | S13: 5984.865255 | T13: 6104.56256 | U13: 6226.653811 | V13: 6351.186887 | W13: 6478.210625 | X13: 6607.774837 | Y13: 6739.930334 | Z13: 6874.728941 | AA13: 7012.22352 | AB13: 7152.46799 | AC13: 7295.51735 | AD13: 7441.427697 | AE13: 7590.256251 | AF13: 7742.061376 | AG13: 7896.902603 | AH13: 8054.840655 | AI13: 0 | AJ13: 0 | AK13: =SUM(AK9:AK12) -> 0 | AL13: 0 | AM13: 0 | AN13: 0 | AO13: 0 | AP13: 0 | AQ13: 0 | AR13: 0 | AS13: 0 | AT13: 0 | AU13: 0 | AV13: 0 | AW13: 0 | AX13: 0 | AY13: 0 | AZ13: 0 | BA13: 0 | BB13: 0
B15: Operating cost
B16: =IF(AND(Input!F34="Yes",Input2!B14="Yes"),1,0) -> 0 | C16: Management costs | D16: =SUM(E16:BB16) -> 40162.39841 | E16: =IF($B$16=0,Input!F35*E87,Input2!E14) -> 990 | F16: =IF($B$16=0,(E16+(E16*'General assumptions'!$B$18))*F87,Input2!F14) -> 1009.8 | G16: =IF($B$16=0,(F16+(F16*'General assumptions'!$B$18))*G87,Input2!G14) -> 1029.996 | H16: =IF($B$16=0,(G16+(G16*'General assumptions'!$B$18))*H87,Input2!H14) -> 1050.59592 | I16: =IF($B$16=0,(H16+(H16*'General assumptions'!$B$18))*I87,Input2!I14) -> 1071.607838 | J16: =IF($B$16=0,(I16+(I16*'General assumptions'!$B$18))*J87,Input2!J14) -> 1093.039995 | K16: =IF($B$16=0,(J16+(J16*'General assumptions'!$B$18))*K87,Input2!K14) -> 1114.900795 | L16: =IF($B$16=0,(K16+(K16*'General assumptions'!$B$18))*L87,Input2!L14) -> 1137.198811 | M16: =IF($B$16=0,(L16+(L16*'General assumptions'!$B$18))*M87,Input2!M14) -> 1159.942787 | N16: =IF($B$16=0,(M16+(M16*'General assumptions'!$B$18))*N87,Input2!N14) -> 1183.141643 | O16: =IF($B$16=0,(N16+(N16*'General assumptions'!$B$18))*O87,Input2!O14) -> 1206.804476 | P16: =IF($B$16=0,(O16+(O16*'General assumptions'!$B$18))*P87,Input2!P14) -> 1230.940565 | Q16: =IF($B$16=0,(P16+(P16*'General assumptions'!$B$18))*Q87,Input2!Q14) -> 1255.559377 | R16: =IF($B$16=0,(Q16+(Q16*'General assumptions'!$B$18))*R87,Input2!R14) -> 1280.670564 | S16: =IF($B$16=0,(R16+(R16*'General assumptions'!$B$18))*S87,Input2!S14) -> 1306.283975 | T16: =IF($B$16=0,(S16+(S16*'General assumptions'!$B$18))*T87,Input2!T14) -> 1332.409655 | U16: =IF($B$16=0,(T16+(T16*'General assumptions'!$B$18))*U87,Input2!U14) -> 1359.057848 | V16: =IF($B$16=0,(U16+(U16*'General assumptions'!$B$18))*V87,Input2!V14) -> 1386.239005 | W16: =IF($B$16=0,(V16+(V16*'General assumptions'!$B$18))*W87,Input2!W14) -> 1413.963785 | X16: =IF($B$16=0,(W16+(W16*'General assumptions'!$B$18))*X87,Input2!X14) -> 1442.243061 | Y16: =IF($B$16=0,(X16+(X16*'General assumptions'!$B$18))*Y87,Input2!Y14) -> 1471.087922 | Z16: =IF($B$16=0,(Y16+(Y16*'General assumptions'!$B$18))*Z87,Input2!Z14) -> 1500.50968 | AA16: =IF($B$16=0,(Z16+(Z16*'General assumptions'!$B$18))*AA87,Input2!AA14) -> 1530.519874 | AB16: =IF($B$16=0,(AA16+(AA16*'General assumptions'!$B$18))*AB87,Input2!AB14) -> 1561.130272 | AC16: =IF($B$16=0,(AB16+(AB16*'General assumptions'!$B$18))*AC87,Input2!AC14) -> 1592.352877 | AD16: =IF($B$16=0,(AC16+(AC16*'General assumptions'!$B$18))*AD87,Input2!AD14) -> 1624.199935 | AE16: =IF($B$16=0,(AD16+(AD16*'General assumptions'!$B$18))*AE87,Input2!AE14) -> 1656.683933 | AF16: =IF($B$16=0,(AE16+(AE16*'General assumptions'!$B$18))*AF87,Input2!AF14) -> 1689.817612 | AG16: =IF($B$16=0,(AF16+(AF16*'General assumptions'!$B$18))*AG87,Input2!AG14) -> 1723.613964 | AH16: =IF($B$16=0,(AG16+(AG16*'General assumptions'!$B$18))*AH87,Input2!AH14) -> 1758.086243 | AI16: =IF($B$16=0,(AH16+(AH16*'General assumptions'!$B$18))*AI87,Input2!AI14) -> 0 | AJ16: =IF($B$16=0,(AI16+(AI16*'General assumptions'!$B$18))*AJ87,Input2!AJ14) -> 0 | AK16: =IF($B$16=0,(AJ16+(AJ16*'General assumptions'!$B$18))*AK87,Input2!AK14) -> 0 | AL16: =IF($B$16=0,(AK16+(AK16*'General assumptions'!$B$18))*AL87,Input2!AL14) -> 0 | AM16: =IF($B$16=0,(AL16+(AL16*'General assumptions'!$B$18))*AM87,Input2!AM14) -> 0 | AN16: =IF($B$16=0,(AM16+(AM16*'General assumptions'!$B$18))*AN87,Input2!AN14) -> 0 | AO16: =IF($B$16=0,(AN16+(AN16*'General assumptions'!$B$18))*AO87,Input2!AO14) -> 0 | AP16: =IF($B$16=0,(AO16+(AO16*'General assumptions'!$B$18))*AP87,Input2!AP14) -> 0 | AQ16: =IF($B$16=0,(AP16+(AP16*'General assumptions'!$B$18))*AQ87,Input2!AQ14) -> 0 | AR16: =IF($B$16=0,(AQ16+(AQ16*'General assumptions'!$B$18))*AR87,Input2!AR14) -> 0 | AS16: =IF($B$16=0,(AR16+(AR16*'General assumptions'!$B$18))*AS87,Input2!AS14) -> 0 | AT16: =IF($B$16=0,(AS16+(AS16*'General assumptions'!$B$18))*AT87,Input2!AT14) -> 0 | AU16: =IF($B$16=0,(AT16+(AT16*'General assumptions'!$B$18))*AU87,Input2!AU14) -> 0 | AV16: =IF($B$16=0,(AU16+(AU16*'General assumptions'!$B$18))*AV87,Input2!AV14) -> 0 | AW16: =IF($B$16=0,(AV16+(AV16*'General assumptions'!$B$18))*AW87,Input2!AW14) -> 0 | AX16: =IF($B$16=0,(AW16+(AW16*'General assumptions'!$B$18))*AX87,Input2!AX14) -> 0 | AY16: =IF($B$16=0,(AX16+(AX16*'General assumptions'!$B$18))*AY87,Input2!AY14) -> 0 | AZ16: =IF($B$16=0,(AY16+(AY16*'General assumptions'!$B$18))*AZ87,Input2!AZ14) -> 0 | BA16: =IF($B$16=0,(AZ16+(AZ16*'General assumptions'!$B$18))*BA87,Input2!BA14) -> 0 | BB16: =IF($B$16=0,(BA16+(BA16*'General assumptions'!$B$18))*BB87,Input2!BB14) -> 0
C17: Service costs
B18: =IF(AND(Input!F34="Yes",Input2!B15="Yes"),1,0) -> 0 | C18: Planned & routine maintenance | D18: =SUM(E18:BB18) -> 29883.95037 | E18: =IF(B18=0,Input!F37,Input2!E15) -> 1015 | F18: =IF($B$18=0,((E18+(E18*'General assumptions'!$B$16))+((E18+(E18*'General assumptions'!$B$16))*F64))*F87,Input2!F15) -> 1006.6364 | G18: =IF($B$18=0,((F18+(F18*'General assumptions'!$B$16))+((F18+(F18*'General assumptions'!$B$16))*G64))*G87,Input2!G15) -> 1003.274234 | H18: =IF($B$18=0,((G18+(G18*'General assumptions'!$B$16))+((G18+(G18*'General assumptions'!$B$16))*H64))*H87,Input2!H15) -> 1000.906507 | I18: =IF($B$18=0,((H18+(H18*'General assumptions'!$B$16))+((H18+(H18*'General assumptions'!$B$16))*I64))*I87,Input2!I15) -> 999.5252563 | J18: =IF($B$18=0,((I18+(I18*'General assumptions'!$B$16))+((I18+(I18*'General assumptions'!$B$16))*J64))*J87,Input2!J15) -> 999.1254461 | K18: =IF($B$18=0,((J18+(J18*'General assumptions'!$B$16))+((J18+(J18*'General assumptions'!$B$16))*K64))*K87,Input2!K15) -> 998.725796 | L18: =IF($B$18=0,((K18+(K18*'General assumptions'!$B$16))+((K18+(K18*'General assumptions'!$B$16))*L64))*L87,Input2!L15) -> 998.3263057 | M18: =IF($B$18=0,((L18+(L18*'General assumptions'!$B$16))+((L18+(L18*'General assumptions'!$B$16))*M64))*M87,Input2!M15) -> 997.9269751 | N18: =IF($B$18=0,((M18+(M18*'General assumptions'!$B$16))+((M18+(M18*'General assumptions'!$B$16))*N64))*N87,Input2!N15) -> 997.5278043 | O18: =IF($B$18=0,((N18+(N18*'General assumptions'!$B$16))+((N18+(N18*'General assumptions'!$B$16))*O64))*O87,Input2!O15) -> 997.1287932 | P18: =IF($B$18=0,((O18+(O18*'General assumptions'!$B$16))+((O18+(O18*'General assumptions'!$B$16))*P64))*P87,Input2!P15) -> 996.7299417 | Q18: =IF($B$18=0,((P18+(P18*'General assumptions'!$B$16))+((P18+(P18*'General assumptions'!$B$16))*Q64))*Q87,Input2!Q15) -> 996.3312497 | R18: =IF($B$18=0,((Q18+(Q18*'General assumptions'!$B$16))+((Q18+(Q18*'General assumptions'!$B$16))*R64))*R87,Input2!R15) -> 995.9327172 | S18: =IF($B$18=0,((R18+(R18*'General assumptions'!$B$16))+((R18+(R18*'General assumptions'!$B$16))*S64))*S87,Input2!S15) -> 995.5343441 | T18: =IF($B$18=0,((S18+(S18*'General assumptions'!$B$16))+((S18+(S18*'General assumptions'!$B$16))*T64))*T87,Input2!T15) -> 995.1361304 | U18: =IF($B$18=0,((T18+(T18*'General assumptions'!$B$16))+((T18+(T18*'General assumptions'!$B$16))*U64))*U87,Input2!U15) -> 994.7380759 | V18: =IF($B$18=0,((U18+(U18*'General assumptions'!$B$16))+((U18+(U18*'General assumptions'!$B$16))*V64))*V87,Input2!V15) -> 994.3401807 | W18: =IF($B$18=0,((V18+(V18*'General assumptions'!$B$16))+((V18+(V18*'General assumptions'!$B$16))*W64))*W87,Input2!W15) -> 993.9424446 | X18: =IF($B$18=0,((W18+(W18*'General assumptions'!$B$16))+((W18+(W18*'General assumptions'!$B$16))*X64))*X87,Input2!X15) -> 993.5448677 | Y18: =IF($B$18=0,((X18+(X18*'General assumptions'!$B$16))+((X18+(X18*'General assumptions'!$B$16))*Y64))*Y87,Input2!Y15) -> 993.1474497 | Z18: =IF($B$18=0,((Y18+(Y18*'General assumptions'!$B$16))+((Y18+(Y18*'General assumptions'!$B$16))*Z64))*Z87,Input2!Z15) -> 992.7501907 | AA18: =IF($B$18=0,((Z18+(Z18*'General assumptions'!$B$16))+((Z18+(Z18*'General assumptions'!$B$16))*AA64))*AA87,Input2!AA15) -> 992.3530907 | AB18: =IF($B$18=0,((AA18+(AA18*'General assumptions'!$B$16))+((AA18+(AA18*'General assumptions'!$B$16))*AB64))*AB87,Input2!AB15) -> 991.9561494 | AC18: =IF($B$18=0,((AB18+(AB18*'General assumptions'!$B$16))+((AB18+(AB18*'General assumptions'!$B$16))*AC64))*AC87,Input2!AC15) -> 991.559367 | AD18: =IF($B$18=0,((AC18+(AC18*'General assumptions'!$B$16))+((AC18+(AC18*'General assumptions'!$B$16))*AD64))*AD87,Input2!AD15) -> 991.1627432 | AE18: =IF($B$18=0,((AD18+(AD18*'General assumptions'!$B$16))+((AD18+(AD18*'General assumptions'!$B$16))*AE64))*AE87,Input2!AE15) -> 990.7662781 | AF18: =IF($B$18=0,((AE18+(AE18*'General assumptions'!$B$16))+((AE18+(AE18*'General assumptions'!$B$16))*AF64))*AF87,Input2!AF15) -> 990.3699716 | AG18: =IF($B$18=0,((AF18+(AF18*'General assumptions'!$B$16))+((AF18+(AF18*'General assumptions'!$B$16))*AG64))*AG87,Input2!AG15) -> 989.9738236 | AH18: =IF($B$18=0,((AG18+(AG18*'General assumptions'!$B$16))+((AG18+(AG18*'General assumptions'!$B$16))*AH64))*AH87,Input2!AH15) -> 989.5778341 | AI18: =IF($B$18=0,((AH18+(AH18*'General assumptions'!$B$16))+((AH18+(AH18*'General assumptions'!$B$16))*AI64))*AI87,Input2!AI15) -> 0 | AJ18: =IF($B$18=0,((AI18+(AI18*'General assumptions'!$B$16))+((AI18+(AI18*'General assumptions'!$B$16))*AJ64))*AJ87,Input2!AJ15) -> 0 | AK18: =IF($B$18=0,((AJ18+(AJ18*'General assumptions'!$B$16))+((AJ18+(AJ18*'General assumptions'!$B$16))*AK64))*AK87,Input2!AK15) -> 0 | AL18: =IF($B$18=0,((AK18+(AK18*'General assumptions'!$B$16))+((AK18+(AK18*'General assumptions'!$B$16))*AL64))*AL87,Input2!AL15) -> 0 | AM18: =IF($B$18=0,((AL18+(AL18*'General assumptions'!$B$16))+((AL18+(AL18*'General assumptions'!$B$16))*AM64))*AM87,Input2!AM15) -> 0 | AN18: =IF($B$18=0,((AM18+(AM18*'General assumptions'!$B$16))+((AM18+(AM18*'General assumptions'!$B$16))*AN64))*AN87,Input2!AN15) -> 0 | AO18: =IF($B$18=0,((AN18+(AN18*'General assumptions'!$B$16))+((AN18+(AN18*'General assumptions'!$B$16))*AO64))*AO87,Input2!AO15) -> 0 | AP18: =IF($B$18=0,((AO18+(AO18*'General assumptions'!$B$16))+((AO18+(AO18*'General assumptions'!$B$16))*AP64))*AP87,Input2!AP15) -> 0 | AQ18: =IF($B$18=0,((AP18+(AP18*'General assumptions'!$B$16))+((AP18+(AP18*'General assumptions'!$B$16))*AQ64))*AQ87,Input2!AQ15) -> 0 | AR18: =IF($B$18=0,((AQ18+(AQ18*'General assumptions'!$B$16))+((AQ18+(AQ18*'General assumptions'!$B$16))*AR64))*AR87,Input2!AR15) -> 0 | AS18: =IF($B$18=0,((AR18+(AR18*'General assumptions'!$B$16))+((AR18+(AR18*'General assumptions'!$B$16))*AS64))*AS87,Input2!AS15) -> 0 | AT18: =IF($B$18=0,((AS18+(AS18*'General assumptions'!$B$16))+((AS18+(AS18*'General assumptions'!$B$16))*AT64))*AT87,Input2!AT15) -> 0 | AU18: =IF($B$18=0,((AT18+(AT18*'General assumptions'!$B$16))+((AT18+(AT18*'General assumptions'!$B$16))*AU64))*AU87,Input2!AU15) -> 0 | AV18: =IF($B$18=0,((AU18+(AU18*'General assumptions'!$B$16))+((AU18+(AU18*'General assumptions'!$B$16))*AV64))*AV87,Input2!AV15) -> 0 | AW18: =IF($B$18=0,((AV18+(AV18*'General assumptions'!$B$16))+((AV18+(AV18*'General assumptions'!$B$16))*AW64))*AW87,Input2!AW15) -> 0 | AX18: =IF($B$18=0,((AW18+(AW18*'General assumptions'!$B$16))+((AW18+(AW18*'General assumptions'!$B$16))*AX64))*AX87,Input2!AX15) -> 0 | AY18: =IF($B$18=0,((AX18+(AX18*'General assumptions'!$B$16))+((AX18+(AX18*'General assumptions'!$B$16))*AY64))*AY87,Input2!AY15) -> 0 | AZ18: =IF($B$18=0,((AY18+(AY18*'General assumptions'!$B$16))+((AY18+(AY18*'General assumptions'!$B$16))*AZ64))*AZ87,Input2!AZ15) -> 0 | BA18: =IF($B$18=0,((AZ18+(AZ18*'General assumptions'!$B$16))+((AZ18+(AZ18*'General assumptions'!$B$16))*BA64))*BA87,Input2!BA15) -> 0 | BB18: =IF($B$18=0,((BA18+(BA18*'General assumptions'!$B$16))+((BA18+(BA18*'General assumptions'!$B$16))*BB64))*BB87,Input2!BB15) -> 0
B19: =IF(AND(Input!F34="Yes",Input2!B16="Yes"),1,0) -> 0 | C19: Major repairs | D19: =SUM(E19:BB19) -> 23267.46635 | E19: =IF(B19=0,Input!F41,Input2!E16) -> 913 | F19: =IF($B$19=0,((E19+(E19*'General assumptions'!$B$17))+((E19+(E19*'General assumptions'!$B$17))*F64))*F87,Input2!F16) -> 896.23732 | G19: =IF($B$19=0,((F19+(F19*'General assumptions'!$B$17))+((F19+(F19*'General assumptions'!$B$17))*G64))*G87,Input2!G16) -> 884.1291538 | H19: =IF($B$19=0,((G19+(G19*'General assumptions'!$B$17))+((G19+(G19*'General assumptions'!$B$17))*H64))*H87,Input2!H16) -> 873.0421742 | I19: =IF($B$19=0,((H19+(H19*'General assumptions'!$B$17))+((H19+(H19*'General assumptions'!$B$17))*I64))*I87,Input2!I16) -> 862.9410763 | J19: =IF($B$19=0,((I19+(I19*'General assumptions'!$B$17))+((I19+(I19*'General assumptions'!$B$17))*J64))*J87,Input2!J16) -> 853.7939009 | K19: =IF($B$19=0,((J19+(J19*'General assumptions'!$B$17))+((J19+(J19*'General assumptions'!$B$17))*K64))*K87,Input2!K16) -> 844.7436855 | L19: =IF($B$19=0,((K19+(K19*'General assumptions'!$B$17))+((K19+(K19*'General assumptions'!$B$17))*L64))*L87,Input2!L16) -> 835.7894024 | M19: =IF($B$19=0,((L19+(L19*'General assumptions'!$B$17))+((L19+(L19*'General assumptions'!$B$17))*M64))*M87,Input2!M16) -> 826.9300348 | N19: =IF($B$19=0,((M19+(M19*'General assumptions'!$B$17))+((M19+(M19*'General assumptions'!$B$17))*N64))*N87,Input2!N16) -> 818.1645764 | O19: =IF($B$19=0,((N19+(N19*'General assumptions'!$B$17))+((N19+(N19*'General assumptions'!$B$17))*O64))*O87,Input2!O16) -> 809.4920319 | P19: =IF($B$19=0,((O19+(O19*'General assumptions'!$B$17))+((O19+(O19*'General assumptions'!$B$17))*P64))*P87,Input2!P16) -> 800.9114164 | Q19: =IF($B$19=0,((P19+(P19*'General assumptions'!$B$17))+((P19+(P19*'General assumptions'!$B$17))*Q64))*Q87,Input2!Q16) -> 792.4217553 | R19: =IF($B$19=0,((Q19+(Q19*'General assumptions'!$B$17))+((Q19+(Q19*'General assumptions'!$B$17))*R64))*R87,Input2!R16) -> 784.0220847 | S19: =IF($B$19=0,((R19+(R19*'General assumptions'!$B$17))+((R19+(R19*'General assumptions'!$B$17))*S64))*S87,Input2!S16) -> 775.7114506 | T19: =IF($B$19=0,((S19+(S19*'General assumptions'!$B$17))+((S19+(S19*'General assumptions'!$B$17))*T64))*T87,Input2!T16) -> 767.4889093 | U19: =IF($B$19=0,((T19+(T19*'General assumptions'!$B$17))+((T19+(T19*'General assumptions'!$B$17))*U64))*U87,Input2!U16) -> 759.3535268 | V19: =IF($B$19=0,((U19+(U19*'General assumptions'!$B$17))+((U19+(U19*'General assumptions'!$B$17))*V64))*V87,Input2!V16) -> 751.3043794 | W19: =IF($B$19=0,((V19+(V19*'General assumptions'!$B$17))+((V19+(V19*'General assumptions'!$B$17))*W64))*W87,Input2!W16) -> 743.340553 | X19: =IF($B$19=0,((W19+(W19*'General assumptions'!$B$17))+((W19+(W19*'General assumptions'!$B$17))*X64))*X87,Input2!X16) -> 735.4611432 | Y19: =IF($B$19=0,((X19+(X19*'General assumptions'!$B$17))+((X19+(X19*'General assumptions'!$B$17))*Y64))*Y87,Input2!Y16) -> 727.665255 | Z19: =IF($B$19=0,((Y19+(Y19*'General assumptions'!$B$17))+((Y19+(Y19*'General assumptions'!$B$17))*Z64))*Z87,Input2!Z16) -> 719.9520033 | AA19: =IF($B$19=0,((Z19+(Z19*'General assumptions'!$B$17))+((Z19+(Z19*'General assumptions'!$B$17))*AA64))*AA87,Input2!AA16) -> 712.3205121 | AB19: =IF($B$19=0,((AA19+(AA19*'General assumptions'!$B$17))+((AA19+(AA19*'General assumptions'!$B$17))*AB64))*AB87,Input2!AB16) -> 704.7699147 | AC19: =IF($B$19=0,((AB19+(AB19*'General assumptions'!$B$17))+((AB19+(AB19*'General assumptions'!$B$17))*AC64))*AC87,Input2!AC16) -> 697.2993536 | AD19: =IF($B$19=0,((AC19+(AC19*'General assumptions'!$B$17))+((AC19+(AC19*'General assumptions'!$B$17))*AD64))*AD87,Input2!AD16) -> 689.9079804 | AE19: =IF($B$19=0,((AD19+(AD19*'General assumptions'!$B$17))+((AD19+(AD19*'General assumptions'!$B$17))*AE64))*AE87,Input2!AE16) -> 682.5949558 | AF19: =IF($B$19=0,((AE19+(AE19*'General assumptions'!$B$17))+((AE19+(AE19*'General assumptions'!$B$17))*AF64))*AF87,Input2!AF16) -> 675.3594493 | AG19: =IF($B$19=0,((AF19+(AF19*'General assumptions'!$B$17))+((AF19+(AF19*'General assumptions'!$B$17))*AG64))*AG87,Input2!AG16) -> 668.2006391 | AH19: =IF($B$19=0,((AG19+(AG19*'General assumptions'!$B$17))+((AG19+(AG19*'General assumptions'!$B$17))*AH64))*AH87,Input2!AH16) -> 661.1177124 | AI19: =IF($B$19=0,((AH19+(AH19*'General assumptions'!$B$17))+((AH19+(AH19*'General assumptions'!$B$17))*AI64))*AI87,Input2!AI16) -> 0 | AJ19: =IF($B$19=0,((AI19+(AI19*'General assumptions'!$B$17))+((AI19+(AI19*'General assumptions'!$B$17))*AJ64))*AJ87,Input2!AJ16) -> 0 | AK19: =IF($B$19=0,((AJ19+(AJ19*'General assumptions'!$B$17))+((AJ19+(AJ19*'General assumptions'!$B$17))*AK64))*AK87,Input2!AK16) -> 0 | AL19: =IF($B$19=0,((AK19+(AK19*'General assumptions'!$B$17))+((AK19+(AK19*'General assumptions'!$B$17))*AL64))*AL87,Input2!AL16) -> 0 | AM19: =IF($B$19=0,((AL19+(AL19*'General assumptions'!$B$17))+((AL19+(AL19*'General assumptions'!$B$17))*AM64))*AM87,Input2!AM16) -> 0 | AN19: =IF($B$19=0,((AM19+(AM19*'General assumptions'!$B$17))+((AM19+(AM19*'General assumptions'!$B$17))*AN64))*AN87,Input2!AN16) -> 0 | AO19: =IF($B$19=0,((AN19+(AN19*'General assumptions'!$B$17))+((AN19+(AN19*'General assumptions'!$B$17))*AO64))*AO87,Input2!AO16) -> 0 | AP19: =IF($B$19=0,((AO19+(AO19*'General assumptions'!$B$17))+((AO19+(AO19*'General assumptions'!$B$17))*AP64))*AP87,Input2!AP16) -> 0 | AQ19: =IF($B$19=0,((AP19+(AP19*'General assumptions'!$B$17))+((AP19+(AP19*'General assumptions'!$B$17))*AQ64))*AQ87,Input2!AQ16) -> 0 | AR19: =IF($B$19=0,((AQ19+(AQ19*'General assumptions'!$B$17))+((AQ19+(AQ19*'General assumptions'!$B$17))*AR64))*AR87,Input2!AR16) -> 0 | AS19: =IF($B$19=0,((AR19+(AR19*'General assumptions'!$B$17))+((AR19+(AR19*'General assumptions'!$B$17))*AS64))*AS87,Input2!AS16) -> 0 | AT19: =IF($B$19=0,((AS19+(AS19*'General assumptions'!$B$17))+((AS19+(AS19*'General assumptions'!$B$17))*AT64))*AT87,Input2!AT16) -> 0 | AU19: =IF($B$19=0,((AT19+(AT19*'General assumptions'!$B$17))+((AT19+(AT19*'General assumptions'!$B$17))*AU64))*AU87,Input2!AU16) -> 0 | AV19: =IF($B$19=0,((AU19+(AU19*'General assumptions'!$B$17))+((AU19+(AU19*'General assumptions'!$B$17))*AV64))*AV87,Input2!AV16) -> 0 | AW19: =IF($B$19=0,((AV19+(AV19*'General assumptions'!$B$17))+((AV19+(AV19*'General assumptions'!$B$17))*AW64))*AW87,Input2!AW16) -> 0 | AX19: =IF($B$19=0,((AW19+(AW19*'General assumptions'!$B$17))+((AW19+(AW19*'General assumptions'!$B$17))*AX64))*AX87,Input2!AX16) -> 0 | AY19: =IF($B$19=0,((AX19+(AX19*'General assumptions'!$B$17))+((AX19+(AX19*'General assumptions'!$B$17))*AY64))*AY87,Input2!AY16) -> 0 | AZ19: =IF($B$19=0,((AY19+(AY19*'General assumptions'!$B$17))+((AY19+(AY19*'General assumptions'!$B$17))*AZ64))*AZ87,Input2!AZ16) -> 0 | BA19: =IF($B$19=0,((AZ19+(AZ19*'General assumptions'!$B$17))+((AZ19+(AZ19*'General assumptions'!$B$17))*BA64))*BA87,Input2!BA16) -> 0 | BB19: =IF($B$19=0,((BA19+(BA19*'General assumptions'!$B$17))+((BA19+(BA19*'General assumptions'!$B$17))*BB64))*BB87,Input2!BB16) -> 0
B22: Total operating cost | D22: =SUM(E22:BB22) -> 93313.81513 | E22: =SUM(E16:E21) -> 2918 | F22: 2912.67372 | G22: 2917.399388 | H22: 2924.544601 | I22: 2934.074171 | J22: 2945.959342 | K22: 2958.370277 | L22: 2971.314519 | M22: 2984.799797 | N22: 2998.834024 | O22: 3013.425301 | P22: 3028.581923 | Q22: 3044.312382 | R22: 3060.625366 | S22: 3077.52977 | T22: 3095.034695 | U22: 3113.149451 | V22: 3131.883565 | W22: 3151.246783 | X22: 3171.249072 | Y22: 3191.900627 | Z22: 3213.211875 | AA22: 3235.193477 | AB22: 3257.856336 | AC22: 3281.211598 | AD22: 3305.270658 | AE22: 3330.045167 | AF22: 3355.547033 | AG22: 3381.788427 | AH22: 3408.78179 | AI22: 0 | AJ22: 0 | AK22: =SUM(AK16:AK21) -> 0 | AL22: 0 | AM22: 0 | AN22: 0 | AO22: 0 | AP22: 0 | AQ22: 0 | AR22: 0 | AS22: 0 | AT22: 0 | AU22: 0 | AV22: 0 | AW22: 0 | AX22: 0 | AY22: 0 | AZ22: 0 | BA22: 0 | BB22: 0
B24: Annual result | D24: =SUM(E24:BB24) -> 92040.50397 | E24: =E13-E22 -> 2151.2772 | F24: 2115.062708 | G24: 2071.426459 | H24: 2026.381156 | I24: 1979.98214 | J24: 2061.908175 | K24: 2149.654591 | L24: 2238.870846 | M24: 2329.589275 | N24: 2421.84283 | O24: 2515.66509 | P24: 2611.090275 | Q24: 2708.153261 | R24: 2806.889589 | S24: 2907.335484 | T24: 3009.527865 | U24: 3113.50436 | V24: 3219.303322 | W24: 3326.963842 | X24: 3436.525766 | Y24: 3548.029707 | Z24: 3661.517066 | AA24: 3777.030043 | AB24: 3894.611654 | AC24: 4014.305752 | AD24: 4136.157039 | AE24: 4260.211084 | AF24: 4386.514343 | AG24: 4515.114176 | AH24: 4646.058865 | AI24: 0 | AJ24: 0 | AK24: =AK13-AK22 -> 0 | AL24: 0 | AM24: 0 | AN24: 0 | AO24: 0 | AP24: 0 | AQ24: 0 | AR24: 0 | AS24: 0 | AT24: 0 | AU24: 0 | AV24: 0 | AW24: 0 | AX24: 0 | AY24: 0 | AZ24: 0 | BA24: 0 | BB24: 0
B26: Lifetime value (not discounted) | E26: =SUM(E24:BB24) -> 92040.50397
B27: Net present value (NPV) | E27: =NPV(Input!F96,'Main calculation'!E24:BB24) -> 52086.15849 | F27: =Input!F96 -> 0.035 | G27: Discount rate applied as per input table.
A29: POST ENERGIESPRONG | E29: 1 | F29: =E29+1 -> 2 | G29: =F29+1 -> 3 | H29: 4 | I29: 5 | J29: 6 | K29: 7 | L29: 8 | M29: 9 | N29: 10 | O29: 11 | P29: 12 | Q29: 13 | R29: 14 | S29: 15 | T29: 16 | U29: 17 | V29: 18 | W29: 19 | X29: 20 | Y29: 21 | Z29: 22 | AA29: 23 | AB29: 24 | AC29: 25 | AD29: 26 | AE29: 27 | AF29: 28 | AG29: 29 | AH29: 30 | AI29: 31 | AJ29: 32 | AK29: 33 | AL29: 34 | AM29: 35 | AN29: 36 | AO29: 37 | AP29: 38 | AQ29: 39 | AR29: 40 | AS29: 41 | AT29: 42 | AU29: =AT29+1 -> 43 | AV29: =AU29+1 -> 44 | AW29: =AV29+1 -> 45 | AX29: =AW29+1 -> 46 | AY29: 47 | AZ29: =AY29+1 -> 48 | BA29: =AZ29+1 -> 49 | BB29: 50
B31: Income
C32: Rental income (£/y) | D32: =SUM(E32:BB32) -> 170402.863 | E32: =E65*E88 -> 4700.28 | F32: 4653.2772 | G32: 4606.744428 | H32: 4560.676984 | I32: 4515.070214 | J32: 4600.856548 | K32: 4692.873679 | L32: 4786.731152 | M32: 4882.465776 | N32: 4980.115091 | O32: 5079.717393 | P32: 5181.311741 | Q32: 5284.937976 | R32: 5390.636735 | S32: 5498.44947 | T32: 5608.418459 | U32: 5720.586828 | V32: 5834.998565 | W32: 5951.698536 | X32: 6070.732507 | Y32: 6192.147157 | Z32: 6315.9901 | AA32: 6442.309902 | AB32: 6571.1561 | AC32: 6702.579222 | AD32: 6836.630807 | AE32: 6973.363423 | AF32: 7112.830691 | AG32: 7255.087305 | AH32: 7400.189051 | AI32: 0 | AJ32: 0 | AK32: =AK65*AK88 -> 0 | AL32: 0 | AM32: 0 | AN32: 0 | AO32: 0 | AP32: 0 | AQ32: 0 | AR32: 0 | AS32: 0 | AT32: 0 | AU32: 0 | AV32: 0 | AW32: 0 | AX32: 0 | AY32: 0 | AZ32: 0 | BA32: 0 | BB32: 0
C33: Bad debt (£) | D33: =SUM(E33:BB33) -> -1704.02863 | E33: =E32*'General assumptions'!$B$14 -> -47.0028 | F33: =F32*'General assumptions'!$B$14 -> -46.532772 | G33: =G32*'General assumptions'!$B$14 -> -46.06744428 | H33: =H32*'General assumptions'!$B$14 -> -45.60676984 | I33: =I32*'General assumptions'!$B$14 -> -45.15070214 | J33: =J32*'General assumptions'!$B$14 -> -46.00856548 | K33: =K32*'General assumptions'!$B$14 -> -46.92873679 | L33: =L32*'General assumptions'!$B$14 -> -47.86731152 | M33: =M32*'General assumptions'!$B$14 -> -48.82465776 | N33: =N32*'General assumptions'!$B$14 -> -49.80115091 | O33: =O32*'General assumptions'!$B$14 -> -50.79717393 | P33: =P32*'General assumptions'!$B$14 -> -51.81311741 | Q33: =Q32*'General assumptions'!$B$14 -> -52.84937976 | R33: =R32*'General assumptions'!$B$14 -> -53.90636735 | S33: =S32*'General assumptions'!$B$14 -> -54.9844947 | T33: =T32*'General assumptions'!$B$14 -> -56.08418459 | U33: =U32*'General assumptions'!$B$14 -> -57.20586828 | V33: =V32*'General assumptions'!$B$14 -> -58.34998565 | W33: =W32*'General assumptions'!$B$14 -> -59.51698536 | X33: =X32*'General assumptions'!$B$14 -> -60.70732507 | Y33: =Y32*'General assumptions'!$B$14 -> -61.92147157 | Z33: =Z32*'General assumptions'!$B$14 -> -63.159901 | AA33: =AA32*'General assumptions'!$B$14 -> -64.42309902 | AB33: =AB32*'General assumptions'!$B$14 -> -65.711561 | AC33: =AC32*'General assumptions'!$B$14 -> -67.02579222 | AD33: =AD32*'General assumptions'!$B$14 -> -68.36630807 | AE33: =AE32*'General assumptions'!$B$14 -> -69.73363423 | AF33: =AF32*'General assumptions'!$B$14 -> -71.12830691 | AG33: =AG32*'General assumptions'!$B$14 -> -72.55087305 | AH33: =AH32*'General assumptions'!$B$14 -> -74.00189051 | AI33: =AI32*'General assumptions'!$B$14 -> 0 | AJ33: =AJ32*'General assumptions'!$B$14 -> 0 | AK33: =AK32*'General assumptions'!$B$14 -> 0 | AL33: =AL32*'General assumptions'!$B$14 -> 0 | AM33: =AM32*'General assumptions'!$B$14 -> 0 | AN33: =AN32*'General assumptions'!$B$14 -> 0 | AO33: =AO32*'General assumptions'!$B$14 -> 0 | AP33: =AP32*'General assumptions'!$B$14 -> 0 | AQ33: =AQ32*'General assumptions'!$B$14 -> 0 | AR33: =AR32*'General assumptions'!$B$14 -> 0 | AS33: =AS32*'General assumptions'!$B$14 -> 0 | AT33: =AT32*'General assumptions'!$B$14 -> 0 | AU33: =AU32*'General assumptions'!$B$14 -> 0 | AV33: =AV32*'General assumptions'!$B$14 -> 0 | AW33: =AW32*'General assumptions'!$B$14 -> 0 | AX33: =AX32*'General assumptions'!$B$14 -> 0 | AY33: =AY32*'General assumptions'!$B$14 -> 0 | AZ33: =AZ32*'General assumptions'!$B$14 -> 0 | BA33: =BA32*'General assumptions'!$B$14 -> 0 | BB33: =BB32*'General assumptions'!$B$14 -> 0
C34: Service charge (£) | D34: 16655.48469 | E34: =E71*E88 -> 416 | F34: 420.992 | G34: 428.148864 | H34: 435.8555436 | I34: 444.1367989 | J34: 453.0195349 | K34: 462.0799256 | L34: 471.3215241 | M34: 480.7479545 | N34: 490.3629136 | O34: 500.1701719 | P34: 510.1735753 | Q34: 520.3770469 | R34: 530.7845878 | S34: 541.4002795 | T34: 552.2282851 | U34: 563.2728508 | V34: 574.5383079 | W34: 586.029074 | X34: 597.7496555 | Y34: 609.7046486 | Z34: 621.8987416 | AA34: 634.3367164 | AB34: 647.0234507 | AC34: 659.9639198 | AD34: 673.1631981 | AE34: 686.6264621 | AF34: 700.3589914 | AG34: 714.3661712 | AH34: 728.6534946 | AI34: 0 | AJ34: 0 | AK34: =AK71*AK88 -> 0 | AL34: 0 | AM34: 0 | AN34: 0 | AO34: 0 | AP34: 0 | AQ34: 0 | AR34: 0 | AS34: 0 | AT34: 0 | AU34: 0 | AV34: 0 | AW34: 0 | AX34: 0 | AY34: 0 | AZ34: 0 | BA34: 0 | BB34: 0
B35: =IF(Input!F106="No",0,1) -> 1 | C35: Energy plan (£) | D35: 38435.7339 | E35: =IF($B$35=0,0,IF(Input!$F$93="Yes",'Main calculation'!E77*E88,E76*E88)) -> 960 | F35: =IF($B$35=0,0,IF(Input!$F$93="Yes",'Main calculation'!F77*F88,F76*F88)) -> 971.52 | G35: =IF($B$35=0,0,IF(Input!$F$93="Yes",'Main calculation'!G77*G88,G76*G88)) -> 988.03584 | H35: =IF($B$35=0,0,IF(Input!$F$93="Yes",'Main calculation'!H77*H88,H76*H88)) -> 1005.820485 | I35: =IF($B$35=0,0,IF(Input!$F$93="Yes",'Main calculation'!I77*I88,I76*I88)) -> 1024.931074 | J35: =IF($B$35=0,0,IF(Input!$F$93="Yes",'Main calculation'!J77*J88,J76*J88)) -> 1045.429696 | K35: =IF($B$35=0,0,IF(Input!$F$93="Yes",'Main calculation'!K77*K88,K76*K88)) -> 1066.33829 | L35: =IF($B$35=0,0,IF(Input!$F$93="Yes",'Main calculation'!L77*L88,L76*L88)) -> 1087.665056 | M35: =IF($B$35=0,0,IF(Input!$F$93="Yes",'Main calculation'!M77*M88,M76*M88)) -> 1109.418357 | N35: =IF($B$35=0,0,IF(Input!$F$93="Yes",'Main calculation'!N77*N88,N76*N88)) -> 1131.606724 | O35: =IF($B$35=0,0,IF(Input!$F$93="Yes",'Main calculation'!O77*O88,O76*O88)) -> 1154.238858 | P35: =IF($B$35=0,0,IF(Input!$F$93="Yes",'Main calculation'!P77*P88,P76*P88)) -> 1177.323635 | Q35: =IF($B$35=0,0,IF(Input!$F$93="Yes",'Main calculation'!Q77*Q88,Q76*Q88)) -> 1200.870108 | R35: =IF($B$35=0,0,IF(Input!$F$93="Yes",'Main calculation'!R77*R88,R76*R88)) -> 1224.88751 | S35: =IF($B$35=0,0,IF(Input!$F$93="Yes",'Main calculation'!S77*S88,S76*S88)) -> 1249.38526 | T35: =IF($B$35=0,0,IF(Input!$F$93="Yes",'Main calculation'!T77*T88,T76*T88)) -> 1274.372966 | U35: =IF($B$35=0,0,IF(Input!$F$93="Yes",'Main calculation'!U77*U88,U76*U88)) -> 1299.860425 | V35: =IF($B$35=0,0,IF(Input!$F$93="Yes",'Main calculation'!V77*V88,V76*V88)) -> 1325.857634 | W35: =IF($B$35=0,0,IF(Input!$F$93="Yes",'Main calculation'!W77*W88,W76*W88)) -> 1352.374786 | X35: =IF($B$35=0,0,IF(Input!$F$93="Yes",'Main calculation'!X77*X88,X76*X88)) -> 1379.422282 | Y35: =IF($B$35=0,0,IF(Input!$F$93="Yes",'Main calculation'!Y77*Y88,Y76*Y88)) -> 1407.010728 | Z35: =IF($B$35=0,0,IF(Input!$F$93="Yes",'Main calculation'!Z77*Z88,Z76*Z88)) -> 1435.150942 | AA35: =IF($B$35=0,0,IF(Input!$F$93="Yes",'Main calculation'!AA77*AA88,AA76*AA88)) -> 1463.853961 | AB35: =IF($B$35=0,0,IF(Input!$F$93="Yes",'Main calculation'!AB77*AB88,AB76*AB88)) -> 1493.13104 | AC35: =IF($B$35=0,0,IF(Input!$F$93="Yes",'Main calculation'!AC77*AC88,AC76*AC88)) -> 1522.993661 | AD35: =IF($B$35=0,0,IF(Input!$F$93="Yes",'Main calculation'!AD77*AD88,AD76*AD88)) -> 1553.453534 | AE35: =IF($B$35=0,0,IF(Input!$F$93="Yes",'Main calculation'!AE77*AE88,AE76*AE88)) -> 1584.522605 | AF35: =IF($B$35=0,0,IF(Input!$F$93="Yes",'Main calculation'!AF77*AF88,AF76*AF88)) -> 1616.213057 | AG35: =IF($B$35=0,0,IF(Input!$F$93="Yes",'Main calculation'!AG77*AG88,AG76*AG88)) -> 1648.537318 | AH35: =IF($B$35=0,0,IF(Input!$F$93="Yes",'Main calculation'!AH77*AH88,AH76*AH88)) -> 1681.508064 | AI35: =IF($B$35=0,0,IF(Input!$F$93="Yes",'Main calculation'!AI77*AI88,AI76*AI88)) -> 0 | AJ35: =IF($B$35=0,0,IF(Input!$F$93="Yes",'Main calculation'!AJ77*AJ88,AJ76*AJ88)) -> 0 | AK35: =IF($B$35=0,0,IF(Input!$F$93="Yes",'Main calculation'!AK77*AK88,AK76*AK88)) -> 0 | AL35: =IF($B$35=0,0,IF(Input!$F$93="Yes",'Main calculation'!AL77*AL88,AL76*AL88)) -> 0 | AM35: =IF($B$35=0,0,IF(Input!$F$93="Yes",'Main calculation'!AM77*AM88,AM76*AM88)) -> 0 | AN35: =IF($B$35=0,0,IF(Input!$F$93="Yes",'Main calculation'!AN77*AN88,AN76*AN88)) -> 0 | AO35: =IF($B$35=0,0,IF(Input!$F$93="Yes",'Main calculation'!AO77*AO88,AO76*AO88)) -> 0 | AP35: =IF($B$35=0,0,IF(Input!$F$93="Yes",'Main calculation'!AP77*AP88,AP76*AP88)) -> 0 | AQ35: =IF($B$35=0,0,IF(Input!$F$93="Yes",'Main calculation'!AQ77*AQ88,AQ76*AQ88)) -> 0 | AR35: =IF($B$35=0,0,IF(Input!$F$93="Yes",'Main calculation'!AR77*AR88,AR76*AR88)) -> 0 | AS35: =IF($B$35=0,0,IF(Input!$F$93="Yes",'Main calculation'!AS77*AS88,AS76*AS88)) -> 0 | AT35: =IF($B$35=0,0,IF(Input!$F$93="Yes",'Main calculation'!AT77*AT88,AT76*AT88)) -> 0 | AU35: =IF($B$35=0,0,IF(Input!$F$93="Yes",'Main calculation'!AU77*AU88,AU76*AU88)) -> 0 | AV35: =IF($B$35=0,0,IF(Input!$F$93="Yes",'Main calculation'!AV77*AV88,AV76*AV88)) -> 0 | AW35: =IF($B$35=0,0,IF(Input!$F$93="Yes",'Main calculation'!AW77*AW88,AW76*AW88)) -> 0 | AX35: =IF($B$35=0,0,IF(Input!$F$93="Yes",'Main calculation'!AX77*AX88,AX76*AX88)) -> 0 | AY35: =IF($B$35=0,0,IF(Input!$F$93="Yes",'Main calculation'!AY77*AY88,AY76*AY88)) -> 0 | AZ35: =IF($B$35=0,0,IF(Input!$F$93="Yes",'Main calculation'!AZ77*AZ88,AZ76*AZ88)) -> 0 | BA35: =IF($B$35=0,0,IF(Input!$F$93="Yes",'Main calculation'!BA77*BA88,BA76*BA88)) -> 0 | BB35: =IF($B$35=0,0,IF(Input!$F$93="Yes",'Main calculation'!BB77*BB88,BB76*BB88)) -> 0
B36: =IF(Input!F106="No",0,1) -> 1 | C36: Bad debt on energy plan (£) | D36: -384.357339 | E36: =IF($B$36=0,0,E35*'General assumptions'!$B$14) -> -9.6 | F36: =IF($B$36=0,0,F35*'General assumptions'!$B$14) -> -9.7152 | G36: =IF($B$36=0,0,G35*'General assumptions'!$B$14) -> -9.8803584 | H36: =IF($B$36=0,0,H35*'General assumptions'!$B$14) -> -10.05820485 | I36: =IF($B$36=0,0,I35*'General assumptions'!$B$14) -> -10.24931074 | J36: =IF($B$36=0,0,J35*'General assumptions'!$B$14) -> -10.45429696 | K36: =IF($B$36=0,0,K35*'General assumptions'!$B$14) -> -10.6633829 | L36: =IF($B$36=0,0,L35*'General assumptions'!$B$14) -> -10.87665056 | M36: =IF($B$36=0,0,M35*'General assumptions'!$B$14) -> -11.09418357 | N36: =IF($B$36=0,0,N35*'General assumptions'!$B$14) -> -11.31606724 | O36: =IF($B$36=0,0,O35*'General assumptions'!$B$14) -> -11.54238858 | P36: =IF($B$36=0,0,P35*'General assumptions'!$B$14) -> -11.77323635 | Q36: =IF($B$36=0,0,Q35*'General assumptions'!$B$14) -> -12.00870108 | R36: =IF($B$36=0,0,R35*'General assumptions'!$B$14) -> -12.2488751 | S36: =IF($B$36=0,0,S35*'General assumptions'!$B$14) -> -12.4938526 | T36: =IF($B$36=0,0,T35*'General assumptions'!$B$14) -> -12.74372966 | U36: =IF($B$36=0,0,U35*'General assumptions'!$B$14) -> -12.99860425 | V36: =IF($B$36=0,0,V35*'General assumptions'!$B$14) -> -13.25857634 | W36: =IF($B$36=0,0,W35*'General assumptions'!$B$14) -> -13.52374786 | X36: =IF($B$36=0,0,X35*'General assumptions'!$B$14) -> -13.79422282 | Y36: =IF($B$36=0,0,Y35*'General assumptions'!$B$14) -> -14.07010728 | Z36: =IF($B$36=0,0,Z35*'General assumptions'!$B$14) -> -14.35150942 | AA36: =IF($B$36=0,0,AA35*'General assumptions'!$B$14) -> -14.63853961 | AB36: =IF($B$36=0,0,AB35*'General assumptions'!$B$14) -> -14.9313104 | AC36: =IF($B$36=0,0,AC35*'General assumptions'!$B$14) -> -15.22993661 | AD36: =IF($B$36=0,0,AD35*'General assumptions'!$B$14) -> -15.53453534 | AE36: =IF($B$36=0,0,AE35*'General assumptions'!$B$14) -> -15.84522605 | AF36: =IF($B$36=0,0,AF35*'General assumptions'!$B$14) -> -16.16213057 | AG36: =IF($B$36=0,0,AG35*'General assumptions'!$B$14) -> -16.48537318 | AH36: =IF($B$36=0,0,AH35*'General assumptions'!$B$14) -> -16.81508064 | AI36: =IF($B$36=0,0,AI35*'General assumptions'!$B$14) -> 0 | AJ36: =IF($B$36=0,0,AJ35*'General assumptions'!$B$14) -> 0 | AK36: =IF($B$36=0,0,AK35*'General assumptions'!$B$14) -> 0 | AL36: =IF($B$36=0,0,AL35*'General assumptions'!$B$14) -> 0 | AM36: =IF($B$36=0,0,AM35*'General assumptions'!$B$14) -> 0 | AN36: =IF($B$36=0,0,AN35*'General assumptions'!$B$14) -> 0 | AO36: =IF($B$36=0,0,AO35*'General assumptions'!$B$14) -> 0 | AP36: =IF($B$36=0,0,AP35*'General assumptions'!$B$14) -> 0 | AQ36: =IF($B$36=0,0,AQ35*'General assumptions'!$B$14) -> 0 | AR36: =IF($B$36=0,0,AR35*'General assumptions'!$B$14) -> 0 | AS36: =IF($B$36=0,0,AS35*'General assumptions'!$B$14) -> 0 | AT36: =IF($B$36=0,0,AT35*'General assumptions'!$B$14) -> 0 | AU36: =IF($B$36=0,0,AU35*'General assumptions'!$B$14) -> 0 | AV36: =IF($B$36=0,0,AV35*'General assumptions'!$B$14) -> 0 | AW36: =IF($B$36=0,0,AW35*'General assumptions'!$B$14) -> 0 | AX36: =IF($B$36=0,0,AX35*'General assumptions'!$B$14) -> 0 | AY36: =IF($B$36=0,0,AY35*'General assumptions'!$B$14) -> 0 | AZ36: =IF($B$36=0,0,AZ35*'General assumptions'!$B$14) -> 0 | BA36: =IF($B$36=0,0,BA35*'General assumptions'!$B$14) -> 0 | BB36: =IF($B$36=0,0,BB35*'General assumptions'!$B$14) -> 0
C37: Residual value at lifetime end (£) | D37: 0 | E37: =IF(E6=Input!$F$21,Input!$F$22,0) -> 0 | F37: =IF(F6=Input!$F$21,Input!$F$22,0) -> 0 | G37: =IF(G6=Input!$F$21,Input!$F$22,0) -> 0 | H37: =IF(H6=Input!$F$21,Input!$F$22,0) -> 0 | I37: =IF(I6=Input!$F$21,Input!$F$22,0) -> 0 | J37: =IF(J6=Input!$F$21,Input!$F$22,0) -> 0 | K37: =IF(K6=Input!$F$21,Input!$F$22,0) -> 0 | L37: =IF(L6=Input!$F$21,Input!$F$22,0) -> 0 | M37: =IF(M6=Input!$F$21,Input!$F$22,0) -> 0 | N37: =IF(N6=Input!$F$21,Input!$F$22,0) -> 0 | O37: =IF(O6=Input!$F$21,Input!$F$22,0) -> 0 | P37: =IF(P6=Input!$F$21,Input!$F$22,0) -> 0 | Q37: =IF(Q6=Input!$F$21,Input!$F$22,0) -> 0 | R37: =IF(R6=Input!$F$21,Input!$F$22,0) -> 0 | S37: =IF(S6=Input!$F$21,Input!$F$22,0) -> 0 | T37: =IF(T6=Input!$F$21,Input!$F$22,0) -> 0 | U37: =IF(U6=Input!$F$21,Input!$F$22,0) -> 0 | V37: =IF(V6=Input!$F$21,Input!$F$22,0) -> 0 | W37: =IF(W6=Input!$F$21,Input!$F$22,0) -> 0 | X37: =IF(X6=Input!$F$21,Input!$F$22,0) -> 0 | Y37: =IF(Y6=Input!$F$21,Input!$F$22,0) -> 0 | Z37: =IF(Z6=Input!$F$21,Input!$F$22,0) -> 0 | AA37: =IF(AA6=Input!$F$21,Input!$F$22,0) -> 0 | AB37: =IF(AB6=Input!$F$21,Input!$F$22,0) -> 0 | AC37: =IF(AC6=Input!$F$21,Input!$F$22,0) -> 0 | AD37: =IF(AD6=Input!$F$21,Input!$F$22,0) -> 0 | AE37: =IF(AE6=Input!$F$21,Input!$F$22,0) -> 0 | AF37: =IF(AF6=Input!$F$21,Input!$F$22,0) -> 0 | AG37: =IF(AG6=Input!$F$21,Input!$F$22,0) -> 0 | AH37: =IF(AH6=Input!$F$21,Input!$F$22,0) -> 0 | AI37: =IF(AI6=Input!$F$21,Input!$F$22,0) -> 0 | AJ37: =IF(AJ6=Input!$F$21,Input!$F$22,0) -> 0 | AK37: =IF(AK6=Input!$F$21,Input!$F$22,0) -> 0 | AL37: =IF(AL6=Input!$F$21,Input!$F$22,0) -> 0 | AM37: =IF(AM6=Input!$F$21,Input!$F$22,0) -> 0 | AN37: =IF(AN6=Input!$F$21,Input!$F$22,0) -> 0 | AO37: =IF(AO6=Input!$F$21,Input!$F$22,0) -> 0 | AP37: =IF(AP6=Input!$F$21,Input!$F$22,0) -> 0 | AQ37: =IF(AQ6=Input!$F$21,Input!$F$22,0) -> 0 | AR37: =IF(AR6=Input!$F$21,Input!$F$22,0) -> 0 | AS37: =IF(AS6=Input!$F$21,Input!$F$22,0) -> 0 | AT37: =IF(AT6=Input!$F$21,Input!$F$22,0) -> 0 | AU37: =IF(AU6=Input!$F$21,Input!$F$22,0) -> 0 | AV37: =IF(AV6=Input!$F$21,Input!$F$22,0) -> 0 | AW37: =IF(AW6=Input!$F$21,Input!$F$22,0) -> 0 | AX37: =IF(AX6=Input!$F$21,Input!$F$22,0) -> 0 | AY37: =IF(AY6=Input!$F$21,Input!$F$22,0) -> 0 | AZ37: =IF(AZ6=Input!$F$21,Input!$F$22,0) -> 0 | BA37: =IF(BA6=Input!$F$21,Input!$F$22,0) -> 0 | BB37: =IF(BB6=Input!$F$21,Input!$F$22,0) -> 0
B38: =IF(Input!F107="No",0,1) -> 1 | C38: Income from solar PV (generation tariff) | D38: 3731.5 | E38: =IF($B$38=0,0,Input!$F$76*Input!$F$75/100*E80) -> 186.575 | F38: =IF($B$38=0,0,Input!$F$76*Input!$F$75/100*F80) -> 186.575 | G38: =IF($B$38=0,0,Input!$F$76*Input!$F$75/100*G80) -> 186.575 | H38: =IF($B$38=0,0,Input!$F$76*Input!$F$75/100*H80) -> 186.575 | I38: =IF($B$38=0,0,Input!$F$76*Input!$F$75/100*I80) -> 186.575 | J38: =IF($B$38=0,0,Input!$F$76*Input!$F$75/100*J80) -> 186.575 | K38: =IF($B$38=0,0,Input!$F$76*Input!$F$75/100*K80) -> 186.575 | L38: =IF($B$38=0,0,Input!$F$76*Input!$F$75/100*L80) -> 186.575 | M38: =IF($B$38=0,0,Input!$F$76*Input!$F$75/100*M80) -> 186.575 | N38: =IF($B$38=0,0,Input!$F$76*Input!$F$75/100*N80) -> 186.575 | O38: =IF($B$38=0,0,Input!$F$76*Input!$F$75/100*O80) -> 186.575 | P38: =IF($B$38=0,0,Input!$F$76*Input!$F$75/100*P80) -> 186.575 | Q38: =IF($B$38=0,0,Input!$F$76*Input!$F$75/100*Q80) -> 186.575 | R38: =IF($B$38=0,0,Input!$F$76*Input!$F$75/100*R80) -> 186.575 | S38: =IF($B$38=0,0,Input!$F$76*Input!$F$75/100*S80) -> 186.575 | T38: =IF($B$38=0,0,Input!$F$76*Input!$F$75/100*T80) -> 186.575 | U38: =IF($B$38=0,0,Input!$F$76*Input!$F$75/100*U80) -> 186.575 | V38: =IF($B$38=0,0,Input!$F$76*Input!$F$75/100*V80) -> 186.575 | W38: =IF($B$38=0,0,Input!$F$76*Input!$F$75/100*W80) -> 186.575 | X38: =IF($B$38=0,0,Input!$F$76*Input!$F$75/100*X80) -> 186.575 | Y38: =IF($B$38=0,0,Input!$F$76*Input!$F$75/100*Y80) -> 0 | Z38: =IF($B$38=0,0,Input!$F$76*Input!$F$75/100*Z80) -> 0 | AA38: =IF($B$38=0,0,Input!$F$76*Input!$F$75/100*AA80) -> 0 | AB38: =IF($B$38=0,0,Input!$F$76*Input!$F$75/100*AB80) -> 0 | AC38: =IF($B$38=0,0,Input!$F$76*Input!$F$75/100*AC80) -> 0 | AD38: =IF($B$38=0,0,Input!$F$76*Input!$F$75/100*AD80) -> 0 | AE38: =IF($B$38=0,0,Input!$F$76*Input!$F$75/100*AE80) -> 0 | AF38: =IF($B$38=0,0,Input!$F$76*Input!$F$75/100*AF80) -> 0 | AG38: =IF($B$38=0,0,Input!$F$76*Input!$F$75/100*AG80) -> 0 | AH38: =IF($B$38=0,0,Input!$F$76*Input!$F$75/100*AH80) -> 0 | AI38: =IF($B$38=0,0,Input!$F$76*Input!$F$75/100*AI80) -> 0 | AJ38: =IF($B$38=0,0,Input!$F$76*Input!$F$75/100*AJ80) -> 0 | AK38: =IF($B$38=0,0,Input!$F$76*Input!$F$75/100*AK80) -> 0 | AL38: =IF($B$38=0,0,Input!$F$76*Input!$F$75/100*AL80) -> 0 | AM38: =IF($B$38=0,0,Input!$F$76*Input!$F$75/100*AM80) -> 0 | AN38: =IF($B$38=0,0,Input!$F$76*Input!$F$75/100*AN80) -> 0 | AO38: =IF($B$38=0,0,Input!$F$76*Input!$F$75/100*AO80) -> 0 | AP38: =IF($B$38=0,0,Input!$F$76*Input!$F$75/100*AP80) -> 0 | AQ38: =IF($B$38=0,0,Input!$F$76*Input!$F$75/100*AQ80) -> 0 | AR38: =IF($B$38=0,0,Input!$F$76*Input!$F$75/100*AR80) -> 0 | AS38: =IF($B$38=0,0,Input!$F$76*Input!$F$75/100*AS80) -> 0 | AT38: =IF($B$38=0,0,Input!$F$76*Input!$F$75/100*AT80) -> 0 | AU38: =IF($B$38=0,0,Input!$F$76*Input!$F$75/100*AU80) -> 0 | AV38: =IF($B$38=0,0,Input!$F$76*Input!$F$75/100*AV80) -> 0 | AW38: =IF($B$38=0,0,Input!$F$76*Input!$F$75/100*AW80) -> 0 | AX38: =IF($B$38=0,0,Input!$F$76*Input!$F$75/100*AX80) -> 0 | AY38: =IF($B$38=0,0,Input!$F$76*Input!$F$75/100*AY80) -> 0 | AZ38: =IF($B$38=0,0,Input!$F$76*Input!$F$75/100*AZ80) -> 0 | BA38: =IF($B$38=0,0,Input!$F$76*Input!$F$75/100*BA80) -> 0 | BB38: =IF($B$38=0,0,Input!$F$76*Input!$F$75/100*BB80) -> 0
B39: =IF(Input!F107="No",0,1) -> 1 | C39: Income from solar PV (export tariff) | D39: 2604.947676 | E39: =IF($B$39=0,0,E78*E79/100*E80) -> 102.5471875 | F39: 104.3812439 | G39: 106.9751179 | H39: 109.7398898 | I39: 112.6853084 | J39: 115.4855383 | K39: 118.355354 | L39: 121.2964845 | M39: 124.3107022 | N39: 127.3998231 | O39: 130.5657087 | P39: 133.8102666 | Q39: 137.1354517 | R39: 140.5432677 | S39: 144.0357679 | T39: 147.6150567 | U39: 151.2832909 | V39: 155.0426806 | W39: 158.8954912 | X39: 162.8440442 | Y39: 0 | Z39: 0 | AA39: 0 | AB39: 0 | AC39: 0 | AD39: 0 | AE39: 0 | AF39: 0 | AG39: 0 | AH39: 0 | AI39: 0 | AJ39: 0 | AK39: =IF($B$39=0,0,AK78*AK79/100*AK80) -> 0 | AL39: 0 | AM39: 0 | AN39: 0 | AO39: 0 | AP39: 0 | AQ39: 0 | AR39: 0 | AS39: 0 | AT39: 0 | AU39: 0 | AV39: 0 | AW39: 0 | AX39: 0 | AY39: 0 | AZ39: 0 | BA39: 0 | BB39: 0
C40: Income from ASHP (RHI)
C41: Income from GSHP (RHI)
C42: Income from solar thermal (RHI)
B43: Total revenue | D43: =SUM(E43:BB43) -> 229742.1433 | E43: =SUM(E32:E42) -> 6308.799387 | F43: =SUM(F32:F42) -> 6280.497472 | G43: 6260.531447 | H43: 6243.002927 | I43: 6227.998383 | J43: 6344.903455 | K43: 6468.630128 | L43: 6594.845255 | M43: 6723.598948 | N43: 6854.942333 | O43: 6988.927569 | P43: 7125.607864 | Q43: 7265.037501 | R43: 7407.271858 | S43: 7552.36743 | T43: 7700.381852 | U43: 7851.373923 | V43: 8005.403625 | W43: 8162.532154 | X43: 8322.821941 | Y43: 8132.870954 | Z43: 8295.528373 | AA43: 8461.438941 | AB43: 8630.66772 | AC43: 8803.281074 | AD43: 8979.346696 | AE43: 9158.93363 | AF43: 9342.112302 | AG43: 9528.954548 | AH43: 9719.533639 | AI43: 0 | AJ43: 0 | AK43: 0 | AL43: 0 | AM43: 0 | AN43: 0 | AO43: 0 | AP43: 0 | AQ43: 0 | AR43: 0 | AS43: 0 | AT43: 0 | AU43: 0 | AV43: 0 | AW43: 0 | AX43: 0 | AY43: 0 | AZ43: 0 | BA43: 0 | BB43: 0
B45: Operating cost
C46: Management costs | D46: =SUM(E46:BB46) -> 36146.15857 | E46: =Input!F36*'Main calculation'!E88 -> 891 | F46: =(E46+(E46*'General assumptions'!$B$18))*F88 -> 908.82 | G46: =(F46+(F46*'General assumptions'!$B$18))*G88 -> 926.9964 | H46: =(G46+(G46*'General assumptions'!$B$18))*H88 -> 945.536328 | I46: =(H46+(H46*'General assumptions'!$B$18))*I88 -> 964.4470546 | J46: =(I46+(I46*'General assumptions'!$B$18))*J88 -> 983.7359957 | K46: =(J46+(J46*'General assumptions'!$B$18))*K88 -> 1003.410716 | L46: =(K46+(K46*'General assumptions'!$B$18))*L88 -> 1023.47893 | M46: =(L46+(L46*'General assumptions'!$B$18))*M88 -> 1043.948508 | N46: =(M46+(M46*'General assumptions'!$B$18))*N88 -> 1064.827479 | O46: =(N46+(N46*'General assumptions'!$B$18))*O88 -> 1086.124028 | P46: =(O46+(O46*'General assumptions'!$B$18))*P88 -> 1107.846509 | Q46: =(P46+(P46*'General assumptions'!$B$18))*Q88 -> 1130.003439 | R46: =(Q46+(Q46*'General assumptions'!$B$18))*R88 -> 1152.603508 | S46: =(R46+(R46*'General assumptions'!$B$18))*S88 -> 1175.655578 | T46: =(S46+(S46*'General assumptions'!$B$18))*T88 -> 1199.168689 | U46: =(T46+(T46*'General assumptions'!$B$18))*U88 -> 1223.152063 | V46: =(U46+(U46*'General assumptions'!$B$18))*V88 -> 1247.615105 | W46: =(V46+(V46*'General assumptions'!$B$18))*W88 -> 1272.567407 | X46: =(W46+(W46*'General assumptions'!$B$18))*X88 -> 1298.018755 | Y46: =(X46+(X46*'General assumptions'!$B$18))*Y88 -> 1323.97913 | Z46: =(Y46+(Y46*'General assumptions'!$B$18))*Z88 -> 1350.458712 | AA46: =(Z46+(Z46*'General assumptions'!$B$18))*AA88 -> 1377.467887 | AB46: =(AA46+(AA46*'General assumptions'!$B$18))*AB88 -> 1405.017244 | AC46: =(AB46+(AB46*'General assumptions'!$B$18))*AC88 -> 1433.117589 | AD46: =(AC46+(AC46*'General assumptions'!$B$18))*AD88 -> 1461.779941 | AE46: =(AD46+(AD46*'General assumptions'!$B$18))*AE88 -> 1491.01554 | AF46: =(AE46+(AE46*'General assumptions'!$B$18))*AF88 -> 1520.835851 | AG46: =(AF46+(AF46*'General assumptions'!$B$18))*AG88 -> 1551.252568 | AH46: =(AG46+(AG46*'General assumptions'!$B$18))*AH88 -> 1582.277619 | AI46: =(AH46+(AH46*'General assumptions'!$B$18))*AI88 -> 0 | AJ46: =(AI46+(AI46*'General assumptions'!$B$18))*AJ88 -> 0 | AK46: =(AJ46+(AJ46*'General assumptions'!$B$18))*AK88 -> 0 | AL46: =(AK46+(AK46*'General assumptions'!$B$18))*AL88 -> 0 | AM46: =(AL46+(AL46*'General assumptions'!$B$18))*AM88 -> 0 | AN46: =(AM46+(AM46*'General assumptions'!$B$18))*AN88 -> 0 | AO46: =(AN46+(AN46*'General assumptions'!$B$18))*AO88 -> 0 | AP46: =(AO46+(AO46*'General assumptions'!$B$18))*AP88 -> 0 | AQ46: =(AP46+(AP46*'General assumptions'!$B$18))*AQ88 -> 0 | AR46: =(AQ46+(AQ46*'General assumptions'!$B$18))*AR88 -> 0 | AS46: =(AR46+(AR46*'General assumptions'!$B$18))*AS88 -> 0 | AT46: =(AS46+(AS46*'General assumptions'!$B$18))*AT88 -> 0 | AU46: =(AT46+(AT46*'General assumptions'!$B$18))*AU88 -> 0 | AV46: =(AU46+(AU46*'General assumptions'!$B$18))*AV88 -> 0 | AW46: =(AV46+(AV46*'General assumptions'!$B$18))*AW88 -> 0 | AX46: =(AW46+(AW46*'General assumptions'!$B$18))*AX88 -> 0 | AY46: =(AX46+(AX46*'General assumptions'!$B$18))*AY88 -> 0 | AZ46: =(AY46+(AY46*'General assumptions'!$B$18))*AZ88 -> 0 | BA46: =(AZ46+(AZ46*'General assumptions'!$B$18))*BA88 -> 0 | BB46: =(BA46+(BA46*'General assumptions'!$B$18))*BB88 -> 0
C47: Service costs
C48: Energiesprong maintenance | D48: =SUM(E48:BB48) -> 17128.125 | E48: =Input!$F$39*'Main calculation'!E88 -> 570.9375 | F48: =Input!$F$39*'Main calculation'!F88 -> 570.9375 | G48: =Input!$F$39*'Main calculation'!G88 -> 570.9375 | H48: =Input!$F$39*'Main calculation'!H88 -> 570.9375 | I48: =Input!$F$39*'Main calculation'!I88 -> 570.9375 | J48: =Input!$F$39*'Main calculation'!J88 -> 570.9375 | K48: =Input!$F$39*'Main calculation'!K88 -> 570.9375 | L48: =Input!$F$39*'Main calculation'!L88 -> 570.9375 | M48: =Input!$F$39*'Main calculation'!M88 -> 570.9375 | N48: =Input!$F$39*'Main calculation'!N88 -> 570.9375 | O48: =Input!$F$39*'Main calculation'!O88 -> 570.9375 | P48: =Input!$F$39*'Main calculation'!P88 -> 570.9375 | Q48: =Input!$F$39*'Main calculation'!Q88 -> 570.9375 | R48: =Input!$F$39*'Main calculation'!R88 -> 570.9375 | S48: =Input!$F$39*'Main calculation'!S88 -> 570.9375 | T48: =Input!$F$39*'Main calculation'!T88 -> 570.9375 | U48: =Input!$F$39*'Main calculation'!U88 -> 570.9375 | V48: =Input!$F$39*'Main calculation'!V88 -> 570.9375 | W48: =Input!$F$39*'Main calculation'!W88 -> 570.9375 | X48: =Input!$F$39*'Main calculation'!X88 -> 570.9375 | Y48: =Input!$F$39*'Main calculation'!Y88 -> 570.9375 | Z48: =Input!$F$39*'Main calculation'!Z88 -> 570.9375 | AA48: =Input!$F$39*'Main calculation'!AA88 -> 570.9375 | AB48: =Input!$F$39*'Main calculation'!AB88 -> 570.9375 | AC48: =Input!$F$39*'Main calculation'!AC88 -> 570.9375 | AD48: =Input!$F$39*'Main calculation'!AD88 -> 570.9375 | AE48: =Input!$F$39*'Main calculation'!AE88 -> 570.9375 | AF48: =Input!$F$39*'Main calculation'!AF88 -> 570.9375 | AG48: =Input!$F$39*'Main calculation'!AG88 -> 570.9375 | AH48: =Input!$F$39*'Main calculation'!AH88 -> 570.9375 | AI48: =Input!$F$39*'Main calculation'!AI88 -> 0 | AJ48: =Input!$F$39*'Main calculation'!AJ88 -> 0 | AK48: =Input!$F$39*'Main calculation'!AK88 -> 0 | AL48: =Input!$F$39*'Main calculation'!AL88 -> 0 | AM48: =Input!$F$39*'Main calculation'!AM88 -> 0 | AN48: =Input!$F$39*'Main calculation'!AN88 -> 0 | AO48: =Input!$F$39*'Main calculation'!AO88 -> 0 | AP48: =Input!$F$39*'Main calculation'!AP88 -> 0 | AQ48: =Input!$F$39*'Main calculation'!AQ88 -> 0 | AR48: =Input!$F$39*'Main calculation'!AR88 -> 0 | AS48: =Input!$F$39*'Main calculation'!AS88 -> 0 | AT48: =Input!$F$39*'Main calculation'!AT88 -> 0 | AU48: =Input!$F$39*'Main calculation'!AU88 -> 0 | AV48: =Input!$F$39*'Main calculation'!AV88 -> 0 | AW48: =Input!$F$39*'Main calculation'!AW88 -> 0 | AX48: =Input!$F$39*'Main calculation'!AX88 -> 0 | AY48: =Input!$F$39*'Main calculation'!AY88 -> 0 | AZ48: =Input!$F$39*'Main calculation'!AZ88 -> 0 | BA48: =Input!$F$39*'Main calculation'!BA88 -> 0 | BB48: =Input!$F$39*'Main calculation'!BB88 -> 0
C49: Planned & routine maintenance (for non Energiesprong related work) | D49: =SUM(E49:BB49) -> 5603.240694 | E49: =Input!F40*'Main calculation'!E88 -> 190.3125 | F49: =((E49+(E49*'General assumptions'!$B$16))+((E49+(E49*'General assumptions'!$B$16))*F64))*F88 -> 188.744325 | G49: =((F49+(F49*'General assumptions'!$B$16))+((F49+(F49*'General assumptions'!$B$16))*G64))*G88 -> 188.113919 | H49: =((G49+(G49*'General assumptions'!$B$16))+((G49+(G49*'General assumptions'!$B$16))*H64))*H88 -> 187.6699701 | I49: =((H49+(H49*'General assumptions'!$B$16))+((H49+(H49*'General assumptions'!$B$16))*I64))*I88 -> 187.4109855 | J49: =((I49+(I49*'General assumptions'!$B$16))+((I49+(I49*'General assumptions'!$B$16))*J64))*J88 -> 187.3360212 | K49: =((J49+(J49*'General assumptions'!$B$16))+((J49+(J49*'General assumptions'!$B$16))*K64))*K88 -> 187.2610867 | L49: =((K49+(K49*'General assumptions'!$B$16))+((K49+(K49*'General assumptions'!$B$16))*L64))*L88 -> 187.1861823 | M49: =((L49+(L49*'General assumptions'!$B$16))+((L49+(L49*'General assumptions'!$B$16))*M64))*M88 -> 187.1113078 | N49: =((M49+(M49*'General assumptions'!$B$16))+((M49+(M49*'General assumptions'!$B$16))*N64))*N88 -> 187.0364633 | O49: =((N49+(N49*'General assumptions'!$B$16))+((N49+(N49*'General assumptions'!$B$16))*O64))*O88 -> 186.9616487 | P49: =((O49+(O49*'General assumptions'!$B$16))+((O49+(O49*'General assumptions'!$B$16))*P64))*P88 -> 186.8868641 | Q49: =((P49+(P49*'General assumptions'!$B$16))+((P49+(P49*'General assumptions'!$B$16))*Q64))*Q88 -> 186.8121093 | R49: =((Q49+(Q49*'General assumptions'!$B$16))+((Q49+(Q49*'General assumptions'!$B$16))*R64))*R88 -> 186.7373845 | S49: =((R49+(R49*'General assumptions'!$B$16))+((R49+(R49*'General assumptions'!$B$16))*S64))*S88 -> 186.6626895 | T49: =((S49+(S49*'General assumptions'!$B$16))+((S49+(S49*'General assumptions'!$B$16))*T64))*T88 -> 186.5880244 | U49: =((T49+(T49*'General assumptions'!$B$16))+((T49+(T49*'General assumptions'!$B$16))*U64))*U88 -> 186.5133892 | V49: =((U49+(U49*'General assumptions'!$B$16))+((U49+(U49*'General assumptions'!$B$16))*V64))*V88 -> 186.4387839 | W49: =((V49+(V49*'General assumptions'!$B$16))+((V49+(V49*'General assumptions'!$B$16))*W64))*W88 -> 186.3642084 | X49: =((W49+(W49*'General assumptions'!$B$16))+((W49+(W49*'General assumptions'!$B$16))*X64))*X88 -> 186.2896627 | Y49: =((X49+(X49*'General assumptions'!$B$16))+((X49+(X49*'General assumptions'!$B$16))*Y64))*Y88 -> 186.2151468 | Z49: =((Y49+(Y49*'General assumptions'!$B$16))+((Y49+(Y49*'General assumptions'!$B$16))*Z64))*Z88 -> 186.1406608 | AA49: =((Z49+(Z49*'General assumptions'!$B$16))+((Z49+(Z49*'General assumptions'!$B$16))*AA64))*AA88 -> 186.0662045 | AB49: =((AA49+(AA49*'General assumptions'!$B$16))+((AA49+(AA49*'General assumptions'!$B$16))*AB64))*AB88 -> 185.991778 | AC49: =((AB49+(AB49*'General assumptions'!$B$16))+((AB49+(AB49*'General assumptions'!$B$16))*AC64))*AC88 -> 185.9173813 | AD49: =((AC49+(AC49*'General assumptions'!$B$16))+((AC49+(AC49*'General assumptions'!$B$16))*AD64))*AD88 -> 185.8430144 | AE49: =((AD49+(AD49*'General assumptions'!$B$16))+((AD49+(AD49*'General assumptions'!$B$16))*AE64))*AE88 -> 185.7686771 | AF49: =((AE49+(AE49*'General assumptions'!$B$16))+((AE49+(AE49*'General assumptions'!$B$16))*AF64))*AF88 -> 185.6943697 | AG49: =((AF49+(AF49*'General assumptions'!$B$16))+((AF49+(AF49*'General assumptions'!$B$16))*AG64))*AG88 -> 185.6200919 | AH49: =((AG49+(AG49*'General assumptions'!$B$16))+((AG49+(AG49*'General assumptions'!$B$16))*AH64))*AH88 -> 185.5458439 | AI49: =((AH49+(AH49*'General assumptions'!$B$16))+((AH49+(AH49*'General assumptions'!$B$16))*AI64))*AI88 -> 0 | AJ49: =((AI49+(AI49*'General assumptions'!$B$16))+((AI49+(AI49*'General assumptions'!$B$16))*AJ64))*AJ88 -> 0 | AK49: =((AJ49+(AJ49*'General assumptions'!$B$16))+((AJ49+(AJ49*'General assumptions'!$B$16))*AK64))*AK88 -> 0 | AL49: =((AK49+(AK49*'General assumptions'!$B$16))+((AK49+(AK49*'General assumptions'!$B$16))*AL64))*AL88 -> 0 | AM49: =((AL49+(AL49*'General assumptions'!$B$16))+((AL49+(AL49*'General assumptions'!$B$16))*AM64))*AM88 -> 0 | AN49: =((AM49+(AM49*'General assumptions'!$B$16))+((AM49+(AM49*'General assumptions'!$B$16))*AN64))*AN88 -> 0 | AO49: =((AN49+(AN49*'General assumptions'!$B$16))+((AN49+(AN49*'General assumptions'!$B$16))*AO64))*AO88 -> 0 | AP49: =((AO49+(AO49*'General assumptions'!$B$16))+((AO49+(AO49*'General assumptions'!$B$16))*AP64))*AP88 -> 0 | AQ49: =((AP49+(AP49*'General assumptions'!$B$16))+((AP49+(AP49*'General assumptions'!$B$16))*AQ64))*AQ88 -> 0 | AR49: =((AQ49+(AQ49*'General assumptions'!$B$16))+((AQ49+(AQ49*'General assumptions'!$B$16))*AR64))*AR88 -> 0 | AS49: =((AR49+(AR49*'General assumptions'!$B$16))+((AR49+(AR49*'General assumptions'!$B$16))*AS64))*AS88 -> 0 | AT49: =((AS49+(AS49*'General assumptions'!$B$16))+((AS49+(AS49*'General assumptions'!$B$16))*AT64))*AT88 -> 0 | AU49: =((AT49+(AT49*'General assumptions'!$B$16))+((AT49+(AT49*'General assumptions'!$B$16))*AU64))*AU88 -> 0 | AV49: =((AU49+(AU49*'General assumptions'!$B$16))+((AU49+(AU49*'General assumptions'!$B$16))*AV64))*AV88 -> 0 | AW49: =((AV49+(AV49*'General assumptions'!$B$16))+((AV49+(AV49*'General assumptions'!$B$16))*AW64))*AW88 -> 0 | AX49: =((AW49+(AW49*'General assumptions'!$B$16))+((AW49+(AW49*'General assumptions'!$B$16))*AX64))*AX88 -> 0 | AY49: =((AX49+(AX49*'General assumptions'!$B$16))+((AX49+(AX49*'General assumptions'!$B$16))*AY64))*AY88 -> 0 | AZ49: =((AY49+(AY49*'General assumptions'!$B$16))+((AY49+(AY49*'General assumptions'!$B$16))*AZ64))*AZ88 -> 0 | BA49: =((AZ49+(AZ49*'General assumptions'!$B$16))+((AZ49+(AZ49*'General assumptions'!$B$16))*BA64))*BA88 -> 0 | BB49: =((BA49+(BA49*'General assumptions'!$B$16))+((BA49+(BA49*'General assumptions'!$B$16))*BB64))*BB88 -> 0
C50: Major repairs | D50: =SUM(E50:BB50) -> 11633.73318 | E50: =Input!$F$44*E88 -> 456.5 | F50: =((E50+(E50*'General assumptions'!$B$17))+((E50+(E50*'General assumptions'!$B$17))*F64))*F88 -> 448.11866 | G50: =((F50+(F50*'General assumptions'!$B$17))+((F50+(F50*'General assumptions'!$B$17))*G64))*G88 -> 442.0645769 | H50: =((G50+(G50*'General assumptions'!$B$17))+((G50+(G50*'General assumptions'!$B$17))*H64))*H88 -> 436.5210871 | I50: =((H50+(H50*'General assumptions'!$B$17))+((H50+(H50*'General assumptions'!$B$17))*I64))*I88 -> 431.4705381 | J50: =((I50+(I50*'General assumptions'!$B$17))+((I50+(I50*'General assumptions'!$B$17))*J64))*J88 -> 426.8969504 | K50: =((J50+(J50*'General assumptions'!$B$17))+((J50+(J50*'General assumptions'!$B$17))*K64))*K88 -> 422.3718428 | L50: =((K50+(K50*'General assumptions'!$B$17))+((K50+(K50*'General assumptions'!$B$17))*L64))*L88 -> 417.8947012 | M50: =((L50+(L50*'General assumptions'!$B$17))+((L50+(L50*'General assumptions'!$B$17))*M64))*M88 -> 413.4650174 | N50: =((M50+(M50*'General assumptions'!$B$17))+((M50+(M50*'General assumptions'!$B$17))*N64))*N88 -> 409.0822882 | O50: =((N50+(N50*'General assumptions'!$B$17))+((N50+(N50*'General assumptions'!$B$17))*O64))*O88 -> 404.7460159 | P50: =((O50+(O50*'General assumptions'!$B$17))+((O50+(O50*'General assumptions'!$B$17))*P64))*P88 -> 400.4557082 | Q50: =((P50+(P50*'General assumptions'!$B$17))+((P50+(P50*'General assumptions'!$B$17))*Q64))*Q88 -> 396.2108777 | R50: =((Q50+(Q50*'General assumptions'!$B$17))+((Q50+(Q50*'General assumptions'!$B$17))*R64))*R88 -> 392.0110424 | S50: =((R50+(R50*'General assumptions'!$B$17))+((R50+(R50*'General assumptions'!$B$17))*S64))*S88 -> 387.8557253 | T50: =((S50+(S50*'General assumptions'!$B$17))+((S50+(S50*'General assumptions'!$B$17))*T64))*T88 -> 383.7444546 | U50: =((T50+(T50*'General assumptions'!$B$17))+((T50+(T50*'General assumptions'!$B$17))*U64))*U88 -> 379.6767634 | V50: =((U50+(U50*'General assumptions'!$B$17))+((U50+(U50*'General assumptions'!$B$17))*V64))*V88 -> 375.6521897 | W50: =((V50+(V50*'General assumptions'!$B$17))+((V50+(V50*'General assumptions'!$B$17))*W64))*W88 -> 371.6702765 | X50: =((W50+(W50*'General assumptions'!$B$17))+((W50+(W50*'General assumptions'!$B$17))*X64))*X88 -> 367.7305716 | Y50: =((X50+(X50*'General assumptions'!$B$17))+((X50+(X50*'General assumptions'!$B$17))*Y64))*Y88 -> 363.8326275 | Z50: =((Y50+(Y50*'General assumptions'!$B$17))+((Y50+(Y50*'General assumptions'!$B$17))*Z64))*Z88 -> 359.9760017 | AA50: =((Z50+(Z50*'General assumptions'!$B$17))+((Z50+(Z50*'General assumptions'!$B$17))*AA64))*AA88 -> 356.160256 | AB50: =((AA50+(AA50*'General assumptions'!$B$17))+((AA50+(AA50*'General assumptions'!$B$17))*AB64))*AB88 -> 352.3849573 | AC50: =((AB50+(AB50*'General assumptions'!$B$17))+((AB50+(AB50*'General assumptions'!$B$17))*AC64))*AC88 -> 348.6496768 | AD50: =((AC50+(AC50*'General assumptions'!$B$17))+((AC50+(AC50*'General assumptions'!$B$17))*AD64))*AD88 -> 344.9539902 | AE50: =((AD50+(AD50*'General assumptions'!$B$17))+((AD50+(AD50*'General assumptions'!$B$17))*AE64))*AE88 -> 341.2974779 | AF50: =((AE50+(AE50*'General assumptions'!$B$17))+((AE50+(AE50*'General assumptions'!$B$17))*AF64))*AF88 -> 337.6797247 | AG50: =((AF50+(AF50*'General assumptions'!$B$17))+((AF50+(AF50*'General assumptions'!$B$17))*AG64))*AG88 -> 334.1003196 | AH50: =((AG50+(AG50*'General assumptions'!$B$17))+((AG50+(AG50*'General assumptions'!$B$17))*AH64))*AH88 -> 330.5588562 | AI50: =((AH50+(AH50*'General assumptions'!$B$17))+((AH50+(AH50*'General assumptions'!$B$17))*AI64))*AI88 -> 0 | AJ50: =((AI50+(AI50*'General assumptions'!$B$17))+((AI50+(AI50*'General assumptions'!$B$17))*AJ64))*AJ88 -> 0 | AK50: =((AJ50+(AJ50*'General assumptions'!$B$17))+((AJ50+(AJ50*'General assumptions'!$B$17))*AK64))*AK88 -> 0 | AL50: =((AK50+(AK50*'General assumptions'!$B$17))+((AK50+(AK50*'General assumptions'!$B$17))*AL64))*AL88 -> 0 | AM50: =((AL50+(AL50*'General assumptions'!$B$17))+((AL50+(AL50*'General assumptions'!$B$17))*AM64))*AM88 -> 0 | AN50: =((AM50+(AM50*'General assumptions'!$B$17))+((AM50+(AM50*'General assumptions'!$B$17))*AN64))*AN88 -> 0 | AO50: =((AN50+(AN50*'General assumptions'!$B$17))+((AN50+(AN50*'General assumptions'!$B$17))*AO64))*AO88 -> 0 | AP50: =((AO50+(AO50*'General assumptions'!$B$17))+((AO50+(AO50*'General assumptions'!$B$17))*AP64))*AP88 -> 0 | AQ50: =((AP50+(AP50*'General assumptions'!$B$17))+((AP50+(AP50*'General assumptions'!$B$17))*AQ64))*AQ88 -> 0 | AR50: =((AQ50+(AQ50*'General assumptions'!$B$17))+((AQ50+(AQ50*'General assumptions'!$B$17))*AR64))*AR88 -> 0 | AS50: =((AR50+(AR50*'General assumptions'!$B$17))+((AR50+(AR50*'General assumptions'!$B$17))*AS64))*AS88 -> 0 | AT50: =((AS50+(AS50*'General assumptions'!$B$17))+((AS50+(AS50*'General assumptions'!$B$17))*AT64))*AT88 -> 0 | AU50: =((AT50+(AT50*'General assumptions'!$B$17))+((AT50+(AT50*'General assumptions'!$B$17))*AU64))*AU88 -> 0 | AV50: =((AU50+(AU50*'General assumptions'!$B$17))+((AU50+(AU50*'General assumptions'!$B$17))*AV64))*AV88 -> 0 | AW50: =((AV50+(AV50*'General assumptions'!$B$17))+((AV50+(AV50*'General assumptions'!$B$17))*AW64))*AW88 -> 0 | AX50: =((AW50+(AW50*'General assumptions'!$B$17))+((AW50+(AW50*'General assumptions'!$B$17))*AX64))*AX88 -> 0 | AY50: =((AX50+(AX50*'General assumptions'!$B$17))+((AX50+(AX50*'General assumptions'!$B$17))*AY64))*AY88 -> 0 | AZ50: =((AY50+(AY50*'General assumptions'!$B$17))+((AY50+(AY50*'General assumptions'!$B$17))*AZ64))*AZ88 -> 0 | BA50: =((AZ50+(AZ50*'General assumptions'!$B$17))+((AZ50+(AZ50*'General assumptions'!$B$17))*BA64))*BA88 -> 0 | BB50: =((BA50+(BA50*'General assumptions'!$B$17))+((BA50+(BA50*'General assumptions'!$B$17))*BB64))*BB88 -> 0
C51: Electricity cost (adjusted for auto-consumption) | D51: =SUM(E51:BB51) -> 21736.01865 | E51: =((Input!F61*Input!F62*Input!F63/100)+Input!F64)*E88 -> 542.895264 | F51: =(E51+(E51*F64))*F88 -> 549.4100072 | G51: 558.7499773 | H51: 568.8074769 | I51: 579.6148189 | J51: 591.2071153 | K51: 603.0312576 | L51: 615.0918828 | M51: 627.3937204 | N51: 639.9415948 | O51: 652.7404267 | P51: 665.7952353 | Q51: 679.11114 | R51: 692.6933628 | S51: 706.54723 | T51: 720.6781746 | U51: 735.0917381 | V51: 749.7935729 | W51: 764.7894444 | X51: 780.0852332 | Y51: 795.6869379 | Z51: 811.6006767 | AA51: 827.8326902 | AB51: 844.389344 | AC51: 861.2771309 | AD51: 878.5026735 | AE51: 896.072727 | AF51: 913.9941815 | AG51: 932.2740651 | AH51: 950.9195464 | AI51: 0 | AJ51: 0 | AK51: 0 | AL51: =(AK51+(AK51*AL64))*AL88 -> 0 | AM51: 0 | AN51: 0 | AO51: 0 | AP51: 0 | AQ51: 0 | AR51: 0 | AS51: 0 | AT51: 0 | AU51: 0 | AV51: 0 | AW51: 0 | AX51: 0 | AY51: 0 | AZ51: 0 | BA51: 0 | BB51: 0
B53: Total operating cost | D53: =SUM(E53:BB53) -> 92247.27609 | E53: =SUM(E46:E52) -> 2651.645264 | F53: 2666.030492 | G53: 2686.862373 | H53: 2709.472362 | I53: 2733.880897 | J53: 2760.113583 | K53: 2787.012403 | L53: 2814.589196 | M53: 2842.856054 | N53: 2871.825325 | O53: 2901.50962 | P53: 2931.921816 | Q53: 2963.075066 | R53: 2994.982797 | S53: 3027.658723 | T53: 3061.116843 | U53: 3095.371454 | V53: 3130.437151 | W53: 3166.328836 | X53: 3203.061722 | Y53: 3240.651342 | Z53: 3279.113552 | AA53: 3318.464537 | AB53: 3358.720824 | AC53: 3399.899278 | AD53: 3442.017119 | AE53: 3485.091922 | AF53: 3529.141627 | AG53: 3574.184544 | AH53: 3620.239366 | AI53: 0 | AJ53: 0 | AK53: =SUM(AK46:AK52) -> 0 | AL53: 0 | AM53: 0 | AN53: 0 | AO53: 0 | AP53: 0 | AQ53: 0 | AR53: 0 | AS53: 0 | AT53: 0 | AU53: 0 | AV53: 0 | AW53: 0 | AX53: 0 | AY53: 0 | AZ53: 0 | BA53: 0 | BB53: 0
B55: Annual result | D55: =SUM(E55:BB55) -> 137494.8672 | E55: =E43-E53 -> 3657.154123 | F55: 3614.46698 | G55: 3573.669074 | H55: 3533.530565 | I55: 3494.117485 | J55: 3584.789872 | K55: 3681.617726 | L55: 3780.256058 | M55: 3880.742893 | N55: 3983.117008 | O55: 4087.41795 | P55: 4193.686048 | Q55: 4301.962435 | R55: 4412.289061 | S55: 4524.708708 | T55: 4639.265009 | U55: 4756.002468 | V55: 4874.966474 | W55: 4996.203319 | X55: 5119.760218 | Y55: 4892.219612 | Z55: 5016.414822 | AA55: 5142.974404 | AB55: 5271.946896 | AC55: 5403.381796 | AD55: 5537.329576 | AE55: 5673.841708 | AF55: 5812.970676 | AG55: 5954.770004 | AH55: 6099.294274 | AI55: 0 | AJ55: 0 | AK55: =AK43-AK53 -> 0 | AL55: 0 | AM55: 0 | AN55: 0 | AO55: 0 | AP55: 0 | AQ55: 0 | AR55: 0 | AS55: 0 | AT55: 0 | AU55: 0 | AV55: 0 | AW55: 0 | AX55: 0 | AY55: 0 | AZ55: 0 | BA55: 0 | BB55: 0
B57: Lifetime value (not discounted) | E57: =SUM(E55:BB55) -> 137494.8672
B58: Net present value (NPV) | E58: =NPV(Input!F96,'Main calculation'!E55:BB55) -> 80126.08533 | F58: =Input!F96 -> 0.035 | G58: Discount rate applied as per input table.
A60: CALCULATION TABLES
B62: Indexation
C63: Inflation (Retail Price Index) | E63: ='General assumptions'!C8 -> 0.011 | F63: ='General assumptions'!D8 -> 0.023 | G63: ='General assumptions'!E8 -> 0.03 | H63: ='General assumptions'!F8 -> 0.031 | I63: ='General assumptions'!G8 -> 0.032 | J63: ='General assumptions'!$B$8 -> 0.03 | K63: ='General assumptions'!$B$8 -> 0.03 | L63: ='General assumptions'!$B$8 -> 0.03 | M63: ='General assumptions'!$B$8 -> 0.03 | N63: ='General assumptions'!$B$8 -> 0.03 | O63: ='General assumptions'!$B$8 -> 0.03 | P63: ='General assumptions'!$B$8 -> 0.03 | Q63: ='General assumptions'!$B$8 -> 0.03 | R63: ='General assumptions'!$B$8 -> 0.03 | S63: ='General assumptions'!$B$8 -> 0.03 | T63: ='General assumptions'!$B$8 -> 0.03 | U63: ='General assumptions'!$B$8 -> 0.03 | V63: ='General assumptions'!$B$8 -> 0.03 | W63: ='General assumptions'!$B$8 -> 0.03 | X63: ='General assumptions'!$B$8 -> 0.03 | Y63: ='General assumptions'!$B$8 -> 0.03 | Z63: ='General assumptions'!$B$8 -> 0.03 | AA63: ='General assumptions'!$B$8 -> 0.03 | AB63: ='General assumptions'!$B$8 -> 0.03 | AC63: ='General assumptions'!$B$8 -> 0.03 | AD63: ='General assumptions'!$B$8 -> 0.03 | AE63: ='General assumptions'!$B$8 -> 0.03 | AF63: ='General assumptions'!$B$8 -> 0.03 | AG63: ='General assumptions'!$B$8 -> 0.03 | AH63: ='General assumptions'!$B$8 -> 0.03 | AI63: ='General assumptions'!$B$8 -> 0.03 | AJ63: ='General assumptions'!$B$8 -> 0.03 | AK63: ='General assumptions'!$B$8 -> 0.03 | AL63: ='General assumptions'!$B$8 -> 0.03 | AM63: ='General assumptions'!$B$8 -> 0.03 | AN63: ='General assumptions'!$B$8 -> 0.03 | AO63: ='General assumptions'!$B$8 -> 0.03 | AP63: ='General assumptions'!$B$8 -> 0.03 | AQ63: ='General assumptions'!$B$8 -> 0.03 | AR63: ='General assumptions'!$B$8 -> 0.03 | AS63: ='General assumptions'!$B$8 -> 0.03 | AT63: ='General assumptions'!$B$8 -> 0.03 | AU63: ='General assumptions'!$B$8 -> 0.03 | AV63: ='General assumptions'!$B$8 -> 0.03 | AW63: ='General assumptions'!$B$8 -> 0.03 | AX63: ='General assumptions'!$B$8 -> 0.03 | AY63: ='General assumptions'!$B$8 -> 0.03 | AZ63: ='General assumptions'!$B$8 -> 0.03 | BA63: ='General assumptions'!$B$8 -> 0.03 | BB63: ='General assumptions'!$B$8 -> 0.03
C64: Inflation (CPI) | E64: ='General assumptions'!C9 -> 0 | F64: ='General assumptions'!D9 -> 0.012 | G64: ='General assumptions'!E9 -> 0.017 | H64: ='General assumptions'!F9 -> 0.018 | I64: ='General assumptions'!G9 -> 0.019 | J64: ='General assumptions'!H9 -> 0.02 | K64: ='General assumptions'!I9 -> 0.02 | L64: ='General assumptions'!$B$9 -> 0.02 | M64: ='General assumptions'!$B$9 -> 0.02 | N64: ='General assumptions'!$B$9 -> 0.02 | O64: ='General assumptions'!$B$9 -> 0.02 | P64: ='General assumptions'!$B$9 -> 0.02 | Q64: ='General assumptions'!$B$9 -> 0.02 | R64: ='General assumptions'!$B$9 -> 0.02 | S64: ='General assumptions'!$B$9 -> 0.02 | T64: ='General assumptions'!$B$9 -> 0.02 | U64: ='General assumptions'!$B$9 -> 0.02 | V64: ='General assumptions'!$B$9 -> 0.02 | W64: ='General assumptions'!$B$9 -> 0.02 | X64: ='General assumptions'!$B$9 -> 0.02 | Y64: ='General assumptions'!$B$9 -> 0.02 | Z64: ='General assumptions'!$B$9 -> 0.02 | AA64: ='General assumptions'!$B$9 -> 0.02 | AB64: ='General assumptions'!$B$9 -> 0.02 | AC64: ='General assumptions'!$B$9 -> 0.02 | AD64: ='General assumptions'!$B$9 -> 0.02 | AE64: ='General assumptions'!$B$9 -> 0.02 | AF64: ='General assumptions'!$B$9 -> 0.02 | AG64: ='General assumptions'!$B$9 -> 0.02 | AH64: ='General assumptions'!$B$9 -> 0.02 | AI64: ='General assumptions'!$B$9 -> 0.02 | AJ64: ='General assumptions'!$B$9 -> 0.02 | AK64: ='General assumptions'!$B$9 -> 0.02 | AL64: ='General assumptions'!$B$9 -> 0.02 | AM64: ='General assumptions'!$B$9 -> 0.02 | AN64: ='General assumptions'!$B$9 -> 0.02 | AO64: ='General assumptions'!$B$9 -> 0.02 | AP64: ='General assumptions'!$B$9 -> 0.02 | AQ64: ='General assumptions'!$B$9 -> 0.02 | AR64: ='General assumptions'!$B$9 -> 0.02 | AS64: ='General assumptions'!$B$9 -> 0.02 | AT64: ='General assumptions'!$B$9 -> 0.02 | AU64: ='General assumptions'!$B$9 -> 0.02 | AV64: ='General assumptions'!$B$9 -> 0.02 | AW64: ='General assumptions'!$B$9 -> 0.02 | AX64: ='General assumptions'!$B$9 -> 0.02 | AY64: ='General assumptions'!$B$9 -> 0.02 | AZ64: ='General assumptions'!$B$9 -> 0.02 | BA64: ='General assumptions'!$B$9 -> 0.02 | BB64: ='General assumptions'!$B$9 -> 0.02
C65: Rent (indexed and adjusted for cuts) | E65: =Input!$F$27*'General assumptions'!$B$7 -> 4700.28 | F65: =E69 -> 4653.2772 | G65: =F69 -> 4606.744428 | H65: 4560.676984 | I65: 4515.070214 | J65: 4600.856548 | K65: 4692.873679 | L65: 4786.731152 | M65: 4882.465776 | N65: 4980.115091 | O65: 5079.717393 | P65: 5181.311741 | Q65: 5284.937976 | R65: 5390.636735 | S65: 5498.44947 | T65: 5608.418459 | U65: 5720.586828 | V65: 5834.998565 | W65: 5951.698536 | X65: 6070.732507 | Y65: 6192.147157 | Z65: 6315.9901 | AA65: 6442.309902 | AB65: 6571.1561 | AC65: 6702.579222 | AD65: 6836.630807 | AE65: 6973.363423 | AF65: 7112.830691 | AG65: 7255.087305 | AH65: 7400.189051 | AI65: 7548.192832 | AJ65: 7699.156689 | AK65: 7853.139823 | AL65: 8010.202619 | AM65: 8170.406671 | AN65: 8333.814805 | AO65: 8500.491101 | AP65: 8670.500923 | AQ65: 8843.910942 | AR65: 9020.78916 | AS65: 9201.204944 | AT65: 9385.229042 | AU65: 9572.933623 | AV65: 9764.392296 | AW65: 9959.680142 | AX65: 10158.87374 | AY65: 10362.05122 | AZ65: 10569.29224 | BA65: 10780.67809 | BB65: 10996.29165
C66: Rent increase (formula CPI+1%) | E66: =IF(E6<'General assumptions'!$B$13+1,0,'Main calculation'!E65*('Main calculation'!E64+'General assumptions'!$B$11)) -> 0 | F66: =IF(F6<'General assumptions'!$B$13+1,0,'Main calculation'!F65*('Main calculation'!F64+'General assumptions'!$B$11)) -> 0 | G66: =IF(G6<'General assumptions'!$B$13+1,0,'Main calculation'!G65*('Main calculation'!G64+'General assumptions'!$B$11)) -> 0 | H66: =IF(H6<'General assumptions'!$B$13+1,0,'Main calculation'!H65*('Main calculation'!H64+'General assumptions'!$B$11)) -> 0 | I66: =IF(I6<'General assumptions'!$B$13+1,0,'Main calculation'!I65*('Main calculation'!I64+'General assumptions'!$B$11)) -> 85.78633406 | J66: =IF(J6<'General assumptions'!$B$13+1,0,'Main calculation'!J65*('Main calculation'!J64+'General assumptions'!$B$11)) -> 92.01713096 | K66: =IF(K6<'General assumptions'!$B$13+1,0,'Main calculation'!K65*('Main calculation'!K64+'General assumptions'!$B$11)) -> 93.85747358 | L66: =IF(L6<'General assumptions'!$B$13+1,0,'Main calculation'!L65*('Main calculation'!L64+'General assumptions'!$B$11)) -> 95.73462305 | M66: =IF(M6<'General assumptions'!$B$13+1,0,'Main calculation'!M65*('Main calculation'!M64+'General assumptions'!$B$11)) -> 97.64931551 | N66: =IF(N6<'General assumptions'!$B$13+1,0,'Main calculation'!N65*('Main calculation'!N64+'General assumptions'!$B$11)) -> 99.60230182 | O66: =IF(O6<'General assumptions'!$B$13+1,0,'Main calculation'!O65*('Main calculation'!O64+'General assumptions'!$B$11)) -> 101.5943479 | P66: =IF(P6<'General assumptions'!$B$13+1,0,'Main calculation'!P65*('Main calculation'!P64+'General assumptions'!$B$11)) -> 103.6262348 | Q66: =IF(Q6<'General assumptions'!$B$13+1,0,'Main calculation'!Q65*('Main calculation'!Q64+'General assumptions'!$B$11)) -> 105.6987595 | R66: =IF(R6<'General assumptions'!$B$13+1,0,'Main calculation'!R65*('Main calculation'!R64+'General assumptions'!$B$11)) -> 107.8127347 | S66: =IF(S6<'General assumptions'!$B$13+1,0,'Main calculation'!S65*('Main calculation'!S64+'General assumptions'!$B$11)) -> 109.9689894 | T66: =IF(T6<'General assumptions'!$B$13+1,0,'Main calculation'!T65*('Main calculation'!T64+'General assumptions'!$B$11)) -> 112.1683692 | U66: =IF(U6<'General assumptions'!$B$13+1,0,'Main calculation'!U65*('Main calculation'!U64+'General assumptions'!$B$11)) -> 114.4117366 | V66: =IF(V6<'General assumptions'!$B$13+1,0,'Main calculation'!V65*('Main calculation'!V64+'General assumptions'!$B$11)) -> 116.6999713 | W66: =IF(W6<'General assumptions'!$B$13+1,0,'Main calculation'!W65*('Main calculation'!W64+'General assumptions'!$B$11)) -> 119.0339707 | X66: =IF(X6<'General assumptions'!$B$13+1,0,'Main calculation'!X65*('Main calculation'!X64+'General assumptions'!$B$11)) -> 121.4146501 | Y66: =IF(Y6<'General assumptions'!$B$13+1,0,'Main calculation'!Y65*('Main calculation'!Y64+'General assumptions'!$B$11)) -> 123.8429431 | Z66: =IF(Z6<'General assumptions'!$B$13+1,0,'Main calculation'!Z65*('Main calculation'!Z64+'General assumptions'!$B$11)) -> 126.319802 | AA66: =IF(AA6<'General assumptions'!$B$13+1,0,'Main calculation'!AA65*('Main calculation'!AA64+'General assumptions'!$B$11)) -> 128.846198 | AB66: =IF(AB6<'General assumptions'!$B$13+1,0,'Main calculation'!AB65*('Main calculation'!AB64+'General assumptions'!$B$11)) -> 131.423122 | AC66: =IF(AC6<'General assumptions'!$B$13+1,0,'Main calculation'!AC65*('Main calculation'!AC64+'General assumptions'!$B$11)) -> 134.0515844 | AD66: =IF(AD6<'General assumptions'!$B$13+1,0,'Main calculation'!AD65*('Main calculation'!AD64+'General assumptions'!$B$11)) -> 136.7326161 | AE66: =IF(AE6<'General assumptions'!$B$13+1,0,'Main calculation'!AE65*('Main calculation'!AE64+'General assumptions'!$B$11)) -> 139.4672685 | AF66: =IF(AF6<'General assumptions'!$B$13+1,0,'Main calculation'!AF65*('Main calculation'!AF64+'General assumptions'!$B$11)) -> 142.2566138 | AG66: =IF(AG6<'General assumptions'!$B$13+1,0,'Main calculation'!AG65*('Main calculation'!AG64+'General assumptions'!$B$11)) -> 145.1017461 | AH66: =IF(AH6<'General assumptions'!$B$13+1,0,'Main calculation'!AH65*('Main calculation'!AH64+'General assumptions'!$B$11)) -> 148.003781 | AI66: =IF(AI6<'General assumptions'!$B$13+1,0,'Main calculation'!AI65*('Main calculation'!AI64+'General assumptions'!$B$11)) -> 150.9638566 | AJ66: =IF(AJ6<'General assumptions'!$B$13+1,0,'Main calculation'!AJ65*('Main calculation'!AJ64+'General assumptions'!$B$11)) -> 153.9831338 | AK66: =IF(AK6<'General assumptions'!$B$13+1,0,'Main calculation'!AK65*('Main calculation'!AK64+'General assumptions'!$B$11)) -> 157.0627965 | AL66: =IF(AL6<'General assumptions'!$B$13+1,0,'Main calculation'!AL65*('Main calculation'!AL64+'General assumptions'!$B$11)) -> 160.2040524 | AM66: =IF(AM6<'General assumptions'!$B$13+1,0,'Main calculation'!AM65*('Main calculation'!AM64+'General assumptions'!$B$11)) -> 163.4081334 | AN66: =IF(AN6<'General assumptions'!$B$13+1,0,'Main calculation'!AN65*('Main calculation'!AN64+'General assumptions'!$B$11)) -> 166.6762961 | AO66: =IF(AO6<'General assumptions'!$B$13+1,0,'Main calculation'!AO65*('Main calculation'!AO64+'General assumptions'!$B$11)) -> 170.009822 | AP66: =IF(AP6<'General assumptions'!$B$13+1,0,'Main calculation'!AP65*('Main calculation'!AP64+'General assumptions'!$B$11)) -> 173.4100185 | AQ66: =IF(AQ6<'General assumptions'!$B$13+1,0,'Main calculation'!AQ65*('Main calculation'!AQ64+'General assumptions'!$B$11)) -> 176.8782188 | AR66: =IF(AR6<'General assumptions'!$B$13+1,0,'Main calculation'!AR65*('Main calculation'!AR64+'General assumptions'!$B$11)) -> 180.4157832 | AS66: =IF(AS6<'General assumptions'!$B$13+1,0,'Main calculation'!AS65*('Main calculation'!AS64+'General assumptions'!$B$11)) -> 184.0240989 | AT66: =IF(AT6<'General assumptions'!$B$13+1,0,'Main calculation'!AT65*('Main calculation'!AT64+'General assumptions'!$B$11)) -> 187.7045808 | AU66: =IF(AU6<'General assumptions'!$B$13+1,0,'Main calculation'!AU65*('Main calculation'!AU64+'General assumptions'!$B$11)) -> 191.4586725 | AV66: =IF(AV6<'General assumptions'!$B$13+1,0,'Main calculation'!AV65*('Main calculation'!AV64+'General assumptions'!$B$11)) -> 195.2878459 | AW66: =IF(AW6<'General assumptions'!$B$13+1,0,'Main calculation'!AW65*('Main calculation'!AW64+'General assumptions'!$B$11)) -> 199.1936028 | AX66: =IF(AX6<'General assumptions'!$B$13+1,0,'Main calculation'!AX65*('Main calculation'!AX64+'General assumptions'!$B$11)) -> 203.1774749 | AY66: =IF(AY6<'General assumptions'!$B$13+1,0,'Main calculation'!AY65*('Main calculation'!AY64+'General assumptions'!$B$11)) -> 207.2410244 | AZ66: =IF(AZ6<'General assumptions'!$B$13+1,0,'Main calculation'!AZ65*('Main calculation'!AZ64+'General assumptions'!$B$11)) -> 211.3858449 | BA66: =IF(BA6<'General assumptions'!$B$13+1,0,'Main calculation'!BA65*('Main calculation'!BA64+'General assumptions'!$B$11)) -> 215.6135618 | BB66: =IF(BB6<'General assumptions'!$B$13+1,0,'Main calculation'!BB65*('Main calculation'!BB64+'General assumptions'!$B$11)) -> 219.925833
C67: Rent cuts (-1% year on year) | E67: =IF(E6<'General assumptions'!$B$13+1,'Main calculation'!E65*'General assumptions'!$B$12,0) -> -47.0028 | F67: =IF(F6<'General assumptions'!$B$13+1,'Main calculation'!F65*'General assumptions'!$B$12,0) -> -46.532772 | G67: =IF(G6<'General assumptions'!$B$13+1,'Main calculation'!G65*'General assumptions'!$B$12,0) -> -46.06744428 | H67: =IF(H6<'General assumptions'!$B$13+1,'Main calculation'!H65*'General assumptions'!$B$12,0) -> -45.60676984 | I67: =IF(I6<'General assumptions'!$B$13+1,'Main calculation'!I65*'General assumptions'!$B$12,0) -> 0 | J67: =IF(J6<'General assumptions'!$B$13+1,'Main calculation'!J65*'General assumptions'!$B$12,0) -> 0 | K67: =IF(K6<'General assumptions'!$B$13+1,'Main calculation'!K65*'General assumptions'!$B$12,0) -> 0 | L67: =IF(L6<'General assumptions'!$B$13+1,'Main calculation'!L65*'General assumptions'!$B$12,0) -> 0 | M67: =IF(M6<'General assumptions'!$B$13+1,'Main calculation'!M65*'General assumptions'!$B$12,0) -> 0 | N67: =IF(N6<'General assumptions'!$B$13+1,'Main calculation'!N65*'General assumptions'!$B$12,0) -> 0 | O67: =IF(O6<'General assumptions'!$B$13+1,'Main calculation'!O65*'General assumptions'!$B$12,0) -> 0 | P67: =IF(P6<'General assumptions'!$B$13+1,'Main calculation'!P65*'General assumptions'!$B$12,0) -> 0 | Q67: =IF(Q6<'General assumptions'!$B$13+1,'Main calculation'!Q65*'General assumptions'!$B$12,0) -> 0 | R67: =IF(R6<'General assumptions'!$B$13+1,'Main calculation'!R65*'General assumptions'!$B$12,0) -> 0 | S67: =IF(S6<'General assumptions'!$B$13+1,'Main calculation'!S65*'General assumptions'!$B$12,0) -> 0 | T67: =IF(T6<'General assumptions'!$B$13+1,'Main calculation'!T65*'General assumptions'!$B$12,0) -> 0 | U67: =IF(U6<'General assumptions'!$B$13+1,'Main calculation'!U65*'General assumptions'!$B$12,0) -> 0 | V67: =IF(V6<'General assumptions'!$B$13+1,'Main calculation'!V65*'General assumptions'!$B$12,0) -> 0 | W67: =IF(W6<'General assumptions'!$B$13+1,'Main calculation'!W65*'General assumptions'!$B$12,0) -> 0 | X67: =IF(X6<'General assumptions'!$B$13+1,'Main calculation'!X65*'General assumptions'!$B$12,0) -> 0 | Y67: =IF(Y6<'General assumptions'!$B$13+1,'Main calculation'!Y65*'General assumptions'!$B$12,0) -> 0 | Z67: =IF(Z6<'General assumptions'!$B$13+1,'Main calculation'!Z65*'General assumptions'!$B$12,0) -> 0 | AA67: =IF(AA6<'General assumptions'!$B$13+1,'Main calculation'!AA65*'General assumptions'!$B$12,0) -> 0 | AB67: =IF(AB6<'General assumptions'!$B$13+1,'Main calculation'!AB65*'General assumptions'!$B$12,0) -> 0 | AC67: =IF(AC6<'General assumptions'!$B$13+1,'Main calculation'!AC65*'General assumptions'!$B$12,0) -> 0 | AD67: =IF(AD6<'General assumptions'!$B$13+1,'Main calculation'!AD65*'General assumptions'!$B$12,0) -> 0 | AE67: =IF(AE6<'General assumptions'!$B$13+1,'Main calculation'!AE65*'General assumptions'!$B$12,0) -> 0 | AF67: =IF(AF6<'General assumptions'!$B$13+1,'Main calculation'!AF65*'General assumptions'!$B$12,0) -> 0 | AG67: =IF(AG6<'General assumptions'!$B$13+1,'Main calculation'!AG65*'General assumptions'!$B$12,0) -> 0 | AH67: =IF(AH6<'General assumptions'!$B$13+1,'Main calculation'!AH65*'General assumptions'!$B$12,0) -> 0 | AI67: =IF(AI6<'General assumptions'!$B$13+1,'Main calculation'!AI65*'General assumptions'!$B$12,0) -> 0 | AJ67: =IF(AJ6<'General assumptions'!$B$13+1,'Main calculation'!AJ65*'General assumptions'!$B$12,0) -> 0 | AK67: =IF(AK6<'General assumptions'!$B$13+1,'Main calculation'!AK65*'General assumptions'!$B$12,0) -> 0 | AL67: =IF(AL6<'General assumptions'!$B$13+1,'Main calculation'!AL65*'General assumptions'!$B$12,0) -> 0 | AM67: =IF(AM6<'General assumptions'!$B$13+1,'Main calculation'!AM65*'General assumptions'!$B$12,0) -> 0 | AN67: =IF(AN6<'General assumptions'!$B$13+1,'Main calculation'!AN65*'General assumptions'!$B$12,0) -> 0 | AO67: =IF(AO6<'General assumptions'!$B$13+1,'Main calculation'!AO65*'General assumptions'!$B$12,0) -> 0 | AP67: =IF(AP6<'General assumptions'!$B$13+1,'Main calculation'!AP65*'General assumptions'!$B$12,0) -> 0 | AQ67: =IF(AQ6<'General assumptions'!$B$13+1,'Main calculation'!AQ65*'General assumptions'!$B$12,0) -> 0 | AR67: =IF(AR6<'General assumptions'!$B$13+1,'Main calculation'!AR65*'General assumptions'!$B$12,0) -> 0 | AS67: =IF(AS6<'General assumptions'!$B$13+1,'Main calculation'!AS65*'General assumptions'!$B$12,0) -> 0 | AT67: =IF(AT6<'General assumptions'!$B$13+1,'Main calculation'!AT65*'General assumptions'!$B$12,0) -> 0 | AU67: =IF(AU6<'General assumptions'!$B$13+1,'Main calculation'!AU65*'General assumptions'!$B$12,0) -> 0 | AV67: =IF(AV6<'General assumptions'!$B$13+1,'Main calculation'!AV65*'General assumptions'!$B$12,0) -> 0 | AW67: =IF(AW6<'General assumptions'!$B$13+1,'Main calculation'!AW65*'General assumptions'!$B$12,0) -> 0 | AX67: =IF(AX6<'General assumptions'!$B$13+1,'Main calculation'!AX65*'General assumptions'!$B$12,0) -> 0 | AY67: =IF(AY6<'General assumptions'!$B$13+1,'Main calculation'!AY65*'General assumptions'!$B$12,0) -> 0 | AZ67: =IF(AZ6<'General assumptions'!$B$13+1,'Main calculation'!AZ65*'General assumptions'!$B$12,0) -> 0 | BA67: =IF(BA6<'General assumptions'!$B$13+1,'Main calculation'!BA65*'General assumptions'!$B$12,0) -> 0 | BB67: =IF(BB6<'General assumptions'!$B$13+1,'Main calculation'!BB65*'General assumptions'!$B$12,0) -> 0
C68: Rent change | E68: =E66+E67 -> -47.0028 | F68: =F66+F67 -> -46.532772 | G68: -46.06744428 | H68: -45.60676984 | I68: 85.78633406 | J68: 92.01713096 | K68: 93.85747358 | L68: 95.73462305 | M68: 97.64931551 | N68: 99.60230182 | O68: 101.5943479 | P68: 103.6262348 | Q68: 105.6987595 | R68: 107.8127347 | S68: 109.9689894 | T68: 112.1683692 | U68: 114.4117366 | V68: 116.6999713 | W68: 119.0339707 | X68: 121.4146501 | Y68: 123.8429431 | Z68: 126.319802 | AA68: 128.846198 | AB68: 131.423122 | AC68: 134.0515844 | AD68: 136.7326161 | AE68: 139.4672685 | AF68: 142.2566138 | AG68: 145.1017461 | AH68: 148.003781 | AI68: 150.9638566 | AJ68: 153.9831338 | AK68: 157.0627965 | AL68: 160.2040524 | AM68: 163.4081334 | AN68: 166.6762961 | AO68: 170.009822 | AP68: 173.4100185 | AQ68: 176.8782188 | AR68: 180.4157832 | AS68: 184.0240989 | AT68: 187.7045808 | AU68: 191.4586725 | AV68: 195.2878459 | AW68: 199.1936028 | AX68: 203.1774749 | AY68: 207.2410244 | AZ68: 211.3858449 | BA68: 215.6135618 | BB68: 219.925833
C69: Rent indexed (formula/cuts) | E69: =E65+E68 -> 4653.2772 | F69: =F65+F68 -> 4606.744428 | G69: 4560.676984 | H69: 4515.070214 | I69: 4600.856548 | J69: 4692.873679 | K69: 4786.731152 | L69: 4882.465776 | M69: 4980.115091 | N69: 5079.717393 | O69: 5181.311741 | P69: 5284.937976 | Q69: 5390.636735 | R69: 5498.44947 | S69: 5608.418459 | T69: 5720.586828 | U69: 5834.998565 | V69: 5951.698536 | W69: 6070.732507 | X69: 6192.147157 | Y69: 6315.9901 | Z69: 6442.309902 | AA69: 6571.1561 | AB69: 6702.579222 | AC69: 6836.630807 | AD69: 6973.363423 | AE69: 7112.830691 | AF69: 7255.087305 | AG69: 7400.189051 | AH69: 7548.192832 | AI69: 7699.156689 | AJ69: 7853.139823 | AK69: 8010.202619 | AL69: 8170.406671 | AM69: 8333.814805 | AN69: 8500.491101 | AO69: 8670.500923 | AP69: 8843.910942 | AQ69: 9020.78916 | AR69: 9201.204944 | AS69: 9385.229042 | AT69: 9572.933623 | AU69: 9764.392296 | AV69: 9959.680142 | AW69: 10158.87374 | AX69: 10362.05122 | AY69: 10569.29224 | AZ69: 10780.67809 | BA69: 10996.29165 | BB69: 11216.21748
C70: Service charge pre renovation (indexed) | E70: =Input!F30*'General assumptions'!B7 -> 416 | F70: =E70+(E70*F64) -> 420.992 | G70: =F70+(F70*G64) -> 428.148864 | H70: 435.8555436 | I70: 444.1367989 | J70: 453.0195349 | K70: 462.0799256 | L70: 471.3215241 | M70: 480.7479545 | N70: 490.3629136 | O70: 500.1701719 | P70: 510.1735753 | Q70: 520.3770469 | R70: 530.7845878 | S70: 541.4002795 | T70: 552.2282851 | U70: 563.2728508 | V70: 574.5383079 | W70: 586.029074 | X70: 597.7496555 | Y70: 609.7046486 | Z70: 621.8987416 | AA70: 634.3367164 | AB70: 647.0234507 | AC70: 659.9639198 | AD70: 673.1631981 | AE70: 686.6264621 | AF70: 700.3589914 | AG70: 714.3661712 | AH70: 728.6534946 | AI70: 743.2265645 | AJ70: 758.0910958 | AK70: 773.2529177 | AL70: 788.7179761 | AM70: 804.4923356 | AN70: 820.5821823 | AO70: 836.9938259 | AP70: 853.7337025 | AQ70: 870.8083765 | AR70: 888.224544 | AS70: 905.9890349 | AT70: 924.1088156 | AU70: 942.5909919 | AV70: 961.4428118 | AW70: 980.671668 | AX70: 1000.285101 | AY70: 1020.290803 | AZ70: 1040.696619 | BA70: 1061.510552 | BB70: 1082.740763
C71: Service charge post renovation (indexed) | E71: =Input!F31*'General assumptions'!B7 -> 416 | F71: =E71+(E71*F64) -> 420.992 | G71: =F71+(F71*G64) -> 428.148864 | H71: 435.8555436 | I71: 444.1367989 | J71: 453.0195349 | K71: 462.0799256 | L71: 471.3215241 | M71: 480.7479545 | N71: 490.3629136 | O71: 500.1701719 | P71: 510.1735753 | Q71: 520.3770469 | R71: 530.7845878 | S71: 541.4002795 | T71: 552.2282851 | U71: 563.2728508 | V71: 574.5383079 | W71: 586.029074 | X71: 597.7496555 | Y71: 609.7046486 | Z71: 621.8987416 | AA71: 634.3367164 | AB71: 647.0234507 | AC71: 659.9639198 | AD71: 673.1631981 | AE71: 686.6264621 | AF71: 700.3589914 | AG71: 714.3661712 | AH71: 728.6534946 | AI71: 743.2265645 | AJ71: 758.0910958 | AK71: 773.2529177 | AL71: 788.7179761 | AM71: 804.4923356 | AN71: 820.5821823 | AO71: 836.9938259 | AP71: 853.7337025 | AQ71: 870.8083765 | AR71: 888.224544 | AS71: 905.9890349 | AT71: 924.1088156 | AU71: 942.5909919 | AV71: 961.4428118 | AW71: 980.671668 | AX71: 1000.285101 | AY71: 1020.290803 | AZ71: 1040.696619 | BA71: 1061.510552 | BB71: 1082.740763
C72: Electricity inc. standing charges (CPI-linked) | E72: =Input!F56 -> 700.9130335 | F72: =E72+(E72*F64) -> 709.3239899 | G72: 721.3824977 | H72: 734.3673827 | I72: 748.3203629 | J72: 763.2867702 | K72: 778.5525056 | L72: 794.1235557 | M72: 810.0060268 | N72: 826.2061474 | O72: 842.7302703 | P72: 859.5848757 | Q72: 876.7765732 | R72: 894.3121047 | S72: 912.1983468 | T72: 930.4423137 | U72: 949.05116 | V72: 968.0321832 | W72: 987.3928269 | X72: 1007.140683 | Y72: 1027.283497 | Z72: 1047.829167 | AA72: 1068.78575 | AB72: 1090.161465 | AC72: 1111.964695 | AD72: 1134.203989 | AE72: 1156.888068 | AF72: 1180.02583 | AG72: 1203.626346 | AH72: 1227.698873 | AI72: 1252.252851 | AJ72: 1277.297908 | AK72: 1302.843866 | AL72: =AK72+(AK72*AL64) -> 1328.900743 | AM72: 1355.478758 | AN72: 1382.588333 | AO72: 1410.2401 | AP72: 1438.444902 | AQ72: 1467.2138 | AR72: 1496.558076 | AS72: 1526.489237 | AT72: 1557.019022 | AU72: 1588.159403 | AV72: 1619.922591 | AW72: 1652.321042 | AX72: 1685.367463 | AY72: 1719.074813 | AZ72: 1753.456309 | BA72: 1788.525435 | BB72: 1824.295944
C73: Post refurbishment electricity standing charge | E73: =Input!F64 -> 54 | F73: =E73+(E73*F64) -> 54.648 | G73: =F73+(F73*G64) -> 55.577016 | H73: 56.57740229 | I73: 57.65237293 | J73: 58.80542039 | K73: 59.9815288 | L73: 61.18115937 | M73: 62.40478256 | N73: 63.65287821 | O73: 64.92593578 | P73: 66.22445449 | Q73: 67.54894358 | R73: 68.89992245 | S73: 70.2779209 | T73: 71.68347932 | U73: 73.11714891 | V73: 74.57949189 | W73: 76.07108172 | X73: 77.59250336 | Y73: 79.14435342 | Z73: 80.72724049 | AA73: 82.3417853 | AB73: 83.98862101 | AC73: 85.66839343 | AD73: 87.3817613 | AE73: 89.12939652 | AF73: 90.91198445 | AG73: 92.73022414 | AH73: 94.58482863 | AI73: 96.4765252 | AJ73: 98.4060557 | AK73: 100.3741768 | AL73: 102.3816604 | AM73: 104.4292936 | AN73: 106.5178794 | AO73: 108.648237 | AP73: 110.8212018 | AQ73: 113.0376258 | AR73: 115.2983783 | AS73: 117.6043459 | AT73: 119.9564328 | AU73: 122.3555615 | AV73: 124.8026727 | AW73: 127.2987261 | AX73: 129.8447007 | AY73: 132.4415947 | AZ73: 135.0904266 | BA73: 137.7922351 | BB73: 140.5480798
C74: Gas consumption inc. standing charges (CPI-linked) | E74: =Input!F57 -> 958.821366 | F74: =E74+(E74*F64) -> 970.3272224 | G74: 986.8227852 | H74: 1004.585595 | I74: 1023.672722 | J74: 1044.146176 | K74: 1065.0291 | L74: 1086.329682 | M74: 1108.056275 | N74: 1130.217401 | O74: 1152.821749 | P74: 1175.878184 | Q74: 1199.395747 | R74: 1223.383662 | S74: 1247.851336 | T74: 1272.808362 | U74: 1298.26453 | V74: 1324.22982 | W74: 1350.714417 | X74: 1377.728705 | Y74: 1405.283279 | Z74: 1433.388945 | AA74: 1462.056723 | AB74: 1491.297858 | AC74: 1521.123815 | AD74: 1551.546291 | AE74: 1582.577217 | AF74: 1614.228762 | AG74: 1646.513337 | AH74: 1679.443604 | AI74: 1713.032476 | AJ74: 1747.293125 | AK74: 1782.238988 | AL74: =AK74+(AK74*AL64) -> 1817.883767 | AM74: 1854.241443 | AN74: 1891.326272 | AO74: 1929.152797 | AP74: 1967.735853 | AQ74: 2007.09057 | AR74: 2047.232381 | AS74: 2088.177029 | AT74: 2129.94057 | AU74: 2172.539381 | AV74: 2215.990169 | AW74: 2260.309972 | AX74: 2305.516171 | AY74: 2351.626495 | AZ74: 2398.659025 | BA74: 2446.632205 | BB74: 2495.564849
C75: Water and sewage cost (CPI-linked) | E75: =Input!F66 -> 393 | F75: =E75+(E75*F64) -> 397.716 | G75: 404.477172 | H75: 411.7577611 | I75: 419.5811586 | J75: 427.9727817 | K75: 436.5322374 | L75: 445.2628821 | M75: 454.1681398 | N75: 463.2515025 | O75: 472.5165326 | P75: 481.9668632 | Q75: 491.6062005 | R75: 501.4383245 | S75: 511.467091 | T75: 521.6964328 | U75: 532.1303615 | V75: 542.7729687 | W75: 553.6284281 | X75: 564.7009967 | Y75: 575.9950166 | Z75: 587.5149169 | AA75: 599.2652153 | AB75: 611.2505196 | AC75: 623.47553 | AD75: 635.9450406 | AE75: 648.6639414 | AF75: 661.6372202 | AG75: 674.8699646 | AH75: 688.3673639 | AI75: 702.1347112 | AJ75: 716.1774054 | AK75: 730.5009535 | AL75: =AK75+(AK75*AL64) -> 745.1109726 | AM75: 760.013192 | AN75: 775.2134559 | AO75: 790.717725 | AP75: 806.5320795 | AQ75: 822.6627211 | AR75: 839.1159755 | AS75: 855.898295 | AT75: 873.0162609 | AU75: 890.4765861 | AV75: 908.2861178 | AW75: 926.4518402 | AX75: 944.980877 | AY75: 963.8804945 | AZ75: 983.1581044 | BA75: 1002.821267 | BB75: 1022.877692
C76: Energy plan (not indexed) | E76: =Input!$F$92*12 -> 960 | F76: =Input!$F$92*12 -> 960 | G76: =Input!$F$92*12 -> 960 | H76: =Input!$F$92*12 -> 960 | I76: =Input!$F$92*12 -> 960 | J76: =Input!$F$92*12 -> 960 | K76: =Input!$F$92*12 -> 960 | L76: =Input!$F$92*12 -> 960 | M76: =Input!$F$92*12 -> 960 | N76: =Input!$F$92*12 -> 960 | O76: =Input!$F$92*12 -> 960 | P76: =Input!$F$92*12 -> 960 | Q76: =Input!$F$92*12 -> 960 | R76: =Input!$F$92*12 -> 960 | S76: =Input!$F$92*12 -> 960 | T76: =Input!$F$92*12 -> 960 | U76: =Input!$F$92*12 -> 960 | V76: =Input!$F$92*12 -> 960 | W76: =Input!$F$92*12 -> 960 | X76: =Input!$F$92*12 -> 960 | Y76: =Input!$F$92*12 -> 960 | Z76: =Input!$F$92*12 -> 960 | AA76: =Input!$F$92*12 -> 960 | AB76: =Input!$F$92*12 -> 960 | AC76: =Input!$F$92*12 -> 960 | AD76: =Input!$F$92*12 -> 960 | AE76: =Input!$F$92*12 -> 960 | AF76: =Input!$F$92*12 -> 960 | AG76: =Input!$F$92*12 -> 960 | AH76: =Input!$F$92*12 -> 960 | AI76: =Input!$F$92*12 -> 960 | AJ76: =Input!$F$92*12 -> 960 | AK76: =Input!$F$92*12 -> 960 | AL76: =Input!$F$92*12 -> 960 | AM76: =Input!$F$92*12 -> 960 | AN76: =Input!$F$92*12 -> 960 | AO76: =Input!$F$92*12 -> 960 | AP76: =Input!$F$92*12 -> 960 | AQ76: =Input!$F$92*12 -> 960 | AR76: =Input!$F$92*12 -> 960 | AS76: =Input!$F$92*12 -> 960 | AT76: =Input!$F$92*12 -> 960 | AU76: =Input!$F$92*12 -> 960 | AV76: =Input!$F$92*12 -> 960 | AW76: =Input!$F$92*12 -> 960 | AX76: =Input!$F$92*12 -> 960 | AY76: =Input!$F$92*12 -> 960 | AZ76: =Input!$F$92*12 -> 960 | BA76: =Input!$F$92*12 -> 960 | BB76: =Input!$F$92*12 -> 960
C77: Energy plan (linked to CPI) | E77: =E76 -> 960 | F77: =E77+(E77*F64) -> 971.52 | G77: 988.03584 | H77: 1005.820485 | I77: 1024.931074 | J77: 1045.429696 | K77: 1066.33829 | L77: 1087.665056 | M77: 1109.418357 | N77: 1131.606724 | O77: 1154.238858 | P77: 1177.323635 | Q77: 1200.870108 | R77: 1224.88751 | S77: 1249.38526 | T77: 1274.372966 | U77: 1299.860425 | V77: 1325.857634 | W77: 1352.374786 | X77: 1379.422282 | Y77: 1407.010728 | Z77: 1435.150942 | AA77: 1463.853961 | AB77: 1493.13104 | AC77: 1522.993661 | AD77: 1553.453534 | AE77: 1584.522605 | AF77: 1616.213057 | AG77: 1648.537318 | AH77: 1681.508064 | AI77: 1715.138226 | AJ77: 1749.44099 | AK77: 1784.42981 | AL77: =AK77+(AK77*AL64) -> 1820.118406 | AM77: 1856.520774 | AN77: 1893.65119 | AO77: 1931.524214 | AP77: 1970.154698 | AQ77: 2009.557792 | AR77: 2049.748948 | AS77: 2090.743927 | AT77: 2132.558805 | AU77: 2175.209981 | AV77: 2218.714181 | AW77: 2263.088465 | AX77: 2308.350234 | AY77: 2354.517239 | AZ77: 2401.607583 | BA77: 2449.639735 | BB77: 2498.63253
C78: Solar PV (export tariff) - RPI-linked | E78: =Input!F73 -> 4.85 | F78: ='Main calculation'!E78+E78*'Main calculation'!F63 -> 4.96155 | G78: ='Main calculation'!F78+F78*'Main calculation'!G63 -> 5.1103965 | H78: ='Main calculation'!G78+G78*'Main calculation'!H63 -> 5.268818792 | I78: ='Main calculation'!H78+H78*'Main calculation'!I63 -> 5.437420993 | J78: ='Main calculation'!I78+I78*'Main calculation'!J63 -> 5.600543623 | K78: ='Main calculation'!J78+J78*'Main calculation'!K63 -> 5.768559931 | L78: ='Main calculation'!K78+K78*'Main calculation'!L63 -> 5.941616729 | M78: ='Main calculation'!L78+L78*'Main calculation'!M63 -> 6.119865231 | N78: ='Main calculation'!M78+M78*'Main calculation'!N63 -> 6.303461188 | O78: ='Main calculation'!N78+N78*'Main calculation'!O63 -> 6.492565024 | P78: ='Main calculation'!O78+O78*'Main calculation'!P63 -> 6.687341974 | Q78: ='Main calculation'!P78+P78*'Main calculation'!Q63 -> 6.887962234 | R78: ='Main calculation'!Q78+Q78*'Main calculation'!R63 -> 7.094601101 | S78: ='Main calculation'!R78+R78*'Main calculation'!S63 -> 7.307439134 | T78: ='Main calculation'!S78+S78*'Main calculation'!T63 -> 7.526662308 | U78: ='Main calculation'!T78+T78*'Main calculation'!U63 -> 7.752462177 | V78: ='Main calculation'!U78+U78*'Main calculation'!V63 -> 7.985036042 | W78: ='Main calculation'!V78+V78*'Main calculation'!W63 -> 8.224587123 | X78: ='Main calculation'!W78+W78*'Main calculation'!X63 -> 8.471324737 | Y78: ='Main calculation'!X78+X78*'Main calculation'!Y63 -> 8.725464479 | Z78: ='Main calculation'!Y78+Y78*'Main calculation'!Z63 -> 8.987228414 | AA78: ='Main calculation'!Z78+Z78*'Main calculation'!AA63 -> 9.256845266 | AB78: ='Main calculation'!AA78+AA78*'Main calculation'!AB63 -> 9.534550624 | AC78: ='Main calculation'!AB78+AB78*'Main calculation'!AC63 -> 9.820587143 | AD78: ='Main calculation'!AC78+AC78*'Main calculation'!AD63 -> 10.11520476 | AE78: ='Main calculation'!AD78+AD78*'Main calculation'!AE63 -> 10.4186609 | AF78: ='Main calculation'!AE78+AE78*'Main calculation'!AF63 -> 10.73122073 | AG78: ='Main calculation'!AF78+AF78*'Main calculation'!AG63 -> 11.05315735 | AH78: ='Main calculation'!AG78+AG78*'Main calculation'!AH63 -> 11.38475207 | AI78: ='Main calculation'!AH78+AH78*'Main calculation'!AI63 -> 11.72629463 | AJ78: ='Main calculation'!AI78+AI78*'Main calculation'!AJ63 -> 12.07808347 | AK78: ='Main calculation'!AJ78+AJ78*'Main calculation'!AK63 -> 12.44042597 | AL78: ='Main calculation'!AK78+AK78*'Main calculation'!AL63 -> 12.81363875 | AM78: ='Main calculation'!AL78+AL78*'Main calculation'!AM63 -> 13.19804792 | AN78: ='Main calculation'!AM78+AM78*'Main calculation'!AN63 -> 13.59398935 | AO78: ='Main calculation'!AN78+AN78*'Main calculation'!AO63 -> 14.00180903 | AP78: ='Main calculation'!AO78+AO78*'Main calculation'!AP63 -> 14.42186331 | AQ78: ='Main calculation'!AP78+AP78*'Main calculation'!AQ63 -> 14.8545192 | AR78: ='Main calculation'!AQ78+AQ78*'Main calculation'!AR63 -> 15.30015478 | AS78: ='Main calculation'!AR78+AR78*'Main calculation'!AS63 -> 15.75915942 | AT78: ='Main calculation'!AS78+AS78*'Main calculation'!AT63 -> 16.23193421 | AU78: ='Main calculation'!AT78+AT78*'Main calculation'!AU63 -> 16.71889223 | AV78: ='Main calculation'!AU78+AU78*'Main calculation'!AV63 -> 17.220459 | AW78: ='Main calculation'!AV78+AV78*'Main calculation'!AW63 -> 17.73707277 | AX78: ='Main calculation'!AW78+AW78*'Main calculation'!AX63 -> 18.26918495 | AY78: ='Main calculation'!AX78+AX78*'Main calculation'!AY63 -> 18.8172605 | AZ78: ='Main calculation'!AY78+AY78*'Main calculation'!AZ63 -> 19.38177832 | BA78: ='Main calculation'!AZ78+AZ78*'Main calculation'!BA63 -> 19.96323167 | BB78: ='Main calculation'!BA78+BA78*'Main calculation'!BB63 -> 20.56212862
C79: Solar PV (export element) - adjusted for effectiveness | D79: kWh/yr | E79: =Input!F79*Input!F78 -> 2114.375 | F79: =E79+E79*Input!$F$80 -> 2103.803125 | G79: =F79+F79*Input!$F$80 -> 2093.284109 | H79: =G79+G79*Input!$F$80 -> 2082.817689 | I79: =H79+H79*Input!$F$80 -> 2072.4036 | J79: =I79+I79*Input!$F$80 -> 2062.041582 | K79: =J79+J79*Input!$F$80 -> 2051.731374 | L79: =K79+K79*Input!$F$80 -> 2041.472718 | M79: =L79+L79*Input!$F$80 -> 2031.265354 | N79: =M79+M79*Input!$F$80 -> 2021.109027 | O79: =N79+N79*Input!$F$80 -> 2011.003482 | P79: =O79+O79*Input!$F$80 -> 2000.948465 | Q79: =P79+P79*Input!$F$80 -> 1990.943722 | R79: =Q79+Q79*Input!$F$80 -> 1980.989004 | S79: =R79+R79*Input!$F$80 -> 1971.084059 | T79: =S79+S79*Input!$F$80 -> 1961.228638 | U79: =T79+T79*Input!$F$80 -> 1951.422495 | V79: =U79+U79*Input!$F$80 -> 1941.665383 | W79: =V79+V79*Input!$F$80 -> 1931.957056 | X79: =W79+W79*Input!$F$80 -> 1922.297271 | Y79: =X79+X79*Input!$F$80 -> 1912.685784 | Z79: =Y79+Y79*Input!$F$80 -> 1903.122355 | AA79: =Z79+Z79*Input!$F$80 -> 1893.606744 | AB79: =AA79+AA79*Input!$F$80 -> 1884.13871 | AC79: =AB79+AB79*Input!$F$80 -> 1874.718016 | AD79: =AC79+AC79*Input!$F$80 -> 1865.344426 | AE79: =AD79+AD79*Input!$F$80 -> 1856.017704 | AF79: =AE79+AE79*Input!$F$80 -> 1846.737616 | AG79: =AF79+AF79*Input!$F$80 -> 1837.503927 | AH79: =AG79+AG79*Input!$F$80 -> 1828.316408 | AI79: =AH79+AH79*Input!$F$80 -> 1819.174826 | AJ79: =AI79+AI79*Input!$F$80 -> 1810.078952 | AK79: =AJ79+AJ79*Input!$F$80 -> 1801.028557 | AL79: =AK79+AK79*Input!$F$80 -> 1792.023414 | AM79: =AL79+AL79*Input!$F$80 -> 1783.063297 | AN79: =AM79+AM79*Input!$F$80 -> 1774.147981 | AO79: =AN79+AN79*Input!$F$80 -> 1765.277241 | AP79: =AO79+AO79*Input!$F$80 -> 1756.450854 | AQ79: =AP79+AP79*Input!$F$80 -> 1747.6686 | AR79: =AQ79+AQ79*Input!$F$80 -> 1738.930257 | AS79: =AR79+AR79*Input!$F$80 -> 1730.235606 | AT79: =AS79+AS79*Input!$F$80 -> 1721.584428 | AU79: =AT79+AT79*Input!$F$80 -> 1712.976506 | AV79: =AU79+AU79*Input!$F$80 -> 1704.411623 | AW79: =AV79+AV79*Input!$F$80 -> 1695.889565 | AX79: =AW79+AW79*Input!$F$80 -> 1687.410117 | AY79: =AX79+AX79*Input!$F$80 -> 1678.973067 | AZ79: =AY79+AY79*Input!$F$80 -> 1670.578201 | BA79: =AZ79+AZ79*Input!$F$80 -> 1662.22531 | BB79: =BA79+BA79*Input!$F$80 -> 1653.914184
C80: Solar PV tariff period | E80: =IF(Input!$F$81<'Main calculation'!E29,0,1) -> 1 | F80: =IF(Input!$F$81<'Main calculation'!F29,0,1) -> 1 | G80: =IF(Input!$F$81<'Main calculation'!G29,0,1) -> 1 | H80: =IF(Input!$F$81<'Main calculation'!H29,0,1) -> 1 | I80: =IF(Input!$F$81<'Main calculation'!I29,0,1) -> 1 | J80: =IF(Input!$F$81<'Main calculation'!J29,0,1) -> 1 | K80: =IF(Input!$F$81<'Main calculation'!K29,0,1) -> 1 | L80: =IF(Input!$F$81<'Main calculation'!L29,0,1) -> 1 | M80: =IF(Input!$F$81<'Main calculation'!M29,0,1) -> 1 | N80: =IF(Input!$F$81<'Main calculation'!N29,0,1) -> 1 | O80: =IF(Input!$F$81<'Main calculation'!O29,0,1) -> 1 | P80: =IF(Input!$F$81<'Main calculation'!P29,0,1) -> 1 | Q80: =IF(Input!$F$81<'Main calculation'!Q29,0,1) -> 1 | R80: =IF(Input!$F$81<'Main calculation'!R29,0,1) -> 1 | S80: =IF(Input!$F$81<'Main calculation'!S29,0,1) -> 1 | T80: =IF(Input!$F$81<'Main calculation'!T29,0,1) -> 1 | U80: =IF(Input!$F$81<'Main calculation'!U29,0,1) -> 1 | V80: =IF(Input!$F$81<'Main calculation'!V29,0,1) -> 1 | W80: =IF(Input!$F$81<'Main calculation'!W29,0,1) -> 1 | X80: =IF(Input!$F$81<'Main calculation'!X29,0,1) -> 1 | Y80: =IF(Input!$F$81<'Main calculation'!Y29,0,1) -> 0 | Z80: =IF(Input!$F$81<'Main calculation'!Z29,0,1) -> 0 | AA80: =IF(Input!$F$81<'Main calculation'!AA29,0,1) -> 0 | AB80: =IF(Input!$F$81<'Main calculation'!AB29,0,1) -> 0 | AC80: =IF(Input!$F$81<'Main calculation'!AC29,0,1) -> 0 | AD80: =IF(Input!$F$81<'Main calculation'!AD29,0,1) -> 0 | AE80: =IF(Input!$F$81<'Main calculation'!AE29,0,1) -> 0 | AF80: =IF(Input!$F$81<'Main calculation'!AF29,0,1) -> 0 | AG80: =IF(Input!$F$81<'Main calculation'!AG29,0,1) -> 0 | AH80: =IF(Input!$F$81<'Main calculation'!AH29,0,1) -> 0 | AI80: =IF(Input!$F$81<'Main calculation'!AI29,0,1) -> 0 | AJ80: =IF(Input!$F$81<'Main calculation'!AJ29,0,1) -> 0 | AK80: =IF(Input!$F$81<'Main calculation'!AK29,0,1) -> 0 | AL80: =IF(Input!$F$81<'Main calculation'!AL29,0,1) -> 0 | AM80: =IF(Input!$F$81<'Main calculation'!AM29,0,1) -> 0 | AN80: =IF(Input!$F$81<'Main calculation'!AN29,0,1) -> 0 | AO80: =IF(Input!$F$81<'Main calculation'!AO29,0,1) -> 0 | AP80: =IF(Input!$F$81<'Main calculation'!AP29,0,1) -> 0 | AQ80: =IF(Input!$F$81<'Main calculation'!AQ29,0,1) -> 0 | AR80: =IF(Input!$F$81<'Main calculation'!AR29,0,1) -> 0 | AS80: =IF(Input!$F$81<'Main calculation'!AS29,0,1) -> 0 | AT80: =IF(Input!$F$81<'Main calculation'!AT29,0,1) -> 0 | AU80: =IF(Input!$F$81<'Main calculation'!AU29,0,1) -> 0 | AV80: =IF(Input!$F$81<'Main calculation'!AV29,0,1) -> 0 | AW80: =IF(Input!$F$81<'Main calculation'!AW29,0,1) -> 0 | AX80: =IF(Input!$F$81<'Main calculation'!AX29,0,1) -> 0 | AY80: =IF(Input!$F$81<'Main calculation'!AY29,0,1) -> 0 | AZ80: =IF(Input!$F$81<'Main calculation'!AZ29,0,1) -> 0 | BA80: =IF(Input!$F$81<'Main calculation'!BA29,0,1) -> 0 | BB80: =IF(Input!$F$81<'Main calculation'!BB29,0,1) -> 0
C81: Income from ASHP (RHI)
C82: Income from GSHP (RHI)
C83: Income from solar thermal (RHI)
C84: RHI period | E84: =IF(E29<Input!$F$83+1,1,0) -> 1 | F84: =IF(F29<Input!$F$83+1,1,0) -> 1 | G84: =IF(G29<Input!$F$83+1,1,0) -> 1 | H84: =IF(H29<Input!$F$83+1,1,0) -> 1 | I84: =IF(I29<Input!$F$83+1,1,0) -> 1 | J84: =IF(J29<Input!$F$83+1,1,0) -> 1 | K84: =IF(K29<Input!$F$83+1,1,0) -> 1 | L84: =IF(L29<Input!$F$83+1,1,0) -> 0 | M84: =IF(M29<Input!$F$83+1,1,0) -> 0 | N84: =IF(N29<Input!$F$83+1,1,0) -> 0 | O84: =IF(O29<Input!$F$83+1,1,0) -> 0 | P84: =IF(P29<Input!$F$83+1,1,0) -> 0 | Q84: =IF(Q29<Input!$F$83+1,1,0) -> 0 | R84: =IF(R29<Input!$F$83+1,1,0) -> 0 | S84: =IF(S29<Input!$F$83+1,1,0) -> 0 | T84: =IF(T29<Input!$F$83+1,1,0) -> 0 | U84: =IF(U29<Input!$F$83+1,1,0) -> 0 | V84: =IF(V29<Input!$F$83+1,1,0) -> 0 | W84: =IF(W29<Input!$F$83+1,1,0) -> 0 | X84: =IF(X29<Input!$F$83+1,1,0) -> 0 | Y84: =IF(Y29<Input!$F$83+1,1,0) -> 0 | Z84: =IF(Z29<Input!$F$83+1,1,0) -> 0 | AA84: =IF(AA29<Input!$F$83+1,1,0) -> 0 | AB84: =IF(AB29<Input!$F$83+1,1,0) -> 0 | AC84: =IF(AC29<Input!$F$83+1,1,0) -> 0 | AD84: =IF(AD29<Input!$F$83+1,1,0) -> 0 | AE84: =IF(AE29<Input!$F$83+1,1,0) -> 0 | AF84: =IF(AF29<Input!$F$83+1,1,0) -> 0 | AG84: =IF(AG29<Input!$F$83+1,1,0) -> 0 | AH84: =IF(AH29<Input!$F$83+1,1,0) -> 0 | AI84: =IF(AI29<Input!$F$83+1,1,0) -> 0 | AJ84: =IF(AJ29<Input!$F$83+1,1,0) -> 0 | AK84: =IF(AK29<Input!$F$83+1,1,0) -> 0 | AL84: =IF(AL29<Input!$F$83+1,1,0) -> 0 | AM84: =IF(AM29<Input!$F$83+1,1,0) -> 0 | AN84: =IF(AN29<Input!$F$83+1,1,0) -> 0 | AO84: =IF(AO29<Input!$F$83+1,1,0) -> 0 | AP84: =IF(AP29<Input!$F$83+1,1,0) -> 0 | AQ84: =IF(AQ29<Input!$F$83+1,1,0) -> 0 | AR84: =IF(AR29<Input!$F$83+1,1,0) -> 0 | AS84: =IF(AS29<Input!$F$83+1,1,0) -> 0 | AT84: =IF(AT29<Input!$F$83+1,1,0) -> 0 | AU84: =IF(AU29<Input!$F$83+1,1,0) -> 0 | AV84: =IF(AV29<Input!$F$83+1,1,0) -> 0 | AW84: =IF(AW29<Input!$F$83+1,1,0) -> 0 | AX84: =IF(AX29<Input!$F$83+1,1,0) -> 0 | AY84: =IF(AY29<Input!$F$83+1,1,0) -> 0 | AZ84: =IF(AZ29<Input!$F$83+1,1,0) -> 0 | BA84: =IF(BA29<Input!$F$83+1,1,0) -> 0 | BB84: =IF(BB29<Input!$F$83+1,1,0) -> 0
B86: Building lifetime & residual value
C87: Building lifetime before renovation | D87: =Input!F18 -> 30 | E87: =IF(E6>$D$87,0,1) -> 1 | F87: 1 | G87: 1 | H87: 1 | I87: 1 | J87: 1 | K87: 1 | L87: 1 | M87: 1 | N87: 1 | O87: 1 | P87: 1 | Q87: 1 | R87: 1 | S87: 1 | T87: 1 | U87: 1 | V87: 1 | W87: 1 | X87: 1 | Y87: 1 | Z87: 1 | AA87: 1 | AB87: 1 | AC87: 1 | AD87: 1 | AE87: 1 | AF87: 1 | AG87: 1 | AH87: 1 | AI87: 0 | AJ87: 0 | AK87: =IF(AK6>$D$87,0,1) -> 0 | AL87: 0 | AM87: 0 | AN87: 0 | AO87: 0 | AP87: 0 | AQ87: 0 | AR87: 0 | AS87: 0 | AT87: 0 | AU87: 0 | AV87: 0 | AW87: 0 | AX87: 0 | AY87: 0 | AZ87: 0 | BA87: 0 | BB87: 0
C88: Building lifetime after renovation | D88: =Input!F21 -> 30 | E88: =IF(E6>$D$88,0,1) -> 1 | F88: 1 | G88: 1 | H88: 1 | I88: 1 | J88: 1 | K88: 1 | L88: 1 | M88: 1 | N88: 1 | O88: 1 | P88: 1 | Q88: 1 | R88: 1 | S88: 1 | T88: 1 | U88: 1 | V88: 1 | W88: 1 | X88: 1 | Y88: 1 | Z88: 1 | AA88: 1 | AB88: 1 | AC88: 1 | AD88: 1 | AE88: 1 | AF88: 1 | AG88: 1 | AH88: 1 | AI88: 0 | AJ88: 0 | AK88: =IF(AK6>$D$88,0,1) -> 0 | AL88: 0 | AM88: 0 | AN88: 0 | AO88: 0 | AP88: 0 | AQ88: 0 | AR88: 0 | AS88: 0 | AT88: 0 | AU88: 0 | AV88: 0 | AW88: 0 | AX88: 0 | AY88: 0 | AZ88: 0 | BA88: 0 | BB88: 0

Sheet NPV
A6: POST ENERGIESPRONG | D6: 0 | E6: 1 | F6: =E6+1 -> 2 | G6: =F6+1 -> 3 | H6: 4 | I6: 5 | J6: 6 | K6: 7 | L6: 8 | M6: 9 | N6: 10 | O6: 11 | P6: 12 | Q6: 13 | R6: 14 | S6: 15 | T6: 16 | U6: 17 | V6: 18 | W6: 19 | X6: 20 | Y6: 21 | Z6: 22 | AA6: 23 | AB6: 24 | AC6: 25 | AD6: 26 | AE6: 27 | AF6: 28 | AG6: 29 | AH6: 30 | AI6: 31 | AJ6: 32 | AK6: 33 | AL6: 34 | AM6: 35 | AN6: 36 | AO6: 37 | AP6: 38 | AQ6: 39 | AR6: 40 | AS6: 41 | AT6: 42 | AU6: =AT6+1 -> 43 | AV6: =AU6+1 -> 44 | AW6: =AV6+1 -> 45 | AX6: =AW6+1 -> 46 | AY6: 47 | AZ6: =AY6+1 -> 48 | BA6: =AZ6+1 -> 49 | BB6: 50
B8: Income
B9: =IF(Input!F104="No",0,Input!F105) -> 0 | C9: Rental income (£/y) | D9: =SUM(E9:BB9) -> 0 | E9: =IF($B$9=0,0,'Main calculation'!E32*$B$9) -> 0 | F9: =IF($B$9=0,0,'Main calculation'!F32*$B$9) -> 0 | G9: =IF($B$9=0,0,'Main calculation'!G32*$B$9) -> 0 | H9: =IF($B$9=0,0,'Main calculation'!H32*$B$9) -> 0 | I9: =IF($B$9=0,0,'Main calculation'!I32*$B$9) -> 0 | J9: =IF($B$9=0,0,'Main calculation'!J32*$B$9) -> 0 | K9: =IF($B$9=0,0,'Main calculation'!K32*$B$9) -> 0 | L9: =IF($B$9=0,0,'Main calculation'!L32*$B$9) -> 0 | M9: =IF($B$9=0,0,'Main calculation'!M32*$B$9) -> 0 | N9: =IF($B$9=0,0,'Main calculation'!N32*$B$9) -> 0 | O9: =IF($B$9=0,0,'Main calculation'!O32*$B$9) -> 0 | P9: =IF($B$9=0,0,'Main calculation'!P32*$B$9) -> 0 | Q9: =IF($B$9=0,0,'Main calculation'!Q32*$B$9) -> 0 | R9: =IF($B$9=0,0,'Main calculation'!R32*$B$9) -> 0 | S9: =IF($B$9=0,0,'Main calculation'!S32*$B$9) -> 0 | T9: =IF($B$9=0,0,'Main calculation'!T32*$B$9) -> 0 | U9: =IF($B$9=0,0,'Main calculation'!U32*$B$9) -> 0 | V9: =IF($B$9=0,0,'Main calculation'!V32*$B$9) -> 0 | W9: =IF($B$9=0,0,'Main calculation'!W32*$B$9) -> 0 | X9: =IF($B$9=0,0,'Main calculation'!X32*$B$9) -> 0 | Y9: =IF($B$9=0,0,'Main calculation'!Y32*$B$9) -> 0 | Z9: =IF($B$9=0,0,'Main calculation'!Z32*$B$9) -> 0 | AA9: =IF($B$9=0,0,'Main calculation'!AA32*$B$9) -> 0 | AB9: =IF($B$9=0,0,'Main calculation'!AB32*$B$9) -> 0 | AC9: =IF($B$9=0,0,'Main calculation'!AC32*$B$9) -> 0 | AD9: =IF($B$9=0,0,'Main calculation'!AD32*$B$9) -> 0 | AE9: =IF($B$9=0,0,'Main calculation'!AE32*$B$9) -> 0 | AF9: =IF($B$9=0,0,'Main calculation'!AF32*$B$9) -> 0 | AG9: =IF($B$9=0,0,'Main calculation'!AG32*$B$9) -> 0 | AH9: =IF($B$9=0,0,'Main calculation'!AH32*$B$9) -> 0 | AI9: =IF($B$9=0,0,'Main calculation'!AI32*$B$9) -> 0 | AJ9: =IF($B$9=0,0,'Main calculation'!AJ32*$B$9) -> 0 | AK9: =IF($B$9=0,0,'Main calculation'!AK32*$B$9) -> 0 | AL9: =IF($B$9=0,0,'Main calculation'!AL32*$B$9) -> 0 | AM9: =IF($B$9=0,0,'Main calculation'!AM32*$B$9) -> 0 | AN9: =IF($B$9=0,0,'Main calculation'!AN32*$B$9) -> 0 | AO9: =IF($B$9=0,0,'Main calculation'!AO32*$B$9) -> 0 | AP9: =IF($B$9=0,0,'Main calculation'!AP32*$B$9) -> 0 | AQ9: =IF($B$9=0,0,'Main calculation'!AQ32*$B$9) -> 0 | AR9: =IF($B$9=0,0,'Main calculation'!AR32*$B$9) -> 0 | AS9: =IF($B$9=0,0,'Main calculation'!AS32*$B$9) -> 0 | AT9: =IF($B$9=0,0,'Main calculation'!AT32*$B$9) -> 0 | AU9: =IF($B$9=0,0,'Main calculation'!AU32*$B$9) -> 0 | AV9: =IF($B$9=0,0,'Main calculation'!AV32*$B$9) -> 0 | AW9: =IF($B$9=0,0,'Main calculation'!AW32*$B$9) -> 0 | AX9: =IF($B$9=0,0,'Main calculation'!AX32*$B$9) -> 0 | AY9: =IF($B$9=0,0,'Main calculation'!AY32*$B$9) -> 0 | AZ9: =IF($B$9=0,0,'Main calculation'!AZ32*$B$9) -> 0 | BA9: =IF($B$9=0,0,'Main calculation'!BA32*$B$9) -> 0 | BB9: =IF($B$9=0,0,'Main calculation'!BB32*$B$9) -> 0
B10: =IF(Input!F104="No",0,Input!F105) -> 0 | C10: Bad debt (£) | D10: =SUM(E10:BB10) -> 0 | E10: =IF($B$10=0,0,'Main calculation'!E33*$B$10) -> 0 | F10: =IF($B$10=0,0,'Main calculation'!F33*$B$10) -> 0 | G10: =IF($B$10=0,0,'Main calculation'!G33*$B$10) -> 0 | H10: =IF($B$10=0,0,'Main calculation'!H33*$B$10) -> 0 | I10: =IF($B$10=0,0,'Main calculation'!I33*$B$10) -> 0 | J10: =IF($B$10=0,0,'Main calculation'!J33*$B$10) -> 0 | K10: =IF($B$10=0,0,'Main calculation'!K33*$B$10) -> 0 | L10: =IF($B$10=0,0,'Main calculation'!L33*$B$10) -> 0 | M10: =IF($B$10=0,0,'Main calculation'!M33*$B$10) -> 0 | N10: =IF($B$10=0,0,'Main calculation'!N33*$B$10) -> 0 | O10: =IF($B$10=0,0,'Main calculation'!O33*$B$10) -> 0 | P10: =IF($B$10=0,0,'Main calculation'!P33*$B$10) -> 0 | Q10: =IF($B$10=0,0,'Main calculation'!Q33*$B$10) -> 0 | R10: =IF($B$10=0,0,'Main calculation'!R33*$B$10) -> 0 | S10: =IF($B$10=0,0,'Main calculation'!S33*$B$10) -> 0 | T10: =IF($B$10=0,0,'Main calculation'!T33*$B$10) -> 0 | U10: =IF($B$10=0,0,'Main calculation'!U33*$B$10) -> 0 | V10: =IF($B$10=0,0,'Main calculation'!V33*$B$10) -> 0 | W10: =IF($B$10=0,0,'Main calculation'!W33*$B$10) -> 0 | X10: =IF($B$10=0,0,'Main calculation'!X33*$B$10) -> 0 | Y10: =IF($B$10=0,0,'Main calculation'!Y33*$B$10) -> 0 | Z10: =IF($B$10=0,0,'Main calculation'!Z33*$B$10) -> 0 | AA10: =IF($B$10=0,0,'Main calculation'!AA33*$B$10) -> 0 | AB10: =IF($B$10=0,0,'Main calculation'!AB33*$B$10) -> 0 | AC10: =IF($B$10=0,0,'Main calculation'!AC33*$B$10) -> 0 | AD10: =IF($B$10=0,0,'Main calculation'!AD33*$B$10) -> 0 | AE10: =IF($B$10=0,0,'Main calculation'!AE33*$B$10) -> 0 | AF10: =IF($B$10=0,0,'Main calculation'!AF33*$B$10) -> 0 | AG10: =IF($B$10=0,0,'Main calculation'!AG33*$B$10) -> 0 | AH10: =IF($B$10=0,0,'Main calculation'!AH33*$B$10) -> 0 | AI10: =IF($B$10=0,0,'Main calculation'!AI33*$B$10) -> 0 | AJ10: =IF($B$10=0,0,'Main calculation'!AJ33*$B$10) -> 0 | AK10: =IF($B$10=0,0,'Main calculation'!AK33*$B$10) -> 0 | AL10: =IF($B$10=0,0,'Main calculation'!AL33*$B$10) -> 0 | AM10: =IF($B$10=0,0,'Main calculation'!AM33*$B$10) -> 0 | AN10: =IF($B$10=0,0,'Main calculation'!AN33*$B$10) -> 0 | AO10: =IF($B$10=0,0,'Main calculation'!AO33*$B$10) -> 0 | AP10: =IF($B$10=0,0,'Main calculation'!AP33*$B$10) -> 0 | AQ10: =IF($B$10=0,0,'Main calculation'!AQ33*$B$10) -> 0 | AR10: =IF($B$10=0,0,'Main calculation'!AR33*$B$10) -> 0 | AS10: =IF($B$10=0,0,'Main calculation'!AS33*$B$10) -> 0 | AT10: =IF($B$10=0,0,'Main calculation'!AT33*$B$10) -> 0 | AU10: =IF($B$10=0,0,'Main calculation'!AU33*$B$10) -> 0 | AV10: =IF($B$10=0,0,'Main calculation'!AV33*$B$10) -> 0 | AW10: =IF($B$10=0,0,'Main calculation'!AW33*$B$10) -> 0 | AX10: =IF($B$10=0,0,'Main calculation'!AX33*$B$10) -> 0 | AY10: =IF($B$10=0,0,'Main calculation'!AY33*$B$10) -> 0 | AZ10: =IF($B$10=0,0,'Main calculation'!AZ33*$B$10) -> 0 | BA10: =IF($B$10=0,0,'Main calculation'!BA33*$B$10) -> 0 | BB10: =IF($B$10=0,0,'Main calculation'!BB33*$B$10) -> 0
B11: 0 | C11: Service charge (£) | D11: 0 | E11: =IF($B$11=0,0,'Main calculation'!E34) -> 0 | F11: =IF($B$11=0,0,'Main calculation'!F34) -> 0 | G11: =IF($B$11=0,0,'Main calculation'!G34) -> 0 | H11: =IF($B$11=0,0,'Main calculation'!H34) -> 0 | I11: =IF($B$11=0,0,'Main calculation'!I34) -> 0 | J11: =IF($B$11=0,0,'Main calculation'!J34) -> 0 | K11: =IF($B$11=0,0,'Main calculation'!K34) -> 0 | L11: =IF($B$11=0,0,'Main calculation'!L34) -> 0 | M11: =IF($B$11=0,0,'Main calculation'!M34) -> 0 | N11: =IF($B$11=0,0,'Main calculation'!N34) -> 0 | O11: =IF($B$11=0,0,'Main calculation'!O34) -> 0 | P11: =IF($B$11=0,0,'Main calculation'!P34) -> 0 | Q11: =IF($B$11=0,0,'Main calculation'!Q34) -> 0 | R11: =IF($B$11=0,0,'Main calculation'!R34) -> 0 | S11: =IF($B$11=0,0,'Main calculation'!S34) -> 0 | T11: =IF($B$11=0,0,'Main calculation'!T34) -> 0 | U11: =IF($B$11=0,0,'Main calculation'!U34) -> 0 | V11: =IF($B$11=0,0,'Main calculation'!V34) -> 0 | W11: =IF($B$11=0,0,'Main calculation'!W34) -> 0 | X11: =IF($B$11=0,0,'Main calculation'!X34) -> 0 | Y11: =IF($B$11=0,0,'Main calculation'!Y34) -> 0 | Z11: =IF($B$11=0,0,'Main calculation'!Z34) -> 0 | AA11: =IF($B$11=0,0,'Main calculation'!AA34) -> 0 | AB11: =IF($B$11=0,0,'Main calculation'!AB34) -> 0 | AC11: =IF($B$11=0,0,'Main calculation'!AC34) -> 0 | AD11: =IF($B$11=0,0,'Main calculation'!AD34) -> 0 | AE11: =IF($B$11=0,0,'Main calculation'!AE34) -> 0 | AF11: =IF($B$11=0,0,'Main calculation'!AF34) -> 0 | AG11: =IF($B$11=0,0,'Main calculation'!AG34) -> 0 | AH11: =IF($B$11=0,0,'Main calculation'!AH34) -> 0 | AI11: =IF($B$11=0,0,'Main calculation'!AI34) -> 0 | AJ11: =IF($B$11=0,0,'Main calculation'!AJ34) -> 0 | AK11: =IF($B$11=0,0,'Main calculation'!AK34) -> 0 | AL11: =IF($B$11=0,0,'Main calculation'!AL34) -> 0 | AM11: =IF($B$11=0,0,'Main calculation'!AM34) -> 0 | AN11: =IF($B$11=0,0,'Main calculation'!AN34) -> 0 | AO11: =IF($B$11=0,0,'Main calculation'!AO34) -> 0 | AP11: =IF($B$11=0,0,'Main calculation'!AP34) -> 0 | AQ11: =IF($B$11=0,0,'Main calculation'!AQ34) -> 0 | AR11: =IF($B$11=0,0,'Main calculation'!AR34) -> 0 | AS11: =IF($B$11=0,0,'Main calculation'!AS34) -> 0 | AT11: =IF($B$11=0,0,'Main calculation'!AT34) -> 0 | AU11: =IF($B$11=0,0,'Main calculation'!AU34) -> 0 | AV11: =IF($B$11=0,0,'Main calculation'!AV34) -> 0 | AW11: =IF($B$11=0,0,'Main calculation'!AW34) -> 0 | AX11: =IF($B$11=0,0,'Main calculation'!AX34) -> 0 | AY11: =IF($B$11=0,0,'Main calculation'!AY34) -> 0 | AZ11: =IF($B$11=0,0,'Main calculation'!AZ34) -> 0 | BA11: =IF($B$11=0,0,'Main calculation'!BA34) -> 0 | BB11: =IF($B$11=0,0,'Main calculation'!BB34) -> 0
B12: =IF(Input!F106="No",0,1) -> 1 | C12: Energy plan (£) | D12: 38435.7339 | E12: =IF($B$12=0,0,'Main calculation'!E35) -> 960 | F12: =IF($B$12=0,0,'Main calculation'!F35) -> 971.52 | G12: =IF($B$12=0,0,'Main calculation'!G35) -> 988.03584 | H12: =IF($B$12=0,0,'Main calculation'!H35) -> 1005.820485 | I12: =IF($B$12=0,0,'Main calculation'!I35) -> 1024.931074 | J12: =IF($B$12=0,0,'Main calculation'!J35) -> 1045.429696 | K12: =IF($B$12=0,0,'Main calculation'!K35) -> 1066.33829 | L12: =IF($B$12=0,0,'Main calculation'!L35) -> 1087.665056 | M12: =IF($B$12=0,0,'Main calculation'!M35) -> 1109.418357 | N12: =IF($B$12=0,0,'Main calculation'!N35) -> 1131.606724 | O12: =IF($B$12=0,0,'Main calculation'!O35) -> 1154.238858 | P12: =IF($B$12=0,0,'Main calculation'!P35) -> 1177.323635 | Q12: =IF($B$12=0,0,'Main calculation'!Q35) -> 1200.870108 | R12: =IF($B$12=0,0,'Main calculation'!R35) -> 1224.88751 | S12: =IF($B$12=0,0,'Main calculation'!S35) -> 1249.38526 | T12: =IF($B$12=0,0,'Main calculation'!T35) -> 1274.372966 | U12: =IF($B$12=0,0,'Main calculation'!U35) -> 1299.860425 | V12: =IF($B$12=0,0,'Main calculation'!V35) -> 1325.857634 | W12: =IF($B$12=0,0,'Main calculation'!W35) -> 1352.374786 | X12: =IF($B$12=0,0,'Main calculation'!X35) -> 1379.422282 | Y12: =IF($B$12=0,0,'Main calculation'!Y35) -> 1407.010728 | Z12: =IF($B$12=0,0,'Main calculation'!Z35) -> 1435.150942 | AA12: =IF($B$12=0,0,'Main calculation'!AA35) -> 1463.853961 | AB12: =IF($B$12=0,0,'Main calculation'!AB35) -> 1493.13104 | AC12: =IF($B$12=0,0,'Main calculation'!AC35) -> 1522.993661 | AD12: =IF($B$12=0,0,'Main calculation'!AD35) -> 1553.453534 | AE12: =IF($B$12=0,0,'Main calculation'!AE35) -> 1584.522605 | AF12: =IF($B$12=0,0,'Main calculation'!AF35) -> 1616.213057 | AG12: =IF($B$12=0,0,'Main calculation'!AG35) -> 1648.537318 | AH12: =IF($B$12=0,0,'Main calculation'!AH35) -> 1681.508064 | AI12: =IF($B$12=0,0,'Main calculation'!AI35) -> 0 | AJ12: =IF($B$12=0,0,'Main calculation'!AJ35) -> 0 | AK12: =IF($B$12=0,0,'Main calculation'!AK35) -> 0 | AL12: =IF($B$12=0,0,'Main calculation'!AL35) -> 0 | AM12: =IF($B$12=0,0,'Main calculation'!AM35) -> 0 | AN12: =IF($B$12=0,0,'Main calculation'!AN35) -> 0 | AO12: =IF($B$12=0,0,'Main calculation'!AO35) -> 0 | AP12: =IF($B$12=0,0,'Main calculation'!AP35) -> 0 | AQ12: =IF($B$12=0,0,'Main calculation'!AQ35) -> 0 | AR12: =IF($B$12=0,0,'Main calculation'!AR35) -> 0 | AS12: =IF($B$12=0,0,'Main calculation'!AS35) -> 0 | AT12: =IF($B$12=0,0,'Main calculation'!AT35) -> 0 | AU12: =IF($B$12=0,0,'Main calculation'!AU35) -> 0 | AV12: =IF($B$12=0,0,'Main calculation'!AV35) -> 0 | AW12: =IF($B$12=0,0,'Main calculation'!AW35) -> 0 | AX12: =IF($B$12=0,0,'Main calculation'!AX35) -> 0 | AY12: =IF($B$12=0,0,'Main calculation'!AY35) -> 0 | AZ12: =IF($B$12=0,0,'Main calculation'!AZ35) -> 0 | BA12: =IF($B$12=0,0,'Main calculation'!BA35) -> 0 | BB12: =IF($B$12=0,0,'Main calculation'!BB35) -> 0
B13: =IF(Input!F106="No",0,1) -> 1 | C13: Bad debt on energy plan (£) | D13: -384.357339 | E13: ='Main calculation'!E36 -> -9.6 | F13: ='Main calculation'!F36 -> -9.7152 | G13: ='Main calculation'!G36 -> -9.8803584 | H13: ='Main calculation'!H36 -> -10.05820485 | I13: ='Main calculation'!I36 -> -10.24931074 | J13: ='Main calculation'!J36 -> -10.45429696 | K13: ='Main calculation'!K36 -> -10.6633829 | L13: ='Main calculation'!L36 -> -10.87665056 | M13: ='Main calculation'!M36 -> -11.09418357 | N13: ='Main calculation'!N36 -> -11.31606724 | O13: ='Main calculation'!O36 -> -11.54238858 | P13: ='Main calculation'!P36 -> -11.77323635 | Q13: ='Main calculation'!Q36 -> -12.00870108 | R13: ='Main calculation'!R36 -> -12.2488751 | S13: ='Main calculation'!S36 -> -12.4938526 | T13: ='Main calculation'!T36 -> -12.74372966 | U13: ='Main calculation'!U36 -> -12.99860425 | V13: ='Main calculation'!V36 -> -13.25857634 | W13: ='Main calculation'!W36 -> -13.52374786 | X13: ='Main calculation'!X36 -> -13.79422282 | Y13: ='Main calculation'!Y36 -> -14.07010728 | Z13: ='Main calculation'!Z36 -> -14.35150942 | AA13: ='Main calculation'!AA36 -> -14.63853961 | AB13: ='Main calculation'!AB36 -> -14.9313104 | AC13: ='Main calculation'!AC36 -> -15.22993661 | AD13: ='Main calculation'!AD36 -> -15.53453534 | AE13: ='Main calculation'!AE36 -> -15.84522605 | AF13: ='Main calculation'!AF36 -> -16.16213057 | AG13: ='Main calculation'!AG36 -> -16.48537318 | AH13: ='Main calculation'!AH36 -> -16.81508064 | AI13: ='Main calculation'!AI36 -> 0 | AJ13: ='Main calculation'!AJ36 -> 0 | AK13: ='Main calculation'!AK36 -> 0 | AL13: ='Main calculation'!AL36 -> 0 | AM13: ='Main calculation'!AM36 -> 0 | AN13: ='Main calculation'!AN36 -> 0 | AO13: ='Main calculation'!AO36 -> 0 | AP13: ='Main calculation'!AP36 -> 0 | AQ13: ='Main calculation'!AQ36 -> 0 | AR13: ='Main calculation'!AR36 -> 0 | AS13: ='Main calculation'!AS36 -> 0 | AT13: ='Main calculation'!AT36 -> 0 | AU13: ='Main calculation'!AU36 -> 0 | AV13: ='Main calculation'!AV36 -> 0 | AW13: ='Main calculation'!AW36 -> 0 | AX13: ='Main calculation'!AX36 -> 0 | AY13: ='Main calculation'!AY36 -> 0 | AZ13: ='Main calculation'!AZ36 -> 0 | BA13: ='Main calculation'!BA36 -> 0 | BB13: ='Main calculation'!BB36 -> 0
B14: 0 | C14: Residual value at lifetime end (£) | D14: 0 | E14: =IF($B$14=0,0,'Main calculation'!E37) -> 0 | F14: =IF($B$14=0,0,'Main calculation'!F37) -> 0 | G14: =IF($B$14=0,0,'Main calculation'!G37) -> 0 | H14: =IF($B$14=0,0,'Main calculation'!H37) -> 0 | I14: =IF($B$14=0,0,'Main calculation'!I37) -> 0 | J14: =IF($B$14=0,0,'Main calculation'!J37) -> 0 | K14: =IF($B$14=0,0,'Main calculation'!K37) -> 0 | L14: =IF($B$14=0,0,'Main calculation'!L37) -> 0 | M14: =IF($B$14=0,0,'Main calculation'!M37) -> 0 | N14: =IF($B$14=0,0,'Main calculation'!N37) -> 0 | O14: =IF($B$14=0,0,'Main calculation'!O37) -> 0 | P14: =IF($B$14=0,0,'Main calculation'!P37) -> 0 | Q14: =IF($B$14=0,0,'Main calculation'!Q37) -> 0 | R14: =IF($B$14=0,0,'Main calculation'!R37) -> 0 | S14: =IF($B$14=0,0,'Main calculation'!S37) -> 0 | T14: =IF($B$14=0,0,'Main calculation'!T37) -> 0 | U14: =IF($B$14=0,0,'Main calculation'!U37) -> 0 | V14: =IF($B$14=0,0,'Main calculation'!V37) -> 0 | W14: =IF($B$14=0,0,'Main calculation'!W37) -> 0 | X14: =IF($B$14=0,0,'Main calculation'!X37) -> 0 | Y14: =IF($B$14=0,0,'Main calculation'!Y37) -> 0 | Z14: =IF($B$14=0,0,'Main calculation'!Z37) -> 0 | AA14: =IF($B$14=0,0,'Main calculation'!AA37) -> 0 | AB14: =IF($B$14=0,0,'Main calculation'!AB37) -> 0 | AC14: =IF($B$14=0,0,'Main calculation'!AC37) -> 0 | AD14: =IF($B$14=0,0,'Main calculation'!AD37) -> 0 | AE14: =IF($B$14=0,0,'Main calculation'!AE37) -> 0 | AF14: =IF($B$14=0,0,'Main calculation'!AF37) -> 0 | AG14: =IF($B$14=0,0,'Main calculation'!AG37) -> 0 | AH14: =IF($B$14=0,0,'Main calculation'!AH37) -> 0 | AI14: =IF($B$14=0,0,'Main calculation'!AI37) -> 0 | AJ14: =IF($B$14=0,0,'Main calculation'!AJ37) -> 0 | AK14: =IF($B$14=0,0,'Main calculation'!AK37) -> 0 | AL14: =IF($B$14=0,0,'Main calculation'!AL37) -> 0 | AM14: =IF($B$14=0,0,'Main calculation'!AM37) -> 0 | AN14: =IF($B$14=0,0,'Main calculation'!AN37) -> 0 | AO14: =IF($B$14=0,0,'Main calculation'!AO37) -> 0 | AP14: =IF($B$14=0,0,'Main calculation'!AP37) -> 0 | AQ14: =IF($B$14=0,0,'Main calculation'!AQ37) -> 0 | AR14: =IF($B$14=0,0,'Main calculation'!AR37) -> 0 | AS14: =IF($B$14=0,0,'Main calculation'!AS37) -> 0 | AT14: =IF($B$14=0,0,'Main calculation'!AT37) -> 0 | AU14: =IF($B$14=0,0,'Main calculation'!AU37) -> 0 | AV14: =IF($B$14=0,0,'Main calculation'!AV37) -> 0 | AW14: =IF($B$14=0,0,'Main calculation'!AW37) -> 0 | AX14: =IF($B$14=0,0,'Main calculation'!AX37) -> 0 | AY14: =IF($B$14=0,0,'Main calculation'!AY37) -> 0 | AZ14: =IF($B$14=0,0,'Main calculation'!AZ37) -> 0 | BA14: =IF($B$14=0,0,'Main calculation'!BA37) -> 0 | BB14: =IF($B$14=0,0,'Main calculation'!BB37) -> 0
B15: =IF(Input!F107="No",0,1) -> 1 | C15: Income from FiT (£) | D15: 6336.447676 | E15: =IF($B$15=0,0,'Main calculation'!E38+'Main calculation'!E39) -> 289.1221875 | F15: =IF($B$15=0,0,'Main calculation'!F38+'Main calculation'!F39) -> 290.9562439 | G15: =IF($B$15=0,0,'Main calculation'!G38+'Main calculation'!G39) -> 293.5501179 | H15: =IF($B$15=0,0,'Main calculation'!H38+'Main calculation'!H39) -> 296.3148898 | I15: =IF($B$15=0,0,'Main calculation'!I38+'Main calculation'!I39) -> 299.2603084 | J15: =IF($B$15=0,0,'Main calculation'!J38+'Main calculation'!J39) -> 302.0605383 | K15: =IF($B$15=0,0,'Main calculation'!K38+'Main calculation'!K39) -> 304.930354 | L15: =IF($B$15=0,0,'Main calculation'!L38+'Main calculation'!L39) -> 307.8714845 | M15: =IF($B$15=0,0,'Main calculation'!M38+'Main calculation'!M39) -> 310.8857022 | N15: =IF($B$15=0,0,'Main calculation'!N38+'Main calculation'!N39) -> 313.9748231 | O15: =IF($B$15=0,0,'Main calculation'!O38+'Main calculation'!O39) -> 317.1407087 | P15: =IF($B$15=0,0,'Main calculation'!P38+'Main calculation'!P39) -> 320.3852666 | Q15: =IF($B$15=0,0,'Main calculation'!Q38+'Main calculation'!Q39) -> 323.7104517 | R15: =IF($B$15=0,0,'Main calculation'!R38+'Main calculation'!R39) -> 327.1182677 | S15: =IF($B$15=0,0,'Main calculation'!S38+'Main calculation'!S39) -> 330.6107679 | T15: =IF($B$15=0,0,'Main calculation'!T38+'Main calculation'!T39) -> 334.1900567 | U15: =IF($B$15=0,0,'Main calculation'!U38+'Main calculation'!U39) -> 337.8582909 | V15: =IF($B$15=0,0,'Main calculation'!V38+'Main calculation'!V39) -> 341.6176806 | W15: =IF($B$15=0,0,'Main calculation'!W38+'Main calculation'!W39) -> 345.4704912 | X15: =IF($B$15=0,0,'Main calculation'!X38+'Main calculation'!X39) -> 349.4190442 | Y15: =IF($B$15=0,0,'Main calculation'!Y38+'Main calculation'!Y39) -> 0 | Z15: =IF($B$15=0,0,'Main calculation'!Z38+'Main calculation'!Z39) -> 0 | AA15: =IF($B$15=0,0,'Main calculation'!AA38+'Main calculation'!AA39) -> 0 | AB15: =IF($B$15=0,0,'Main calculation'!AB38+'Main calculation'!AB39) -> 0 | AC15: =IF($B$15=0,0,'Main calculation'!AC38+'Main calculation'!AC39) -> 0 | AD15: =IF($B$15=0,0,'Main calculation'!AD38+'Main calculation'!AD39) -> 0 | AE15: =IF($B$15=0,0,'Main calculation'!AE38+'Main calculation'!AE39) -> 0 | AF15: =IF($B$15=0,0,'Main calculation'!AF38+'Main calculation'!AF39) -> 0 | AG15: =IF($B$15=0,0,'Main calculation'!AG38+'Main calculation'!AG39) -> 0 | AH15: =IF($B$15=0,0,'Main calculation'!AH38+'Main calculation'!AH39) -> 0 | AI15: =IF($B$15=0,0,'Main calculation'!AI38+'Main calculation'!AI39) -> 0 | AJ15: =IF($B$15=0,0,'Main calculation'!AJ38+'Main calculation'!AJ39) -> 0 | AK15: =IF($B$15=0,0,'Main calculation'!AK38+'Main calculation'!AK39) -> 0 | AL15: =IF($B$15=0,0,'Main calculation'!AL38+'Main calculation'!AL39) -> 0 | AM15: =IF($B$15=0,0,'Main calculation'!AM38+'Main calculation'!AM39) -> 0 | AN15: =IF($B$15=0,0,'Main calculation'!AN38+'Main calculation'!AN39) -> 0 | AO15: =IF($B$15=0,0,'Main calculation'!AO38+'Main calculation'!AO39) -> 0 | AP15: =IF($B$15=0,0,'Main calculation'!AP38+'Main calculation'!AP39) -> 0 | AQ15: =IF($B$15=0,0,'Main calculation'!AQ38+'Main calculation'!AQ39) -> 0 | AR15: =IF($B$15=0,0,'Main calculation'!AR38+'Main calculation'!AR39) -> 0 | AS15: =IF($B$15=0,0,'Main calculation'!AS38+'Main calculation'!AS39) -> 0 | AT15: =IF($B$15=0,0,'Main calculation'!AT38+'Main calculation'!AT39) -> 0 | AU15: =IF($B$15=0,0,'Main calculation'!AU38+'Main calculation'!AU39) -> 0 | AV15: =IF($B$15=0,0,'Main calculation'!AV38+'Main calculation'!AV39) -> 0 | AW15: =IF($B$15=0,0,'Main calculation'!AW38+'Main calculation'!AW39) -> 0 | AX15: =IF($B$15=0,0,'Main calculation'!AX38+'Main calculation'!AX39) -> 0 | AY15: =IF($B$15=0,0,'Main calculation'!AY38+'Main calculation'!AY39) -> 0 | AZ15: =IF($B$15=0,0,'Main calculation'!AZ38+'Main calculation'!AZ39) -> 0 | BA15: =IF($B$15=0,0,'Main calculation'!BA38+'Main calculation'!BA39) -> 0 | BB15: =IF($B$15=0,0,'Main calculation'!BB38+'Main calculation'!BB39) -> 0
C16: Income from ASHP (RHI) | D16: 0
C17: Income from GSHP (RHI) | D17: 0
C18: Income from solar thermal (RHI) | D18: 0
B19: Total revenue | D19: =SUM(D9:D18) -> 44387.82423 | E19: =SUM(E9:E15) -> 1239.522187 | F19: =SUM(F9:F15) -> 1252.761044 | G19: 1271.705599 | H19: 1292.07717 | I19: 1313.942072 | J19: 1337.035937 | K19: 1360.605261 | L19: 1384.659889 | M19: 1409.209875 | N19: 1434.26548 | O19: 1459.837178 | P19: 1485.935666 | Q19: 1512.571859 | R19: 1539.756903 | S19: 1567.502176 | T19: 1595.819293 | U19: 1624.720112 | V19: 1654.216738 | W19: 1684.32153 | X19: 1715.047103 | Y19: 1392.94062 | Z19: 1420.799433 | AA19: 1449.215421 | AB19: 1478.19973 | AC19: 1507.763724 | AD19: 1537.918999 | AE19: 1568.677379 | AF19: 1600.050926 | AG19: 1632.051945 | AH19: 1664.692984 | AI19: 0 | AJ19: 0 | AK19: 0 | AL19: 0 | AM19: 0 | AN19: 0 | AO19: 0 | AP19: 0 | AQ19: 0 | AR19: 0 | AS19: 0 | AT19: 0 | AU19: 0 | AV19: 0 | AW19: 0 | AX19: 0 | AY19: 0 | AZ19: 0 | BA19: 0 | BB19: 0
B21: Foregone investment cost
C22: Management cost before renovation | D22: =SUM(E22:BB22) -> 40162.39841 | E22: ='Main calculation'!E16 -> 990 | F22: ='Main calculation'!F16 -> 1009.8 | G22: ='Main calculation'!G16 -> 1029.996 | H22: ='Main calculation'!H16 -> 1050.59592 | I22: ='Main calculation'!I16 -> 1071.607838 | J22: ='Main calculation'!J16 -> 1093.039995 | K22: ='Main calculation'!K16 -> 1114.900795 | L22: ='Main calculation'!L16 -> 1137.198811 | M22: ='Main calculation'!M16 -> 1159.942787 | N22: ='Main calculation'!N16 -> 1183.141643 | O22: ='Main calculation'!O16 -> 1206.804476 | P22: ='Main calculation'!P16 -> 1230.940565 | Q22: ='Main calculation'!Q16 -> 1255.559377 | R22: ='Main calculation'!R16 -> 1280.670564 | S22: ='Main calculation'!S16 -> 1306.283975 | T22: ='Main calculation'!T16 -> 1332.409655 | U22: ='Main calculation'!U16 -> 1359.057848 | V22: ='Main calculation'!V16 -> 1386.239005 | W22: ='Main calculation'!W16 -> 1413.963785 | X22: ='Main calculation'!X16 -> 1442.243061 | Y22: ='Main calculation'!Y16 -> 1471.087922 | Z22: ='Main calculation'!Z16 -> 1500.50968 | AA22: ='Main calculation'!AA16 -> 1530.519874 | AB22: ='Main calculation'!AB16 -> 1561.130272 | AC22: ='Main calculation'!AC16 -> 1592.352877 | AD22: ='Main calculation'!AD16 -> 1624.199935 | AE22: ='Main calculation'!AE16 -> 1656.683933 | AF22: ='Main calculation'!AF16 -> 1689.817612 | AG22: ='Main calculation'!AG16 -> 1723.613964 | AH22: ='Main calculation'!AH16 -> 1758.086243 | AI22: ='Main calculation'!AI16 -> 0 | AJ22: ='Main calculation'!AJ16 -> 0 | AK22: ='Main calculation'!AK16 -> 0 | AL22: ='Main calculation'!AL16 -> 0 | AM22: ='Main calculation'!AM16 -> 0 | AN22: ='Main calculation'!AN16 -> 0 | AO22: ='Main calculation'!AO16 -> 0 | AP22: ='Main calculation'!AP16 -> 0 | AQ22: ='Main calculation'!AQ16 -> 0 | AR22: ='Main calculation'!AR16 -> 0 | AS22: ='Main calculation'!AS16 -> 0 | AT22: ='Main calculation'!AT16 -> 0 | AU22: ='Main calculation'!AU16 -> 0 | AV22: ='Main calculation'!AV16 -> 0 | AW22: ='Main calculation'!AW16 -> 0 | AX22: ='Main calculation'!AX16 -> 0 | AY22: ='Main calculation'!AY16 -> 0 | AZ22: ='Main calculation'!AZ16 -> 0 | BA22: ='Main calculation'!BA16 -> 0 | BB22: ='Main calculation'!BB16 -> 0
C23: Planned & routine maintenance (offset against energiesprong) | D23: =SUM(E23:BB23) -> 29883.95037 | E23: ='Main calculation'!E18 -> 1015 | F23: ='Main calculation'!F18 -> 1006.6364 | G23: ='Main calculation'!G18 -> 1003.274234 | H23: ='Main calculation'!H18 -> 1000.906507 | I23: ='Main calculation'!I18 -> 999.5252563 | J23: ='Main calculation'!J18 -> 999.1254461 | K23: ='Main calculation'!K18 -> 998.725796 | L23: ='Main calculation'!L18 -> 998.3263057 | M23: ='Main calculation'!M18 -> 997.9269751 | N23: ='Main calculation'!N18 -> 997.5278043 | O23: ='Main calculation'!O18 -> 997.1287932 | P23: ='Main calculation'!P18 -> 996.7299417 | Q23: ='Main calculation'!Q18 -> 996.3312497 | R23: ='Main calculation'!R18 -> 995.9327172 | S23: ='Main calculation'!S18 -> 995.5343441 | T23: ='Main calculation'!T18 -> 995.1361304 | U23: ='Main calculation'!U18 -> 994.7380759 | V23: ='Main calculation'!V18 -> 994.3401807 | W23: ='Main calculation'!W18 -> 993.9424446 | X23: ='Main calculation'!X18 -> 993.5448677 | Y23: ='Main calculation'!Y18 -> 993.1474497 | Z23: ='Main calculation'!Z18 -> 992.7501907 | AA23: ='Main calculation'!AA18 -> 992.3530907 | AB23: ='Main calculation'!AB18 -> 991.9561494 | AC23: ='Main calculation'!AC18 -> 991.559367 | AD23: ='Main calculation'!AD18 -> 991.1627432 | AE23: ='Main calculation'!AE18 -> 990.7662781 | AF23: ='Main calculation'!AF18 -> 990.3699716 | AG23: ='Main calculation'!AG18 -> 989.9738236 | AH23: ='Main calculation'!AH18 -> 989.5778341 | AI23: ='Main calculation'!AI18 -> 0 | AJ23: ='Main calculation'!AJ18 -> 0 | AK23: ='Main calculation'!AK18 -> 0 | AL23: ='Main calculation'!AL18 -> 0 | AM23: ='Main calculation'!AM18 -> 0 | AN23: ='Main calculation'!AN18 -> 0 | AO23: ='Main calculation'!AO18 -> 0 | AP23: ='Main calculation'!AP18 -> 0 | AQ23: ='Main calculation'!AQ18 -> 0 | AR23: ='Main calculation'!AR18 -> 0 | AS23: ='Main calculation'!AS18 -> 0 | AT23: ='Main calculation'!AT18 -> 0 | AU23: ='Main calculation'!AU18 -> 0 | AV23: ='Main calculation'!AV18 -> 0 | AW23: ='Main calculation'!AW18 -> 0 | AX23: ='Main calculation'!AX18 -> 0 | AY23: ='Main calculation'!AY18 -> 0 | AZ23: ='Main calculation'!AZ18 -> 0 | BA23: ='Main calculation'!BA18 -> 0 | BB23: ='Main calculation'!BB18 -> 0
C24: Major repairs (offset against energiesprong) | D24: =SUM(E24:BB24) -> 23267.46635 | E24: ='Main calculation'!E19 -> 913 | F24: ='Main calculation'!F19 -> 896.23732 | G24: ='Main calculation'!G19 -> 884.1291538 | H24: ='Main calculation'!H19 -> 873.0421742 | I24: ='Main calculation'!I19 -> 862.9410763 | J24: ='Main calculation'!J19 -> 853.7939009 | K24: ='Main calculation'!K19 -> 844.7436855 | L24: ='Main calculation'!L19 -> 835.7894024 | M24: ='Main calculation'!M19 -> 826.9300348 | N24: ='Main calculation'!N19 -> 818.1645764 | O24: ='Main calculation'!O19 -> 809.4920319 | P24: ='Main calculation'!P19 -> 800.9114164 | Q24: ='Main calculation'!Q19 -> 792.4217553 | R24: ='Main calculation'!R19 -> 784.0220847 | S24: ='Main calculation'!S19 -> 775.7114506 | T24: ='Main calculation'!T19 -> 767.4889093 | U24: ='Main calculation'!U19 -> 759.3535268 | V24: ='Main calculation'!V19 -> 751.3043794 | W24: ='Main calculation'!W19 -> 743.340553 | X24: ='Main calculation'!X19 -> 735.4611432 | Y24: ='Main calculation'!Y19 -> 727.665255 | Z24: ='Main calculation'!Z19 -> 719.9520033 | AA24: ='Main calculation'!AA19 -> 712.3205121 | AB24: ='Main calculation'!AB19 -> 704.7699147 | AC24: ='Main calculation'!AC19 -> 697.2993536 | AD24: ='Main calculation'!AD19 -> 689.9079804 | AE24: ='Main calculation'!AE19 -> 682.5949558 | AF24: ='Main calculation'!AF19 -> 675.3594493 | AG24: ='Main calculation'!AG19 -> 668.2006391 | AH24: ='Main calculation'!AH19 -> 661.1177124 | AI24: ='Main calculation'!AI19 -> 0 | AJ24: ='Main calculation'!AJ19 -> 0 | AK24: ='Main calculation'!AK19 -> 0 | AL24: ='Main calculation'!AL19 -> 0 | AM24: ='Main calculation'!AM19 -> 0 | AN24: ='Main calculation'!AN19 -> 0 | AO24: ='Main calculation'!AO19 -> 0 | AP24: ='Main calculation'!AP19 -> 0 | AQ24: ='Main calculation'!AQ19 -> 0 | AR24: ='Main calculation'!AR19 -> 0 | AS24: ='Main calculation'!AS19 -> 0 | AT24: ='Main calculation'!AT19 -> 0 | AU24: ='Main calculation'!AU19 -> 0 | AV24: ='Main calculation'!AV19 -> 0 | AW24: ='Main calculation'!AW19 -> 0 | AX24: ='Main calculation'!AX19 -> 0 | AY24: ='Main calculation'!AY19 -> 0 | AZ24: ='Main calculation'!AZ19 -> 0 | BA24: ='Main calculation'!BA19 -> 0 | BB24: ='Main calculation'!BB19 -> 0
B25: Total savings | D25: =SUM(D22:D24) -> 93313.81513 | E25: =SUM(E22:E24) -> 2918 | F25: =SUM(F22:F24) -> 2912.67372 | G25: 2917.399388 | H25: 2924.544601 | I25: 2934.074171 | J25: 2945.959342 | K25: 2958.370277 | L25: 2971.314519 | M25: 2984.799797 | N25: 2998.834024 | O25: 3013.425301 | P25: 3028.581923 | Q25: 3044.312382 | R25: 3060.625366 | S25: 3077.52977 | T25: 3095.034695 | U25: 3113.149451 | V25: 3131.883565 | W25: 3151.246783 | X25: 3171.249072 | Y25: 3191.900627 | Z25: 3213.211875 | AA25: 3235.193477 | AB25: 3257.856336 | AC25: 3281.211598 | AD25: 3305.270658 | AE25: 3330.045167 | AF25: 3355.547033 | AG25: 3381.788427 | AH25: 3408.78179 | AI25: 0 | AJ25: 0 | AK25: 0 | AL25: 0 | AM25: 0 | AN25: 0 | AO25: 0 | AP25: 0 | AQ25: 0 | AR25: 0 | AS25: 0 | AT25: 0 | AU25: 0 | AV25: 0 | AW25: 0 | AX25: 0 | AY25: 0 | AZ25: 0 | BA25: 0 | BB25: 0
B27: Expenditure
C28: Management cost after renovation | D28: =SUM(E28:BB28) -> 36146.15857 | E28: ='Main calculation'!E46 -> 891 | F28: ='Main calculation'!F46 -> 908.82 | G28: ='Main calculation'!G46 -> 926.9964 | H28: ='Main calculation'!H46 -> 945.536328 | I28: ='Main calculation'!I46 -> 964.4470546 | J28: ='Main calculation'!J46 -> 983.7359957 | K28: ='Main calculation'!K46 -> 1003.410716 | L28: ='Main calculation'!L46 -> 1023.47893 | M28: ='Main calculation'!M46 -> 1043.948508 | N28: ='Main calculation'!N46 -> 1064.827479 | O28: ='Main calculation'!O46 -> 1086.124028 | P28: ='Main calculation'!P46 -> 1107.846509 | Q28: ='Main calculation'!Q46 -> 1130.003439 | R28: ='Main calculation'!R46 -> 1152.603508 | S28: ='Main calculation'!S46 -> 1175.655578 | T28: ='Main calculation'!T46 -> 1199.168689 | U28: ='Main calculation'!U46 -> 1223.152063 | V28: ='Main calculation'!V46 -> 1247.615105 | W28: ='Main calculation'!W46 -> 1272.567407 | X28: ='Main calculation'!X46 -> 1298.018755 | Y28: ='Main calculation'!Y46 -> 1323.97913 | Z28: ='Main calculation'!Z46 -> 1350.458712 | AA28: ='Main calculation'!AA46 -> 1377.467887 | AB28: ='Main calculation'!AB46 -> 1405.017244 | AC28: ='Main calculation'!AC46 -> 1433.117589 | AD28: ='Main calculation'!AD46 -> 1461.779941 | AE28: ='Main calculation'!AE46 -> 1491.01554 | AF28: ='Main calculation'!AF46 -> 1520.835851 | AG28: ='Main calculation'!AG46 -> 1551.252568 | AH28: ='Main calculation'!AH46 -> 1582.277619 | AI28: ='Main calculation'!AI46 -> 0 | AJ28: ='Main calculation'!AJ46 -> 0 | AK28: ='Main calculation'!AK46 -> 0 | AL28: ='Main calculation'!AL46 -> 0 | AM28: ='Main calculation'!AM46 -> 0 | AN28: ='Main calculation'!AN46 -> 0 | AO28: ='Main calculation'!AO46 -> 0 | AP28: ='Main calculation'!AP46 -> 0 | AQ28: ='Main calculation'!AQ46 -> 0 | AR28: ='Main calculation'!AR46 -> 0 | AS28: ='Main calculation'!AS46 -> 0 | AT28: ='Main calculation'!AT46 -> 0 | AU28: ='Main calculation'!AU46 -> 0 | AV28: ='Main calculation'!AV46 -> 0 | AW28: ='Main calculation'!AW46 -> 0 | AX28: ='Main calculation'!AX46 -> 0 | AY28: ='Main calculation'!AY46 -> 0 | AZ28: ='Main calculation'!AZ46 -> 0 | BA28: ='Main calculation'!BA46 -> 0 | BB28: ='Main calculation'!BB46 -> 0
C29: Energiesprong maintenance cost | D29: =SUM(E29:BB29) -> 17128.125 | E29: ='Main calculation'!E48 -> 570.9375 | F29: ='Main calculation'!F48 -> 570.9375 | G29: ='Main calculation'!G48 -> 570.9375 | H29: ='Main calculation'!H48 -> 570.9375 | I29: ='Main calculation'!I48 -> 570.9375 | J29: ='Main calculation'!J48 -> 570.9375 | K29: ='Main calculation'!K48 -> 570.9375 | L29: ='Main calculation'!L48 -> 570.9375 | M29: ='Main calculation'!M48 -> 570.9375 | N29: ='Main calculation'!N48 -> 570.9375 | O29: ='Main calculation'!O48 -> 570.9375 | P29: ='Main calculation'!P48 -> 570.9375 | Q29: ='Main calculation'!Q48 -> 570.9375 | R29: ='Main calculation'!R48 -> 570.9375 | S29: ='Main calculation'!S48 -> 570.9375 | T29: ='Main calculation'!T48 -> 570.9375 | U29: ='Main calculation'!U48 -> 570.9375 | V29: ='Main calculation'!V48 -> 570.9375 | W29: ='Main calculation'!W48 -> 570.9375 | X29: ='Main calculation'!X48 -> 570.9375 | Y29: ='Main calculation'!Y48 -> 570.9375 | Z29: ='Main calculation'!Z48 -> 570.9375 | AA29: ='Main calculation'!AA48 -> 570.9375 | AB29: ='Main calculation'!AB48 -> 570.9375 | AC29: ='Main calculation'!AC48 -> 570.9375 | AD29: ='Main calculation'!AD48 -> 570.9375 | AE29: ='Main calculation'!AE48 -> 570.9375 | AF29: ='Main calculation'!AF48 -> 570.9375 | AG29: ='Main calculation'!AG48 -> 570.9375 | AH29: ='Main calculation'!AH48 -> 570.9375 | AI29: ='Main calculation'!AI48 -> 0 | AJ29: ='Main calculation'!AJ48 -> 0 | AK29: ='Main calculation'!AK48 -> 0 | AL29: ='Main calculation'!AL48 -> 0 | AM29: ='Main calculation'!AM48 -> 0 | AN29: ='Main calculation'!AN48 -> 0 | AO29: ='Main calculation'!AO48 -> 0 | AP29: ='Main calculation'!AP48 -> 0 | AQ29: ='Main calculation'!AQ48 -> 0 | AR29: ='Main calculation'!AR48 -> 0 | AS29: ='Main calculation'!AS48 -> 0 | AT29: ='Main calculation'!AT48 -> 0 | AU29: ='Main calculation'!AU48 -> 0 | AV29: ='Main calculation'!AV48 -> 0 | AW29: ='Main calculation'!AW48 -> 0 | AX29: ='Main calculation'!AX48 -> 0 | AY29: ='Main calculation'!AY48 -> 0 | AZ29: ='Main calculation'!AZ48 -> 0 | BA29: ='Main calculation'!BA48 -> 0 | BB29: ='Main calculation'!BB48 -> 0
C30: Planned & routine maintenance (for non Energiesprong related work) | D30: =SUM(E30:BB30) -> 5603.240694 | E30: ='Main calculation'!E49 -> 190.3125 | F30: ='Main calculation'!F49 -> 188.744325 | G30: ='Main calculation'!G49 -> 188.113919 | H30: ='Main calculation'!H49 -> 187.6699701 | I30: ='Main calculation'!I49 -> 187.4109855 | J30: ='Main calculation'!J49 -> 187.3360212 | K30: ='Main calculation'!K49 -> 187.2610867 | L30: ='Main calculation'!L49 -> 187.1861823 | M30: ='Main calculation'!M49 -> 187.1113078 | N30: ='Main calculation'!N49 -> 187.0364633 | O30: ='Main calculation'!O49 -> 186.9616487 | P30: ='Main calculation'!P49 -> 186.8868641 | Q30: ='Main calculation'!Q49 -> 186.8121093 | R30: ='Main calculation'!R49 -> 186.7373845 | S30: ='Main calculation'!S49 -> 186.6626895 | T30: ='Main calculation'!T49 -> 186.5880244 | U30: ='Main calculation'!U49 -> 186.5133892 | V30: ='Main calculation'!V49 -> 186.4387839 | W30: ='Main calculation'!W49 -> 186.3642084 | X30: ='Main calculation'!X49 -> 186.2896627 | Y30: ='Main calculation'!Y49 -> 186.2151468 | Z30: ='Main calculation'!Z49 -> 186.1406608 | AA30: ='Main calculation'!AA49 -> 186.0662045 | AB30: ='Main calculation'!AB49 -> 185.991778 | AC30: ='Main calculation'!AC49 -> 185.9173813 | AD30: ='Main calculation'!AD49 -> 185.8430144 | AE30: ='Main calculation'!AE49 -> 185.7686771 | AF30: ='Main calculation'!AF49 -> 185.6943697 | AG30: ='Main calculation'!AG49 -> 185.6200919 | AH30: ='Main calculation'!AH49 -> 185.5458439 | AI30: ='Main calculation'!AI49 -> 0 | AJ30: ='Main calculation'!AJ49 -> 0 | AK30: ='Main calculation'!AK49 -> 0 | AL30: ='Main calculation'!AL49 -> 0 | AM30: ='Main calculation'!AM49 -> 0 | AN30: ='Main calculation'!AN49 -> 0 | AO30: ='Main calculation'!AO49 -> 0 | AP30: ='Main calculation'!AP49 -> 0 | AQ30: ='Main calculation'!AQ49 -> 0 | AR30: ='Main calculation'!AR49 -> 0 | AS30: ='Main calculation'!AS49 -> 0 | AT30: ='Main calculation'!AT49 -> 0 | AU30: ='Main calculation'!AU49 -> 0 | AV30: ='Main calculation'!AV49 -> 0 | AW30: ='Main calculation'!AW49 -> 0 | AX30: ='Main calculation'!AX49 -> 0 | AY30: ='Main calculation'!AY49 -> 0 | AZ30: ='Main calculation'!AZ49 -> 0 | BA30: ='Main calculation'!BA49 -> 0 | BB30: ='Main calculation'!BB49 -> 0
C31: Major repairs (post energiesprong) | D31: =SUM(E31:BB31) -> 11633.73318 | E31: ='Main calculation'!E50 -> 456.5 | F31: ='Main calculation'!F50 -> 448.11866 | G31: ='Main calculation'!G50 -> 442.0645769 | H31: ='Main calculation'!H50 -> 436.5210871 | I31: ='Main calculation'!I50 -> 431.4705381 | J31: ='Main calculation'!J50 -> 426.8969504 | K31: ='Main calculation'!K50 -> 422.3718428 | L31: ='Main calculation'!L50 -> 417.8947012 | M31: ='Main calculation'!M50 -> 413.4650174 | N31: ='Main calculation'!N50 -> 409.0822882 | O31: ='Main calculation'!O50 -> 404.7460159 | P31: ='Main calculation'!P50 -> 400.4557082 | Q31: ='Main calculation'!Q50 -> 396.2108777 | R31: ='Main calculation'!R50 -> 392.0110424 | S31: ='Main calculation'!S50 -> 387.8557253 | T31: ='Main calculation'!T50 -> 383.7444546 | U31: ='Main calculation'!U50 -> 379.6767634 | V31: ='Main calculation'!V50 -> 375.6521897 | W31: ='Main calculation'!W50 -> 371.6702765 | X31: ='Main calculation'!X50 -> 367.7305716 | Y31: ='Main calculation'!Y50 -> 363.8326275 | Z31: ='Main calculation'!Z50 -> 359.9760017 | AA31: ='Main calculation'!AA50 -> 356.160256 | AB31: ='Main calculation'!AB50 -> 352.3849573 | AC31: ='Main calculation'!AC50 -> 348.6496768 | AD31: ='Main calculation'!AD50 -> 344.9539902 | AE31: ='Main calculation'!AE50 -> 341.2974779 | AF31: ='Main calculation'!AF50 -> 337.6797247 | AG31: ='Main calculation'!AG50 -> 334.1003196 | AH31: ='Main calculation'!AH50 -> 330.5588562 | AI31: ='Main calculation'!AI50 -> 0 | AJ31: ='Main calculation'!AJ50 -> 0 | AK31: ='Main calculation'!AK50 -> 0 | AL31: ='Main calculation'!AL50 -> 0 | AM31: ='Main calculation'!AM50 -> 0 | AN31: ='Main calculation'!AN50 -> 0 | AO31: ='Main calculation'!AO50 -> 0 | AP31: ='Main calculation'!AP50 -> 0 | AQ31: ='Main calculation'!AQ50 -> 0 | AR31: ='Main calculation'!AR50 -> 0 | AS31: ='Main calculation'!AS50 -> 0 | AT31: ='Main calculation'!AT50 -> 0 | AU31: ='Main calculation'!AU50 -> 0 | AV31: ='Main calculation'!AV50 -> 0 | AW31: ='Main calculation'!AW50 -> 0 | AX31: ='Main calculation'!AX50 -> 0 | AY31: ='Main calculation'!AY50 -> 0 | AZ31: ='Main calculation'!AZ50 -> 0 | BA31: ='Main calculation'!BA50 -> 0 | BB31: ='Main calculation'!BB50 -> 0
C32: Electricity bundle (as per energy plan) | D32: =SUM(E32:BB32) -> 21736.01865 | E32: ='Main calculation'!E51 -> 542.895264 | F32: ='Main calculation'!F51 -> 549.4100072 | G32: ='Main calculation'!G51 -> 558.7499773 | H32: ='Main calculation'!H51 -> 568.8074769 | I32: ='Main calculation'!I51 -> 579.6148189 | J32: ='Main calculation'!J51 -> 591.2071153 | K32: ='Main calculation'!K51 -> 603.0312576 | L32: ='Main calculation'!L51 -> 615.0918828 | M32: ='Main calculation'!M51 -> 627.3937204 | N32: ='Main calculation'!N51 -> 639.9415948 | O32: ='Main calculation'!O51 -> 652.7404267 | P32: ='Main calculation'!P51 -> 665.7952353 | Q32: ='Main calculation'!Q51 -> 679.11114 | R32: ='Main calculation'!R51 -> 692.6933628 | S32: ='Main calculation'!S51 -> 706.54723 | T32: ='Main calculation'!T51 -> 720.6781746 | U32: ='Main calculation'!U51 -> 735.0917381 | V32: ='Main calculation'!V51 -> 749.7935729 | W32: ='Main calculation'!W51 -> 764.7894444 | X32: ='Main calculation'!X51 -> 780.0852332 | Y32: ='Main calculation'!Y51 -> 795.6869379 | Z32: ='Main calculation'!Z51 -> 811.6006767 | AA32: ='Main calculation'!AA51 -> 827.8326902 | AB32: ='Main calculation'!AB51 -> 844.389344 | AC32: ='Main calculation'!AC51 -> 861.2771309 | AD32: ='Main calculation'!AD51 -> 878.5026735 | AE32: ='Main calculation'!AE51 -> 896.072727 | AF32: ='Main calculation'!AF51 -> 913.9941815 | AG32: ='Main calculation'!AG51 -> 932.2740651 | AH32: ='Main calculation'!AH51 -> 950.9195464 | AI32: ='Main calculation'!AI51 -> 0 | AJ32: ='Main calculation'!AJ51 -> 0 | AK32: ='Main calculation'!AK51 -> 0 | AL32: ='Main calculation'!AL51 -> 0 | AM32: ='Main calculation'!AM51 -> 0 | AN32: ='Main calculation'!AN51 -> 0 | AO32: ='Main calculation'!AO51 -> 0 | AP32: ='Main calculation'!AP51 -> 0 | AQ32: ='Main calculation'!AQ51 -> 0 | AR32: ='Main calculation'!AR51 -> 0 | AS32: ='Main calculation'!AS51 -> 0 | AT32: ='Main calculation'!AT51 -> 0 | AU32: ='Main calculation'!AU51 -> 0 | AV32: ='Main calculation'!AV51 -> 0 | AW32: ='Main calculation'!AW51 -> 0 | AX32: ='Main calculation'!AX51 -> 0 | AY32: ='Main calculation'!AY51 -> 0 | AZ32: ='Main calculation'!AZ51 -> 0 | BA32: ='Main calculation'!BA51 -> 0 | BB32: ='Main calculation'!BB51 -> 0
B33: Total expenditure | D33: =SUM(D28:D32) -> 92247.27609 | E33: =SUM(E28:E32) -> 2651.645264 | F33: 2666.030492 | G33: 2686.862373 | H33: 2709.472362 | I33: 2733.880897 | J33: 2760.113583 | K33: 2787.012403 | L33: 2814.589196 | M33: 2842.856054 | N33: 2871.825325 | O33: 2901.50962 | P33: 2931.921816 | Q33: 2963.075066 | R33: 2994.982797 | S33: 3027.658723 | T33: 3061.116843 | U33: 3095.371454 | V33: 3130.437151 | W33: 3166.328836 | X33: 3203.061722 | Y33: 3240.651342 | Z33: 3279.113552 | AA33: 3318.464537 | AB33: 3358.720824 | AC33: 3399.899278 | AD33: 3442.017119 | AE33: 3485.091922 | AF33: 3529.141627 | AG33: 3574.184544 | AH33: 3620.239366 | AI33: 0 | AJ33: 0 | AK33: 0 | AL33: 0 | AM33: 0 | AN33: 0 | AO33: 0 | AP33: 0 | AQ33: 0 | AR33: 0 | AS33: 0 | AT33: 0 | AU33: 0 | AV33: 0 | AW33: 0 | AX33: 0 | AY33: 0 | AZ33: 0 | BA33: 0 | BB33: 0
B35: Annual result | D35: =D19+D25-D33 -> 45454.36328 | E35: 1505.876923 | F35: 1499.404272 | G35: 1502.242615 | H35: 1507.149409 | I35: 1514.135346 | J35: 1522.881697 | K35: 1531.963135 | L35: 1541.385212 | M35: 1551.153618 | N35: 1561.274178 | O35: 1571.75286 | P35: 1582.595773 | Q35: 1593.809174 | R35: 1605.399472 | S35: 1617.373223 | T35: 1629.737144 | U35: 1642.498108 | V35: 1655.663152 | W35: 1669.239477 | X35: 1683.234453 | Y35: 1344.189905 | Z35: 1354.897756 | AA35: 1365.944361 | AB35: 1377.335242 | AC35: 1389.076044 | AD35: 1401.172538 | AE35: 1413.630624 | AF35: 1426.456333 | AG35: 1439.655827 | AH35: 1453.235408 | AI35: 0 | AJ35: =AJ19+AJ25-AJ33 -> 0 | AK35: 0 | AL35: 0 | AM35: 0 | AN35: 0 | AO35: 0 | AP35: 0 | AQ35: 0 | AR35: 0 | AS35: 0 | AT35: 0 | AU35: 0 | AV35: 0 | AW35: 0 | AX35: 0 | AY35: 0 | AZ35: 0 | BA35: 0 | BB35: 0
B37: Net present value (NPV) | E37: =NPV(Input!F96,NPV!E35:BB35) -> 28039.92684 | F37: =Input!F96 -> 0.035 | G37: Discount rate applied as per input table.
E38: The default presents a net present value calculation (NPV) for energiesprong without considering rental income and service charge income.
B40: Rental income used to refinance Energiesprong | D40: =D9+D10 -> 0 | E40: =E9+E10 -> 0 | F40: =F9+F10 -> 0 | G40: 0 | H40: 0 | I40: 0 | J40: 0 | K40: 0 | L40: 0 | M40: 0 | N40: 0 | O40: 0 | P40: 0 | Q40: 0 | R40: 0 | S40: 0 | T40: 0 | U40: 0 | V40: 0 | W40: 0 | X40: 0 | Y40: 0 | Z40: 0 | AA40: 0 | AB40: 0 | AC40: 0 | AD40: 0 | AE40: 0 | AF40: 0 | AG40: 0 | AH40: 0 | AI40: 0 | AJ40: 0 | AK40: 0 | AL40: 0 | AM40: 0 | AN40: 0 | AO40: 0 | AP40: 0 | AQ40: 0 | AR40: 0 | AS40: 0 | AT40: 0 | AU40: 0 | AV40: 0 | AW40: 0 | AX40: 0 | AY40: 0 | AZ40: 0 | BA40: 0 | BB40: 0

Sheet Cashflow
A6: POST ENERGIESPRONG | D6: TOTAL | E6: 1 | F6: =E6+1 -> 2 | G6: =F6+1 -> 3 | H6: 4 | I6: 5 | J6: 6 | K6: 7 | L6: 8 | M6: 9 | N6: 10 | O6: 11 | P6: 12 | Q6: 13 | R6: 14 | S6: 15 | T6: 16 | U6: 17 | V6: 18 | W6: 19 | X6: 20 | Y6: 21 | Z6: 22 | AA6: 23 | AB6: 24 | AC6: 25 | AD6: 26 | AE6: 27 | AF6: 28 | AG6: 29 | AH6: 30 | AI6: 31 | AJ6: 32 | AK6: 33 | AL6: 34 | AM6: 35 | AN6: 36 | AO6: 37 | AP6: 38 | AQ6: 39 | AR6: 40 | AS6: 41 | AT6: 42 | AU6: =AT6+1 -> 43 | AV6: =AU6+1 -> 44 | AW6: =AV6+1 -> 45 | AX6: =AW6+1 -> 46 | AY6: 47 | AZ6: =AY6+1 -> 48 | BA6: =AZ6+1 -> 49 | BB6: 50
B8: Income
B9: =IF(Input!F104="No",0,Input!F105) -> 0 | C9: Rental income (£/y) | D9: =SUM(E9:BB9) -> 0 | E9: =IF($B$9=0,0,'Main calculation'!E32*$B$9) -> 0 | F9: =IF($B$9=0,0,'Main calculation'!F32*$B$9) -> 0 | G9: =IF($B$9=0,0,'Main calculation'!G32*$B$9) -> 0 | H9: =IF($B$9=0,0,'Main calculation'!H32*$B$9) -> 0 | I9: =IF($B$9=0,0,'Main calculation'!I32*$B$9) -> 0 | J9: =IF($B$9=0,0,'Main calculation'!J32*$B$9) -> 0 | K9: =IF($B$9=0,0,'Main calculation'!K32*$B$9) -> 0 | L9: =IF($B$9=0,0,'Main calculation'!L32*$B$9) -> 0 | M9: =IF($B$9=0,0,'Main calculation'!M32*$B$9) -> 0 | N9: =IF($B$9=0,0,'Main calculation'!N32*$B$9) -> 0 | O9: =IF($B$9=0,0,'Main calculation'!O32*$B$9) -> 0 | P9: =IF($B$9=0,0,'Main calculation'!P32*$B$9) -> 0 | Q9: =IF($B$9=0,0,'Main calculation'!Q32*$B$9) -> 0 | R9: =IF($B$9=0,0,'Main calculation'!R32*$B$9) -> 0 | S9: =IF($B$9=0,0,'Main calculation'!S32*$B$9) -> 0 | T9: =IF($B$9=0,0,'Main calculation'!T32*$B$9) -> 0 | U9: =IF($B$9=0,0,'Main calculation'!U32*$B$9) -> 0 | V9: =IF($B$9=0,0,'Main calculation'!V32*$B$9) -> 0 | W9: =IF($B$9=0,0,'Main calculation'!W32*$B$9) -> 0 | X9: =IF($B$9=0,0,'Main calculation'!X32*$B$9) -> 0 | Y9: =IF($B$9=0,0,'Main calculation'!Y32*$B$9) -> 0 | Z9: =IF($B$9=0,0,'Main calculation'!Z32*$B$9) -> 0 | AA9: =IF($B$9=0,0,'Main calculation'!AA32*$B$9) -> 0 | AB9: =IF($B$9=0,0,'Main calculation'!AB32*$B$9) -> 0 | AC9: =IF($B$9=0,0,'Main calculation'!AC32*$B$9) -> 0 | AD9: =IF($B$9=0,0,'Main calculation'!AD32*$B$9) -> 0 | AE9: =IF($B$9=0,0,'Main calculation'!AE32*$B$9) -> 0 | AF9: =IF($B$9=0,0,'Main calculation'!AF32*$B$9) -> 0 | AG9: =IF($B$9=0,0,'Main calculation'!AG32*$B$9) -> 0 | AH9: =IF($B$9=0,0,'Main calculation'!AH32*$B$9) -> 0 | AI9: =IF($B$9=0,0,'Main calculation'!AI32*$B$9) -> 0 | AJ9: =IF($B$9=0,0,'Main calculation'!AJ32*$B$9) -> 0 | AK9: =IF($B$9=0,0,'Main calculation'!AK32*$B$9) -> 0 | AL9: =IF($B$9=0,0,'Main calculation'!AL32*$B$9) -> 0 | AM9: =IF($B$9=0,0,'Main calculation'!AM32*$B$9) -> 0 | AN9: =IF($B$9=0,0,'Main calculation'!AN32*$B$9) -> 0 | AO9: =IF($B$9=0,0,'Main calculation'!AO32*$B$9) -> 0 | AP9: =IF($B$9=0,0,'Main calculation'!AP32*$B$9) -> 0 | AQ9: =IF($B$9=0,0,'Main calculation'!AQ32*$B$9) -> 0 | AR9: =IF($B$9=0,0,'Main calculation'!AR32*$B$9) -> 0 | AS9: =IF($B$9=0,0,'Main calculation'!AS32*$B$9) -> 0 | AT9: =IF($B$9=0,0,'Main calculation'!AT32*$B$9) -> 0 | AU9: =IF($B$9=0,0,'Main calculation'!AU32*$B$9) -> 0 | AV9: =IF($B$9=0,0,'Main calculation'!AV32*$B$9) -> 0 | AW9: =IF($B$9=0,0,'Main calculation'!AW32*$B$9) -> 0 | AX9: =IF($B$9=0,0,'Main calculation'!AX32*$B$9) -> 0 | AY9: =IF($B$9=0,0,'Main calculation'!AY32*$B$9) -> 0 | AZ9: =IF($B$9=0,0,'Main calculation'!AZ32*$B$9) -> 0 | BA9: =IF($B$9=0,0,'Main calculation'!BA32*$B$9) -> 0 | BB9: =IF($B$9=0,0,'Main calculation'!BB32*$B$9) -> 0
B10: =IF(Input!F104="No",0,Input!F105) -> 0 | C10: Bad debt (£) | D10: 0 | E10: =IF($B$10=0,0,'Main calculation'!E33*$B$10) -> 0 | F10: =IF($B$10=0,0,'Main calculation'!F33*$B$10) -> 0 | G10: =IF($B$10=0,0,'Main calculation'!G33*$B$10) -> 0 | H10: =IF($B$10=0,0,'Main calculation'!H33*$B$10) -> 0 | I10: =IF($B$10=0,0,'Main calculation'!I33*$B$10) -> 0 | J10: =IF($B$10=0,0,'Main calculation'!J33*$B$10) -> 0 | K10: =IF($B$10=0,0,'Main calculation'!K33*$B$10) -> 0 | L10: =IF($B$10=0,0,'Main calculation'!L33*$B$10) -> 0 | M10: =IF($B$10=0,0,'Main calculation'!M33*$B$10) -> 0 | N10: =IF($B$10=0,0,'Main calculation'!N33*$B$10) -> 0 | O10: =IF($B$10=0,0,'Main calculation'!O33*$B$10) -> 0 | P10: =IF($B$10=0,0,'Main calculation'!P33*$B$10) -> 0 | Q10: =IF($B$10=0,0,'Main calculation'!Q33*$B$10) -> 0 | R10: =IF($B$10=0,0,'Main calculation'!R33*$B$10) -> 0 | S10: =IF($B$10=0,0,'Main calculation'!S33*$B$10) -> 0 | T10: =IF($B$10=0,0,'Main calculation'!T33*$B$10) -> 0 | U10: =IF($B$10=0,0,'Main calculation'!U33*$B$10) -> 0 | V10: =IF($B$10=0,0,'Main calculation'!V33*$B$10) -> 0 | W10: =IF($B$10=0,0,'Main calculation'!W33*$B$10) -> 0 | X10: =IF($B$10=0,0,'Main calculation'!X33*$B$10) -> 0 | Y10: =IF($B$10=0,0,'Main calculation'!Y33*$B$10) -> 0 | Z10: =IF($B$10=0,0,'Main calculation'!Z33*$B$10) -> 0 | AA10: =IF($B$10=0,0,'Main calculation'!AA33*$B$10) -> 0 | AB10: =IF($B$10=0,0,'Main calculation'!AB33*$B$10) -> 0 | AC10: =IF($B$10=0,0,'Main calculation'!AC33*$B$10) -> 0 | AD10: =IF($B$10=0,0,'Main calculation'!AD33*$B$10) -> 0 | AE10: =IF($B$10=0,0,'Main calculation'!AE33*$B$10) -> 0 | AF10: =IF($B$10=0,0,'Main calculation'!AF33*$B$10) -> 0 | AG10: =IF($B$10=0,0,'Main calculation'!AG33*$B$10) -> 0 | AH10: =IF($B$10=0,0,'Main calculation'!AH33*$B$10) -> 0 | AI10: =IF($B$10=0,0,'Main calculation'!AI33*$B$10) -> 0 | AJ10: =IF($B$10=0,0,'Main calculation'!AJ33*$B$10) -> 0 | AK10: =IF($B$10=0,0,'Main calculation'!AK33*$B$10) -> 0 | AL10: =IF($B$10=0,0,'Main calculation'!AL33*$B$10) -> 0 | AM10: =IF($B$10=0,0,'Main calculation'!AM33*$B$10) -> 0 | AN10: =IF($B$10=0,0,'Main calculation'!AN33*$B$10) -> 0 | AO10: =IF($B$10=0,0,'Main calculation'!AO33*$B$10) -> 0 | AP10: =IF($B$10=0,0,'Main calculation'!AP33*$B$10) -> 0 | AQ10: =IF($B$10=0,0,'Main calculation'!AQ33*$B$10) -> 0 | AR10: =IF($B$10=0,0,'Main calculation'!AR33*$B$10) -> 0 | AS10: =IF($B$10=0,0,'Main calculation'!AS33*$B$10) -> 0 | AT10: =IF($B$10=0,0,'Main calculation'!AT33*$B$10) -> 0 | AU10: =IF($B$10=0,0,'Main calculation'!AU33*$B$10) -> 0 | AV10: =IF($B$10=0,0,'Main calculation'!AV33*$B$10) -> 0 | AW10: =IF($B$10=0,0,'Main calculation'!AW33*$B$10) -> 0 | AX10: =IF($B$10=0,0,'Main calculation'!AX33*$B$10) -> 0 | AY10: =IF($B$10=0,0,'Main calculation'!AY33*$B$10) -> 0 | AZ10: =IF($B$10=0,0,'Main calculation'!AZ33*$B$10) -> 0 | BA10: =IF($B$10=0,0,'Main calculation'!BA33*$B$10) -> 0 | BB10: =IF($B$10=0,0,'Main calculation'!BB33*$B$10) -> 0
B11: 0 | C11: Service charge (£) | D11: 0 | E11: =IF($B$11=0,0,'Main calculation'!E34) -> 0 | F11: =IF($B$11=0,0,'Main calculation'!F34) -> 0 | G11: =IF($B$11=0,0,'Main calculation'!G34) -> 0 | H11: =IF($B$11=0,0,'Main calculation'!H34) -> 0 | I11: =IF($B$11=0,0,'Main calculation'!I34) -> 0 | J11: =IF($B$11=0,0,'Main calculation'!J34) -> 0 | K11: =IF($B$11=0,0,'Main calculation'!K34) -> 0 | L11: =IF($B$11=0,0,'Main calculation'!L34) -> 0 | M11: =IF($B$11=0,0,'Main calculation'!M34) -> 0 | N11: =IF($B$11=0,0,'Main calculation'!N34) -> 0 | O11: =IF($B$11=0,0,'Main calculation'!O34) -> 0 | P11: =IF($B$11=0,0,'Main calculation'!P34) -> 0 | Q11: =IF($B$11=0,0,'Main calculation'!Q34) -> 0 | R11: =IF($B$11=0,0,'Main calculation'!R34) -> 0 | S11: =IF($B$11=0,0,'Main calculation'!S34) -> 0 | T11: =IF($B$11=0,0,'Main calculation'!T34) -> 0 | U11: =IF($B$11=0,0,'Main calculation'!U34) -> 0 | V11: =IF($B$11=0,0,'Main calculation'!V34) -> 0 | W11: =IF($B$11=0,0,'Main calculation'!W34) -> 0 | X11: =IF($B$11=0,0,'Main calculation'!X34) -> 0 | Y11: =IF($B$11=0,0,'Main calculation'!Y34) -> 0 | Z11: =IF($B$11=0,0,'Main calculation'!Z34) -> 0 | AA11: =IF($B$11=0,0,'Main calculation'!AA34) -> 0 | AB11: =IF($B$11=0,0,'Main calculation'!AB34) -> 0 | AC11: =IF($B$11=0,0,'Main calculation'!AC34) -> 0 | AD11: =IF($B$11=0,0,'Main calculation'!AD34) -> 0 | AE11: =IF($B$11=0,0,'Main calculation'!AE34) -> 0 | AF11: =IF($B$11=0,0,'Main calculation'!AF34) -> 0 | AG11: =IF($B$11=0,0,'Main calculation'!AG34) -> 0 | AH11: =IF($B$11=0,0,'Main calculation'!AH34) -> 0 | AI11: =IF($B$11=0,0,'Main calculation'!AI34) -> 0 | AJ11: =IF($B$11=0,0,'Main calculation'!AJ34) -> 0 | AK11: =IF($B$11=0,0,'Main calculation'!AK34) -> 0 | AL11: =IF($B$11=0,0,'Main calculation'!AL34) -> 0 | AM11: =IF($B$11=0,0,'Main calculation'!AM34) -> 0 | AN11: =IF($B$11=0,0,'Main calculation'!AN34) -> 0 | AO11: =IF($B$11=0,0,'Main calculation'!AO34) -> 0 | AP11: =IF($B$11=0,0,'Main calculation'!AP34) -> 0 | AQ11: =IF($B$11=0,0,'Main calculation'!AQ34) -> 0 | AR11: =IF($B$11=0,0,'Main calculation'!AR34) -> 0 | AS11: =IF($B$11=0,0,'Main calculation'!AS34) -> 0 | AT11: =IF($B$11=0,0,'Main calculation'!AT34) -> 0 | AU11: =IF($B$11=0,0,'Main calculation'!AU34) -> 0 | AV11: =IF($B$11=0,0,'Main calculation'!AV34) -> 0 | AW11: =IF($B$11=0,0,'Main calculation'!AW34) -> 0 | AX11: =IF($B$11=0,0,'Main calculation'!AX34) -> 0 | AY11: =IF($B$11=0,0,'Main calculation'!AY34) -> 0 | AZ11: =IF($B$11=0,0,'Main calculation'!AZ34) -> 0 | BA11: =IF($B$11=0,0,'Main calculation'!BA34) -> 0 | BB11: =IF($B$11=0,0,'Main calculation'!BB34) -> 0
B12: =IF(Input!F106="No",0,1) -> 1 | C12: Energy plan (£) | D12: =SUM(E12:BB12) -> 38435.7339 | E12: =IF($B$12=0,0,'Main calculation'!E35) -> 960 | F12: =IF($B$12=0,0,'Main calculation'!F35) -> 971.52 | G12: =IF($B$12=0,0,'Main calculation'!G35) -> 988.03584 | H12: =IF($B$12=0,0,'Main calculation'!H35) -> 1005.820485 | I12: =IF($B$12=0,0,'Main calculation'!I35) -> 1024.931074 | J12: =IF($B$12=0,0,'Main calculation'!J35) -> 1045.429696 | K12: =IF($B$12=0,0,'Main calculation'!K35) -> 1066.33829 | L12: =IF($B$12=0,0,'Main calculation'!L35) -> 1087.665056 | M12: =IF($B$12=0,0,'Main calculation'!M35) -> 1109.418357 | N12: =IF($B$12=0,0,'Main calculation'!N35) -> 1131.606724 | O12: =IF($B$12=0,0,'Main calculation'!O35) -> 1154.238858 | P12: =IF($B$12=0,0,'Main calculation'!P35) -> 1177.323635 | Q12: =IF($B$12=0,0,'Main calculation'!Q35) -> 1200.870108 | R12: =IF($B$12=0,0,'Main calculation'!R35) -> 1224.88751 | S12: =IF($B$12=0,0,'Main calculation'!S35) -> 1249.38526 | T12: =IF($B$12=0,0,'Main calculation'!T35) -> 1274.372966 | U12: =IF($B$12=0,0,'Main calculation'!U35) -> 1299.860425 | V12: =IF($B$12=0,0,'Main calculation'!V35) -> 1325.857634 | W12: =IF($B$12=0,0,'Main calculation'!W35) -> 1352.374786 | X12: =IF($B$12=0,0,'Main calculation'!X35) -> 1379.422282 | Y12: =IF($B$12=0,0,'Main calculation'!Y35) -> 1407.010728 | Z12: =IF($B$12=0,0,'Main calculation'!Z35) -> 1435.150942 | AA12: =IF($B$12=0,0,'Main calculation'!AA35) -> 1463.853961 | AB12: =IF($B$12=0,0,'Main calculation'!AB35) -> 1493.13104 | AC12: =IF($B$12=0,0,'Main calculation'!AC35) -> 1522.993661 | AD12: =IF($B$12=0,0,'Main calculation'!AD35) -> 1553.453534 | AE12: =IF($B$12=0,0,'Main calculation'!AE35) -> 1584.522605 | AF12: =IF($B$12=0,0,'Main calculation'!AF35) -> 1616.213057 | AG12: =IF($B$12=0,0,'Main calculation'!AG35) -> 1648.537318 | AH12: =IF($B$12=0,0,'Main calculation'!AH35) -> 1681.508064 | AI12: =IF($B$12=0,0,'Main calculation'!AI35) -> 0 | AJ12: =IF($B$12=0,0,'Main calculation'!AJ35) -> 0 | AK12: =IF($B$12=0,0,'Main calculation'!AK35) -> 0 | AL12: =IF($B$12=0,0,'Main calculation'!AL35) -> 0 | AM12: =IF($B$12=0,0,'Main calculation'!AM35) -> 0 | AN12: =IF($B$12=0,0,'Main calculation'!AN35) -> 0 | AO12: =IF($B$12=0,0,'Main calculation'!AO35) -> 0 | AP12: =IF($B$12=0,0,'Main calculation'!AP35) -> 0 | AQ12: =IF($B$12=0,0,'Main calculation'!AQ35) -> 0 | AR12: =IF($B$12=0,0,'Main calculation'!AR35) -> 0 | AS12: =IF($B$12=0,0,'Main calculation'!AS35) -> 0 | AT12: =IF($B$12=0,0,'Main calculation'!AT35) -> 0 | AU12: =IF($B$12=0,0,'Main calculation'!AU35) -> 0 | AV12: =IF($B$12=0,0,'Main calculation'!AV35) -> 0 | AW12: =IF($B$12=0,0,'Main calculation'!AW35) -> 0 | AX12: =IF($B$12=0,0,'Main calculation'!AX35) -> 0 | AY12: =IF($B$12=0,0,'Main calculation'!AY35) -> 0 | AZ12: =IF($B$12=0,0,'Main calculation'!AZ35) -> 0 | BA12: =IF($B$12=0,0,'Main calculation'!BA35) -> 0 | BB12: =IF($B$12=0,0,'Main calculation'!BB35) -> 0
B13: =IF(Input!F106="No",0,1) -> 1 | C13: Bad debt on energy plan (£) | D13: =SUM(E13:BB13) -> -384.357339 | E13: =IF($B$13=0,0,'Main calculation'!E36) -> -9.6 | F13: =IF($B$13=0,0,'Main calculation'!F36) -> -9.7152 | G13: =IF($B$13=0,0,'Main calculation'!G36) -> -9.8803584 | H13: =IF($B$13=0,0,'Main calculation'!H36) -> -10.05820485 | I13: =IF($B$13=0,0,'Main calculation'!I36) -> -10.24931074 | J13: =IF($B$13=0,0,'Main calculation'!J36) -> -10.45429696 | K13: =IF($B$13=0,0,'Main calculation'!K36) -> -10.6633829 | L13: =IF($B$13=0,0,'Main calculation'!L36) -> -10.87665056 | M13: =IF($B$13=0,0,'Main calculation'!M36) -> -11.09418357 | N13: =IF($B$13=0,0,'Main calculation'!N36) -> -11.31606724 | O13: =IF($B$13=0,0,'Main calculation'!O36) -> -11.54238858 | P13: =IF($B$13=0,0,'Main calculation'!P36) -> -11.77323635 | Q13: =IF($B$13=0,0,'Main calculation'!Q36) -> -12.00870108 | R13: =IF($B$13=0,0,'Main calculation'!R36) -> -12.2488751 | S13: =IF($B$13=0,0,'Main calculation'!S36) -> -12.4938526 | T13: =IF($B$13=0,0,'Main calculation'!T36) -> -12.74372966 | U13: =IF($B$13=0,0,'Main calculation'!U36) -> -12.99860425 | V13: =IF($B$13=0,0,'Main calculation'!V36) -> -13.25857634 | W13: =IF($B$13=0,0,'Main calculation'!W36) -> -13.52374786 | X13: =IF($B$13=0,0,'Main calculation'!X36) -> -13.79422282 | Y13: =IF($B$13=0,0,'Main calculation'!Y36) -> -14.07010728 | Z13: =IF($B$13=0,0,'Main calculation'!Z36) -> -14.35150942 | AA13: =IF($B$13=0,0,'Main calculation'!AA36) -> -14.63853961 | AB13: =IF($B$13=0,0,'Main calculation'!AB36) -> -14.9313104 | AC13: =IF($B$13=0,0,'Main calculation'!AC36) -> -15.22993661 | AD13: =IF($B$13=0,0,'Main calculation'!AD36) -> -15.53453534 | AE13: =IF($B$13=0,0,'Main calculation'!AE36) -> -15.84522605 | AF13: =IF($B$13=0,0,'Main calculation'!AF36) -> -16.16213057 | AG13: =IF($B$13=0,0,'Main calculation'!AG36) -> -16.48537318 | AH13: =IF($B$13=0,0,'Main calculation'!AH36) -> -16.81508064 | AI13: =IF($B$13=0,0,'Main calculation'!AI36) -> 0 | AJ13: =IF($B$13=0,0,'Main calculation'!AJ36) -> 0 | AK13: =IF($B$13=0,0,'Main calculation'!AK36) -> 0 | AL13: =IF($B$13=0,0,'Main calculation'!AL36) -> 0 | AM13: =IF($B$13=0,0,'Main calculation'!AM36) -> 0 | AN13: =IF($B$13=0,0,'Main calculation'!AN36) -> 0 | AO13: =IF($B$13=0,0,'Main calculation'!AO36) -> 0 | AP13: =IF($B$13=0,0,'Main calculation'!AP36) -> 0 | AQ13: =IF($B$13=0,0,'Main calculation'!AQ36) -> 0 | AR13: =IF($B$13=0,0,'Main calculation'!AR36) -> 0 | AS13: =IF($B$13=0,0,'Main calculation'!AS36) -> 0 | AT13: =IF($B$13=0,0,'Main calculation'!AT36) -> 0 | AU13: =IF($B$13=0,0,'Main calculation'!AU36) -> 0 | AV13: =IF($B$13=0,0,'Main calculation'!AV36) -> 0 | AW13: =IF($B$13=0,0,'Main calculation'!AW36) -> 0 | AX13: =IF($B$13=0,0,'Main calculation'!AX36) -> 0 | AY13: =IF($B$13=0,0,'Main calculation'!AY36) -> 0 | AZ13: =IF($B$13=0,0,'Main calculation'!AZ36) -> 0 | BA13: =IF($B$13=0,0,'Main calculation'!BA36) -> 0 | BB13: =IF($B$13=0,0,'Main calculation'!BB36) -> 0
B14: 0 | C14: Residual value at lifetime end (£) | E14: =IF($B$14=0,0,'Main calculation'!E37) -> 0 | F14: =IF($B$14=0,0,'Main calculation'!F37) -> 0 | G14: =IF($B$14=0,0,'Main calculation'!G37) -> 0 | H14: =IF($B$14=0,0,'Main calculation'!H37) -> 0 | I14: =IF($B$14=0,0,'Main calculation'!I37) -> 0 | J14: =IF($B$14=0,0,'Main calculation'!J37) -> 0 | K14: =IF($B$14=0,0,'Main calculation'!K37) -> 0 | L14: =IF($B$14=0,0,'Main calculation'!L37) -> 0 | M14: =IF($B$14=0,0,'Main calculation'!M37) -> 0 | N14: =IF($B$14=0,0,'Main calculation'!N37) -> 0 | O14: =IF($B$14=0,0,'Main calculation'!O37) -> 0 | P14: =IF($B$14=0,0,'Main calculation'!P37) -> 0 | Q14: =IF($B$14=0,0,'Main calculation'!Q37) -> 0 | R14: =IF($B$14=0,0,'Main calculation'!R37) -> 0 | S14: =IF($B$14=0,0,'Main calculation'!S37) -> 0 | T14: =IF($B$14=0,0,'Main calculation'!T37) -> 0 | U14: =IF($B$14=0,0,'Main calculation'!U37) -> 0 | V14: =IF($B$14=0,0,'Main calculation'!V37) -> 0 | W14: =IF($B$14=0,0,'Main calculation'!W37) -> 0 | X14: =IF($B$14=0,0,'Main calculation'!X37) -> 0 | Y14: =IF($B$14=0,0,'Main calculation'!Y37) -> 0 | Z14: =IF($B$14=0,0,'Main calculation'!Z37) -> 0 | AA14: =IF($B$14=0,0,'Main calculation'!AA37) -> 0 | AB14: =IF($B$14=0,0,'Main calculation'!AB37) -> 0 | AC14: =IF($B$14=0,0,'Main calculation'!AC37) -> 0 | AD14: =IF($B$14=0,0,'Main calculation'!AD37) -> 0 | AE14: =IF($B$14=0,0,'Main calculation'!AE37) -> 0 | AF14: =IF($B$14=0,0,'Main calculation'!AF37) -> 0 | AG14: =IF($B$14=0,0,'Main calculation'!AG37) -> 0 | AH14: =IF($B$14=0,0,'Main calculation'!AH37) -> 0 | AI14: =IF($B$14=0,0,'Main calculation'!AI37) -> 0 | AJ14: =IF($B$14=0,0,'Main calculation'!AJ37) -> 0 | AK14: =IF($B$14=0,0,'Main calculation'!AK37) -> 0 | AL14: =IF($B$14=0,0,'Main calculation'!AL37) -> 0 | AM14: =IF($B$14=0,0,'Main calculation'!AM37) -> 0 | AN14: =IF($B$14=0,0,'Main calculation'!AN37) -> 0 | AO14: =IF($B$14=0,0,'Main calculation'!AO37) -> 0 | AP14: =IF($B$14=0,0,'Main calculation'!AP37) -> 0 | AQ14: =IF($B$14=0,0,'Main calculation'!AQ37) -> 0 | AR14: =IF($B$14=0,0,'Main calculation'!AR37) -> 0 | AS14: =IF($B$14=0,0,'Main calculation'!AS37) -> 0 | AT14: =IF($B$14=0,0,'Main calculation'!AT37) -> 0 | AU14: =IF($B$14=0,0,'Main calculation'!AU37) -> 0 | AV14: =IF($B$14=0,0,'Main calculation'!AV37) -> 0 | AW14: =IF($B$14=0,0,'Main calculation'!AW37) -> 0 | AX14: =IF($B$14=0,0,'Main calculation'!AX37) -> 0 | AY14: =IF($B$14=0,0,'Main calculation'!AY37) -> 0 | AZ14: =IF($B$14=0,0,'Main calculation'!AZ37) -> 0 | BA14: =IF($B$14=0,0,'Main calculation'!BA37) -> 0 | BB14: =IF($B$14=0,0,'Main calculation'!BB37) -> 0
B15: =IF(Input!F107="No",0,1) -> 1 | C15: Income from FiT (£) | D15: =SUM(E15:BB15) -> 6336.447676 | E15: =IF($B$15=0,0,'Main calculation'!E38+'Main calculation'!E39) -> 289.1221875 | F15: =IF($B$15=0,0,'Main calculation'!F38+'Main calculation'!F39) -> 290.9562439 | G15: =IF($B$15=0,0,'Main calculation'!G38+'Main calculation'!G39) -> 293.5501179 | H15: =IF($B$15=0,0,'Main calculation'!H38+'Main calculation'!H39) -> 296.3148898 | I15: =IF($B$15=0,0,'Main calculation'!I38+'Main calculation'!I39) -> 299.2603084 | J15: =IF($B$15=0,0,'Main calculation'!J38+'Main calculation'!J39) -> 302.0605383 | K15: =IF($B$15=0,0,'Main calculation'!K38+'Main calculation'!K39) -> 304.930354 | L15: =IF($B$15=0,0,'Main calculation'!L38+'Main calculation'!L39) -> 307.8714845 | M15: =IF($B$15=0,0,'Main calculation'!M38+'Main calculation'!M39) -> 310.8857022 | N15: =IF($B$15=0,0,'Main calculation'!N38+'Main calculation'!N39) -> 313.9748231 | O15: =IF($B$15=0,0,'Main calculation'!O38+'Main calculation'!O39) -> 317.1407087 | P15: =IF($B$15=0,0,'Main calculation'!P38+'Main calculation'!P39) -> 320.3852666 | Q15: =IF($B$15=0,0,'Main calculation'!Q38+'Main calculation'!Q39) -> 323.7104517 | R15: =IF($B$15=0,0,'Main calculation'!R38+'Main calculation'!R39) -> 327.1182677 | S15: =IF($B$15=0,0,'Main calculation'!S38+'Main calculation'!S39) -> 330.6107679 | T15: =IF($B$15=0,0,'Main calculation'!T38+'Main calculation'!T39) -> 334.1900567 | U15: =IF($B$15=0,0,'Main calculation'!U38+'Main calculation'!U39) -> 337.8582909 | V15: =IF($B$15=0,0,'Main calculation'!V38+'Main calculation'!V39) -> 341.6176806 | W15: =IF($B$15=0,0,'Main calculation'!W38+'Main calculation'!W39) -> 345.4704912 | X15: =IF($B$15=0,0,'Main calculation'!X38+'Main calculation'!X39) -> 349.4190442 | Y15: =IF($B$15=0,0,'Main calculation'!Y38+'Main calculation'!Y39) -> 0 | Z15: =IF($B$15=0,0,'Main calculation'!Z38+'Main calculation'!Z39) -> 0 | AA15: =IF($B$15=0,0,'Main calculation'!AA38+'Main calculation'!AA39) -> 0 | AB15: =IF($B$15=0,0,'Main calculation'!AB38+'Main calculation'!AB39) -> 0 | AC15: =IF($B$15=0,0,'Main calculation'!AC38+'Main calculation'!AC39) -> 0 | AD15: =IF($B$15=0,0,'Main calculation'!AD38+'Main calculation'!AD39) -> 0 | AE15: =IF($B$15=0,0,'Main calculation'!AE38+'Main calculation'!AE39) -> 0 | AF15: =IF($B$15=0,0,'Main calculation'!AF38+'Main calculation'!AF39) -> 0 | AG15: =IF($B$15=0,0,'Main calculation'!AG38+'Main calculation'!AG39) -> 0 | AH15: =IF($B$15=0,0,'Main calculation'!AH38+'Main calculation'!AH39) -> 0 | AI15: =IF($B$15=0,0,'Main calculation'!AI38+'Main calculation'!AI39) -> 0 | AJ15: =IF($B$15=0,0,'Main calculation'!AJ38+'Main calculation'!AJ39) -> 0 | AK15: =IF($B$15=0,0,'Main calculation'!AK38+'Main calculation'!AK39) -> 0 | AL15: =IF($B$15=0,0,'Main calculation'!AL38+'Main calculation'!AL39) -> 0 | AM15: =IF($B$15=0,0,'Main calculation'!AM38+'Main calculation'!AM39) -> 0 | AN15: =IF($B$15=0,0,'Main calculation'!AN38+'Main calculation'!AN39) -> 0 | AO15: =IF($B$15=0,0,'Main calculation'!AO38+'Main calculation'!AO39) -> 0 | AP15: =IF($B$15=0,0,'Main calculation'!AP38+'Main calculation'!AP39) -> 0 | AQ15: =IF($B$15=0,0,'Main calculation'!AQ38+'Main calculation'!AQ39) -> 0 | AR15: =IF($B$15=0,0,'Main calculation'!AR38+'Main calculation'!AR39) -> 0 | AS15: =IF($B$15=0,0,'Main calculation'!AS38+'Main calculation'!AS39) -> 0 | AT15: =IF($B$15=0,0,'Main calculation'!AT38+'Main calculation'!AT39) -> 0 | AU15: =IF($B$15=0,0,'Main calculation'!AU38+'Main calculation'!AU39) -> 0 | AV15: =IF($B$15=0,0,'Main calculation'!AV38+'Main calculation'!AV39) -> 0 | AW15: =IF($B$15=0,0,'Main calculation'!AW38+'Main calculation'!AW39) -> 0 | AX15: =IF($B$15=0,0,'Main calculation'!AX38+'Main calculation'!AX39) -> 0 | AY15: =IF($B$15=0,0,'Main calculation'!AY38+'Main calculation'!AY39) -> 0 | AZ15: =IF($B$15=0,0,'Main calculation'!AZ38+'Main calculation'!AZ39) -> 0 | BA15: =IF($B$15=0,0,'Main calculation'!BA38+'Main calculation'!BA39) -> 0 | BB15: =IF($B$15=0,0,'Main calculation'!BB38+'Main calculation'!BB39) -> 0
C16: Income from ASHP (RHI)
C17: Income from GSHP (RHI)
C18: Income from solar thermal (RHI)
B19: Total revenue | D19: =SUM(D9:D18) -> 44387.82423 | E19: =SUM(E9:E15) -> 1239.522187 | F19: =SUM(F9:F15) -> 1252.761044 | G19: 1271.705599 | H19: 1292.07717 | I19: 1313.942072 | J19: 1337.035937 | K19: 1360.605261 | L19: 1384.659889 | M19: 1409.209875 | N19: 1434.26548 | O19: 1459.837178 | P19: 1485.935666 | Q19: 1512.571859 | R19: 1539.756903 | S19: 1567.502176 | T19: 1595.819293 | U19: 1624.720112 | V19: 1654.216738 | W19: 1684.32153 | X19: 1715.047103 | Y19: 1392.94062 | Z19: 1420.799433 | AA19: 1449.215421 | AB19: 1478.19973 | AC19: 1507.763724 | AD19: 1537.918999 | AE19: 1568.677379 | AF19: 1600.050926 | AG19: 1632.051945 | AH19: 1664.692984 | AI19: 0 | AJ19: 0 | AK19: 0 | AL19: 0 | AM19: 0 | AN19: 0 | AO19: 0 | AP19: 0 | AQ19: 0 | AR19: 0 | AS19: 0 | AT19: 0 | AU19: 0 | AV19: 0 | AW19: 0 | AX19: 0 | AY19: 0 | AZ19: 0 | BA19: 0 | BB19: 0
B21: Foregone investment cost
C22: Management cost before renovation | D22: =SUM(E22:BB22) -> 40162.39841 | E22: ='Main calculation'!E16 -> 990 | F22: ='Main calculation'!F16 -> 1009.8 | G22: ='Main calculation'!G16 -> 1029.996 | H22: ='Main calculation'!H16 -> 1050.59592 | I22: ='Main calculation'!I16 -> 1071.607838 | J22: ='Main calculation'!J16 -> 1093.039995 | K22: ='Main calculation'!K16 -> 1114.900795 | L22: ='Main calculation'!L16 -> 1137.198811 | M22: ='Main calculation'!M16 -> 1159.942787 | N22: ='Main calculation'!N16 -> 1183.141643 | O22: ='Main calculation'!O16 -> 1206.804476 | P22: ='Main calculation'!P16 -> 1230.940565 | Q22: ='Main calculation'!Q16 -> 1255.559377 | R22: ='Main calculation'!R16 -> 1280.670564 | S22: ='Main calculation'!S16 -> 1306.283975 | T22: ='Main calculation'!T16 -> 1332.409655 | U22: ='Main calculation'!U16 -> 1359.057848 | V22: ='Main calculation'!V16 -> 1386.239005 | W22: ='Main calculation'!W16 -> 1413.963785 | X22: ='Main calculation'!X16 -> 1442.243061 | Y22: ='Main calculation'!Y16 -> 1471.087922 | Z22: ='Main calculation'!Z16 -> 1500.50968 | AA22: ='Main calculation'!AA16 -> 1530.519874 | AB22: ='Main calculation'!AB16 -> 1561.130272 | AC22: ='Main calculation'!AC16 -> 1592.352877 | AD22: ='Main calculation'!AD16 -> 1624.199935 | AE22: ='Main calculation'!AE16 -> 1656.683933 | AF22: ='Main calculation'!AF16 -> 1689.817612 | AG22: ='Main calculation'!AG16 -> 1723.613964 | AH22: ='Main calculation'!AH16 -> 1758.086243 | AI22: ='Main calculation'!AI16 -> 0 | AJ22: ='Main calculation'!AJ16 -> 0 | AK22: ='Main calculation'!AK16 -> 0 | AL22: ='Main calculation'!AL16 -> 0 | AM22: ='Main calculation'!AM16 -> 0 | AN22: ='Main calculation'!AN16 -> 0 | AO22: ='Main calculation'!AO16 -> 0 | AP22: ='Main calculation'!AP16 -> 0 | AQ22: ='Main calculation'!AQ16 -> 0 | AR22: ='Main calculation'!AR16 -> 0 | AS22: ='Main calculation'!AS16 -> 0 | AT22: ='Main calculation'!AT16 -> 0 | AU22: ='Main calculation'!AU16 -> 0 | AV22: ='Main calculation'!AV16 -> 0 | AW22: ='Main calculation'!AW16 -> 0 | AX22: ='Main calculation'!AX16 -> 0 | AY22: ='Main calculation'!AY16 -> 0 | AZ22: ='Main calculation'!AZ16 -> 0 | BA22: ='Main calculation'!BA16 -> 0 | BB22: ='Main calculation'!BB16 -> 0
C23: Planned & routine maintenance (offset against energiesprong) | D23: =SUM(E23:BB23) -> 29883.95037 | E23: ='Main calculation'!E18 -> 1015 | F23: ='Main calculation'!F18 -> 1006.6364 | G23: ='Main calculation'!G18 -> 1003.274234 | H23: ='Main calculation'!H18 -> 1000.906507 | I23: ='Main calculation'!I18 -> 999.5252563 | J23: ='Main calculation'!J18 -> 999.1254461 | K23: ='Main calculation'!K18 -> 998.725796 | L23: ='Main calculation'!L18 -> 998.3263057 | M23: ='Main calculation'!M18 -> 997.9269751 | N23: ='Main calculation'!N18 -> 997.5278043 | O23: ='Main calculation'!O18 -> 997.1287932 | P23: ='Main calculation'!P18 -> 996.7299417 | Q23: ='Main calculation'!Q18 -> 996.3312497 | R23: ='Main calculation'!R18 -> 995.9327172 | S23: ='Main calculation'!S18 -> 995.5343441 | T23: ='Main calculation'!T18 -> 995.1361304 | U23: ='Main calculation'!U18 -> 994.7380759 | V23: ='Main calculation'!V18 -> 994.3401807 | W23: ='Main calculation'!W18 -> 993.9424446 | X23: ='Main calculation'!X18 -> 993.5448677 | Y23: ='Main calculation'!Y18 -> 993.1474497 | Z23: ='Main calculation'!Z18 -> 992.7501907 | AA23: ='Main calculation'!AA18 -> 992.3530907 | AB23: ='Main calculation'!AB18 -> 991.9561494 | AC23: ='Main calculation'!AC18 -> 991.559367 | AD23: ='Main calculation'!AD18 -> 991.1627432 | AE23: ='Main calculation'!AE18 -> 990.7662781 | AF23: ='Main calculation'!AF18 -> 990.3699716 | AG23: ='Main calculation'!AG18 -> 989.9738236 | AH23: ='Main calculation'!AH18 -> 989.5778341 | AI23: ='Main calculation'!AI18 -> 0 | AJ23: ='Main calculation'!AJ18 -> 0 | AK23: ='Main calculation'!AK18 -> 0 | AL23: ='Main calculation'!AL18 -> 0 | AM23: ='Main calculation'!AM18 -> 0 | AN23: ='Main calculation'!AN18 -> 0 | AO23: ='Main calculation'!AO18 -> 0 | AP23: ='Main calculation'!AP18 -> 0 | AQ23: ='Main calculation'!AQ18 -> 0 | AR23: ='Main calculation'!AR18 -> 0 | AS23: ='Main calculation'!AS18 -> 0 | AT23: ='Main calculation'!AT18 -> 0 | AU23: ='Main calculation'!AU18 -> 0 | AV23: ='Main calculation'!AV18 -> 0 | AW23: ='Main calculation'!AW18 -> 0 | AX23: ='Main calculation'!AX18 -> 0 | AY23: ='Main calculation'!AY18 -> 0 | AZ23: ='Main calculation'!AZ18 -> 0 | BA23: ='Main calculation'!BA18 -> 0 | BB23: ='Main calculation'!BB18 -> 0
C24: Major repairs (offset against energiesprong) | D24: =SUM(E24:BB24) -> 23267.46635 | E24: ='Main calculation'!E19 -> 913 | F24: ='Main calculation'!F19 -> 896.23732 | G24: ='Main calculation'!G19 -> 884.1291538 | H24: ='Main calculation'!H19 -> 873.0421742 | I24: ='Main calculation'!I19 -> 862.9410763 | J24: ='Main calculation'!J19 -> 853.7939009 | K24: ='Main calculation'!K19 -> 844.7436855 | L24: ='Main calculation'!L19 -> 835.7894024 | M24: ='Main calculation'!M19 -> 826.9300348 | N24: ='Main calculation'!N19 -> 818.1645764 | O24: ='Main calculation'!O19 -> 809.4920319 | P24: ='Main calculation'!P19 -> 800.9114164 | Q24: ='Main calculation'!Q19 -> 792.4217553 | R24: ='Main calculation'!R19 -> 784.0220847 | S24: ='Main calculation'!S19 -> 775.7114506 | T24: ='Main calculation'!T19 -> 767.4889093 | U24: ='Main calculation'!U19 -> 759.3535268 | V24: ='Main calculation'!V19 -> 751.3043794 | W24: ='Main calculation'!W19 -> 743.340553 | X24: ='Main calculation'!X19 -> 735.4611432 | Y24: ='Main calculation'!Y19 -> 727.665255 | Z24: ='Main calculation'!Z19 -> 719.9520033 | AA24: ='Main calculation'!AA19 -> 712.3205121 | AB24: ='Main calculation'!AB19 -> 704.7699147 | AC24: ='Main calculation'!AC19 -> 697.2993536 | AD24: ='Main calculation'!AD19 -> 689.9079804 | AE24: ='Main calculation'!AE19 -> 682.5949558 | AF24: ='Main calculation'!AF19 -> 675.3594493 | AG24: ='Main calculation'!AG19 -> 668.2006391 | AH24: ='Main calculation'!AH19 -> 661.1177124 | AI24: ='Main calculation'!AI19 -> 0 | AJ24: ='Main calculation'!AJ19 -> 0 | AK24: ='Main calculation'!AK19 -> 0 | AL24: ='Main calculation'!AL19 -> 0 | AM24: ='Main calculation'!AM19 -> 0 | AN24: ='Main calculation'!AN19 -> 0 | AO24: ='Main calculation'!AO19 -> 0 | AP24: ='Main calculation'!AP19 -> 0 | AQ24: ='Main calculation'!AQ19 -> 0 | AR24: ='Main calculation'!AR19 -> 0 | AS24: ='Main calculation'!AS19 -> 0 | AT24: ='Main calculation'!AT19 -> 0 | AU24: ='Main calculation'!AU19 -> 0 | AV24: ='Main calculation'!AV19 -> 0 | AW24: ='Main calculation'!AW19 -> 0 | AX24: ='Main calculation'!AX19 -> 0 | AY24: ='Main calculation'!AY19 -> 0 | AZ24: ='Main calculation'!AZ19 -> 0 | BA24: ='Main calculation'!BA19 -> 0 | BB24: ='Main calculation'!BB19 -> 0
B25: Total savings | D25: =SUM(D22:D24) -> 93313.81513 | E25: =SUM(E22:E24) -> 2918 | F25: =SUM(F22:F24) -> 2912.67372 | G25: 2917.399388 | H25: 2924.544601 | I25: 2934.074171 | J25: 2945.959342 | K25: 2958.370277 | L25: 2971.314519 | M25: 2984.799797 | N25: 2998.834024 | O25: 3013.425301 | P25: 3028.581923 | Q25: 3044.312382 | R25: 3060.625366 | S25: 3077.52977 | T25: 3095.034695 | U25: 3113.149451 | V25: 3131.883565 | W25: 3151.246783 | X25: 3171.249072 | Y25: 3191.900627 | Z25: 3213.211875 | AA25: 3235.193477 | AB25: 3257.856336 | AC25: 3281.211598 | AD25: 3305.270658 | AE25: 3330.045167 | AF25: 3355.547033 | AG25: 3381.788427 | AH25: 3408.78179 | AI25: 0 | AJ25: 0 | AK25: 0 | AL25: 0 | AM25: 0 | AN25: 0 | AO25: 0 | AP25: 0 | AQ25: 0 | AR25: 0 | AS25: 0 | AT25: 0 | AU25: 0 | AV25: 0 | AW25: 0 | AX25: 0 | AY25: 0 | AZ25: 0 | BA25: 0 | BB25: 0
B27: Expenditure
C28: Repayment of debt finance | D28: =SUM(E28:BB28) -> 45454.36328 | E28: =-Financing!D17 -> 1515.145443 | F28: =-Financing!E17 -> 1515.145443 | G28: =-Financing!F17 -> 1515.145443 | H28: =-Financing!G17 -> 1515.145443 | I28: =-Financing!H17 -> 1515.145443 | J28: =-Financing!I17 -> 1515.145443 | K28: =-Financing!J17 -> 1515.145443 | L28: =-Financing!K17 -> 1515.145443 | M28: =-Financing!L17 -> 1515.145443 | N28: =-Financing!M17 -> 1515.145443 | O28: =-Financing!N17 -> 1515.145443 | P28: =-Financing!O17 -> 1515.145443 | Q28: =-Financing!P17 -> 1515.145443 | R28: =-Financing!Q17 -> 1515.145443 | S28: =-Financing!R17 -> 1515.145443 | T28: =-Financing!S17 -> 1515.145443 | U28: =-Financing!T17 -> 1515.145443 | V28: =-Financing!U17 -> 1515.145443 | W28: =-Financing!V17 -> 1515.145443 | X28: =-Financing!W17 -> 1515.145443 | Y28: =-Financing!X17 -> 1515.145443 | Z28: =-Financing!Y17 -> 1515.145443 | AA28: =-Financing!Z17 -> 1515.145443 | AB28: =-Financing!AA17 -> 1515.145443 | AC28: =-Financing!AB17 -> 1515.145443 | AD28: =-Financing!AC17 -> 1515.145443 | AE28: =-Financing!AD17 -> 1515.145443 | AF28: =-Financing!AE17 -> 1515.145443 | AG28: =-Financing!AF17 -> 1515.145443 | AH28: =-Financing!AG17 -> 1515.145443 | AI28: =-Financing!AH17 -> 0 | AJ28: =-Financing!AI17 -> 0 | AK28: =-Financing!AJ17 -> 0 | AL28: =-Financing!AK17 -> 0 | AM28: =-Financing!AL17 -> 0 | AN28: =-Financing!AM17 -> 0 | AO28: =-Financing!AN17 -> 0 | AP28: =-Financing!AO17 -> 0 | AQ28: =-Financing!AP17 -> 0 | AR28: =-Financing!AQ17 -> 0 | AS28: =-Financing!AR17 -> 0 | AT28: =-Financing!AS17 -> 0 | AU28: =-Financing!AT17 -> 0 | AV28: =-Financing!AU17 -> 0 | AW28: =-Financing!AV17 -> 0 | AX28: =-Financing!AW17 -> 0 | AY28: =-Financing!AX17 -> 0 | AZ28: =-Financing!AY17 -> 0 | BA28: =-Financing!AZ17 -> 0 | BB28: =-Financing!BA17 -> 0
C29: Management cost post renovation | D29: 36146.15857 | E29: ='Main calculation'!E46 -> 891 | F29: ='Main calculation'!F46 -> 908.82 | G29: ='Main calculation'!G46 -> 926.9964 | H29: ='Main calculation'!H46 -> 945.536328 | I29: ='Main calculation'!I46 -> 964.4470546 | J29: ='Main calculation'!J46 -> 983.7359957 | K29: ='Main calculation'!K46 -> 1003.410716 | L29: ='Main calculation'!L46 -> 1023.47893 | M29: ='Main calculation'!M46 -> 1043.948508 | N29: ='Main calculation'!N46 -> 1064.827479 | O29: ='Main calculation'!O46 -> 1086.124028 | P29: ='Main calculation'!P46 -> 1107.846509 | Q29: ='Main calculation'!Q46 -> 1130.003439 | R29: ='Main calculation'!R46 -> 1152.603508 | S29: ='Main calculation'!S46 -> 1175.655578 | T29: ='Main calculation'!T46 -> 1199.168689 | U29: ='Main calculation'!U46 -> 1223.152063 | V29: ='Main calculation'!V46 -> 1247.615105 | W29: ='Main calculation'!W46 -> 1272.567407 | X29: ='Main calculation'!X46 -> 1298.018755 | Y29: ='Main calculation'!Y46 -> 1323.97913 | Z29: ='Main calculation'!Z46 -> 1350.458712 | AA29: ='Main calculation'!AA46 -> 1377.467887 | AB29: ='Main calculation'!AB46 -> 1405.017244 | AC29: ='Main calculation'!AC46 -> 1433.117589 | AD29: ='Main calculation'!AD46 -> 1461.779941 | AE29: ='Main calculation'!AE46 -> 1491.01554 | AF29: ='Main calculation'!AF46 -> 1520.835851 | AG29: ='Main calculation'!AG46 -> 1551.252568 | AH29: ='Main calculation'!AH46 -> 1582.277619 | AI29: ='Main calculation'!AI46 -> 0 | AJ29: ='Main calculation'!AJ46 -> 0 | AK29: ='Main calculation'!AK46 -> 0 | AL29: ='Main calculation'!AL46 -> 0 | AM29: ='Main calculation'!AM46 -> 0 | AN29: ='Main calculation'!AN46 -> 0 | AO29: ='Main calculation'!AO46 -> 0 | AP29: ='Main calculation'!AP46 -> 0 | AQ29: ='Main calculation'!AQ46 -> 0 | AR29: ='Main calculation'!AR46 -> 0 | AS29: ='Main calculation'!AS46 -> 0 | AT29: ='Main calculation'!AT46 -> 0 | AU29: ='Main calculation'!AU46 -> 0 | AV29: ='Main calculation'!AV46 -> 0 | AW29: ='Main calculation'!AW46 -> 0 | AX29: ='Main calculation'!AX46 -> 0 | AY29: ='Main calculation'!AY46 -> 0 | AZ29: ='Main calculation'!AZ46 -> 0 | BA29: ='Main calculation'!BA46 -> 0 | BB29: ='Main calculation'!BB46 -> 0
C30: Energiesprong maintenance cost | D30: 17128.125 | E30: ='Main calculation'!E48 -> 570.9375 | F30: ='Main calculation'!F48 -> 570.9375 | G30: ='Main calculation'!G48 -> 570.9375 | H30: ='Main calculation'!H48 -> 570.9375 | I30: ='Main calculation'!I48 -> 570.9375 | J30: ='Main calculation'!J48 -> 570.9375 | K30: ='Main calculation'!K48 -> 570.9375 | L30: ='Main calculation'!L48 -> 570.9375 | M30: ='Main calculation'!M48 -> 570.9375 | N30: ='Main calculation'!N48 -> 570.9375 | O30: ='Main calculation'!O48 -> 570.9375 | P30: ='Main calculation'!P48 -> 570.9375 | Q30: ='Main calculation'!Q48 -> 570.9375 | R30: ='Main calculation'!R48 -> 570.9375 | S30: ='Main calculation'!S48 -> 570.9375 | T30: ='Main calculation'!T48 -> 570.9375 | U30: ='Main calculation'!U48 -> 570.9375 | V30: ='Main calculation'!V48 -> 570.9375 | W30: ='Main calculation'!W48 -> 570.9375 | X30: ='Main calculation'!X48 -> 570.9375 | Y30: ='Main calculation'!Y48 -> 570.9375 | Z30: ='Main calculation'!Z48 -> 570.9375 | AA30: ='Main calculation'!AA48 -> 570.9375 | AB30: ='Main calculation'!AB48 -> 570.9375 | AC30: ='Main calculation'!AC48 -> 570.9375 | AD30: ='Main calculation'!AD48 -> 570.9375 | AE30: ='Main calculation'!AE48 -> 570.9375 | AF30: ='Main calculation'!AF48 -> 570.9375 | AG30: ='Main calculation'!AG48 -> 570.9375 | AH30: ='Main calculation'!AH48 -> 570.9375 | AI30: ='Main calculation'!AI48 -> 0 | AJ30: ='Main calculation'!AJ48 -> 0 | AK30: ='Main calculation'!AK48 -> 0 | AL30: ='Main calculation'!AL48 -> 0 | AM30: ='Main calculation'!AM48 -> 0 | AN30: ='Main calculation'!AN48 -> 0 | AO30: ='Main calculation'!AO48 -> 0 | AP30: ='Main calculation'!AP48 -> 0 | AQ30: ='Main calculation'!AQ48 -> 0 | AR30: ='Main calculation'!AR48 -> 0 | AS30: ='Main calculation'!AS48 -> 0 | AT30: ='Main calculation'!AT48 -> 0 | AU30: ='Main calculation'!AU48 -> 0 | AV30: ='Main calculation'!AV48 -> 0 | AW30: ='Main calculation'!AW48 -> 0 | AX30: ='Main calculation'!AX48 -> 0 | AY30: ='Main calculation'!AY48 -> 0 | AZ30: ='Main calculation'!AZ48 -> 0 | BA30: ='Main calculation'!BA48 -> 0 | BB30: ='Main calculation'!BB48 -> 0
C31: Planned & routine maintenance (for non Energiesprong related work) | D31: 5603.240694 | E31: ='Main calculation'!E49 -> 190.3125 | F31: ='Main calculation'!F49 -> 188.744325 | G31: ='Main calculation'!G49 -> 188.113919 | H31: ='Main calculation'!H49 -> 187.6699701 | I31: ='Main calculation'!I49 -> 187.4109855 | J31: ='Main calculation'!J49 -> 187.3360212 | K31: ='Main calculation'!K49 -> 187.2610867 | L31: ='Main calculation'!L49 -> 187.1861823 | M31: ='Main calculation'!M49 -> 187.1113078 | N31: ='Main calculation'!N49 -> 187.0364633 | O31: ='Main calculation'!O49 -> 186.9616487 | P31: ='Main calculation'!P49 -> 186.8868641 | Q31: ='Main calculation'!Q49 -> 186.8121093 | R31: ='Main calculation'!R49 -> 186.7373845 | S31: ='Main calculation'!S49 -> 186.6626895 | T31: ='Main calculation'!T49 -> 186.5880244 | U31: ='Main calculation'!U49 -> 186.5133892 | V31: ='Main calculation'!V49 -> 186.4387839 | W31: ='Main calculation'!W49 -> 186.3642084 | X31: ='Main calculation'!X49 -> 186.2896627 | Y31: ='Main calculation'!Y49 -> 186.2151468 | Z31: ='Main calculation'!Z49 -> 186.1406608 | AA31: ='Main calculation'!AA49 -> 186.0662045 | AB31: ='Main calculation'!AB49 -> 185.991778 | AC31: ='Main calculation'!AC49 -> 185.9173813 | AD31: ='Main calculation'!AD49 -> 185.8430144 | AE31: ='Main calculation'!AE49 -> 185.7686771 | AF31: ='Main calculation'!AF49 -> 185.6943697 | AG31: ='Main calculation'!AG49 -> 185.6200919 | AH31: ='Main calculation'!AH49 -> 185.5458439 | AI31: ='Main calculation'!AI49 -> 0 | AJ31: ='Main calculation'!AJ49 -> 0 | AK31: ='Main calculation'!AK49 -> 0 | AL31: ='Main calculation'!AL49 -> 0 | AM31: ='Main calculation'!AM49 -> 0 | AN31: ='Main calculation'!AN49 -> 0 | AO31: ='Main calculation'!AO49 -> 0 | AP31: ='Main calculation'!AP49 -> 0 | AQ31: ='Main calculation'!AQ49 -> 0 | AR31: ='Main calculation'!AR49 -> 0 | AS31: ='Main calculation'!AS49 -> 0 | AT31: ='Main calculation'!AT49 -> 0 | AU31: ='Main calculation'!AU49 -> 0 | AV31: ='Main calculation'!AV49 -> 0 | AW31: ='Main calculation'!AW49 -> 0 | AX31: ='Main calculation'!AX49 -> 0 | AY31: ='Main calculation'!AY49 -> 0 | AZ31: ='Main calculation'!AZ49 -> 0 | BA31: ='Main calculation'!BA49 -> 0 | BB31: ='Main calculation'!BB49 -> 0
C32: Major repairs (post energiesprong) | D32: 11633.73318 | E32: ='Main calculation'!E50 -> 456.5 | F32: ='Main calculation'!F50 -> 448.11866 | G32: ='Main calculation'!G50 -> 442.0645769 | H32: ='Main calculation'!H50 -> 436.5210871 | I32: ='Main calculation'!I50 -> 431.4705381 | J32: ='Main calculation'!J50 -> 426.8969504 | K32: ='Main calculation'!K50 -> 422.3718428 | L32: ='Main calculation'!L50 -> 417.8947012 | M32: ='Main calculation'!M50 -> 413.4650174 | N32: ='Main calculation'!N50 -> 409.0822882 | O32: ='Main calculation'!O50 -> 404.7460159 | P32: ='Main calculation'!P50 -> 400.4557082 | Q32: ='Main calculation'!Q50 -> 396.2108777 | R32: ='Main calculation'!R50 -> 392.0110424 | S32: ='Main calculation'!S50 -> 387.8557253 | T32: ='Main calculation'!T50 -> 383.7444546 | U32: ='Main calculation'!U50 -> 379.6767634 | V32: ='Main calculation'!V50 -> 375.6521897 | W32: ='Main calculation'!W50 -> 371.6702765 | X32: ='Main calculation'!X50 -> 367.7305716 | Y32: ='Main calculation'!Y50 -> 363.8326275 | Z32: ='Main calculation'!Z50 -> 359.9760017 | AA32: ='Main calculation'!AA50 -> 356.160256 | AB32: ='Main calculation'!AB50 -> 352.3849573 | AC32: ='Main calculation'!AC50 -> 348.6496768 | AD32: ='Main calculation'!AD50 -> 344.9539902 | AE32: ='Main calculation'!AE50 -> 341.2974779 | AF32: ='Main calculation'!AF50 -> 337.6797247 | AG32: ='Main calculation'!AG50 -> 334.1003196 | AH32: ='Main calculation'!AH50 -> 330.5588562 | AI32: ='Main calculation'!AI50 -> 0 | AJ32: ='Main calculation'!AJ50 -> 0 | AK32: ='Main calculation'!AK50 -> 0 | AL32: ='Main calculation'!AL50 -> 0 | AM32: ='Main calculation'!AM50 -> 0 | AN32: ='Main calculation'!AN50 -> 0 | AO32: ='Main calculation'!AO50 -> 0 | AP32: ='Main calculation'!AP50 -> 0 | AQ32: ='Main calculation'!AQ50 -> 0 | AR32: ='Main calculation'!AR50 -> 0 | AS32: ='Main calculation'!AS50 -> 0 | AT32: ='Main calculation'!AT50 -> 0 | AU32: ='Main calculation'!AU50 -> 0 | AV32: ='Main calculation'!AV50 -> 0 | AW32: ='Main calculation'!AW50 -> 0 | AX32: ='Main calculation'!AX50 -> 0 | AY32: ='Main calculation'!AY50 -> 0 | AZ32: ='Main calculation'!AZ50 -> 0 | BA32: ='Main calculation'!BA50 -> 0 | BB32: ='Main calculation'!BB50 -> 0
C33: Electricity bundle (as per energy plan) | D33: 21736.01865 | E33: ='Main calculation'!E51 -> 542.895264 | F33: ='Main calculation'!F51 -> 549.4100072 | G33: ='Main calculation'!G51 -> 558.7499773 | H33: ='Main calculation'!H51 -> 568.8074769 | I33: ='Main calculation'!I51 -> 579.6148189 | J33: ='Main calculation'!J51 -> 591.2071153 | K33: ='Main calculation'!K51 -> 603.0312576 | L33: ='Main calculation'!L51 -> 615.0918828 | M33: ='Main calculation'!M51 -> 627.3937204 | N33: ='Main calculation'!N51 -> 639.9415948 | O33: ='Main calculation'!O51 -> 652.7404267 | P33: ='Main calculation'!P51 -> 665.7952353 | Q33: ='Main calculation'!Q51 -> 679.11114 | R33: ='Main calculation'!R51 -> 692.6933628 | S33: ='Main calculation'!S51 -> 706.54723 | T33: ='Main calculation'!T51 -> 720.6781746 | U33: ='Main calculation'!U51 -> 735.0917381 | V33: ='Main calculation'!V51 -> 749.7935729 | W33: ='Main calculation'!W51 -> 764.7894444 | X33: ='Main calculation'!X51 -> 780.0852332 | Y33: ='Main calculation'!Y51 -> 795.6869379 | Z33: ='Main calculation'!Z51 -> 811.6006767 | AA33: ='Main calculation'!AA51 -> 827.8326902 | AB33: ='Main calculation'!AB51 -> 844.389344 | AC33: ='Main calculation'!AC51 -> 861.2771309 | AD33: ='Main calculation'!AD51 -> 878.5026735 | AE33: ='Main calculation'!AE51 -> 896.072727 | AF33: ='Main calculation'!AF51 -> 913.9941815 | AG33: ='Main calculation'!AG51 -> 932.2740651 | AH33: ='Main calculation'!AH51 -> 950.9195464 | AI33: ='Main calculation'!AI51 -> 0 | AJ33: ='Main calculation'!AJ51 -> 0 | AK33: ='Main calculation'!AK51 -> 0 | AL33: ='Main calculation'!AL51 -> 0 | AM33: ='Main calculation'!AM51 -> 0 | AN33: ='Main calculation'!AN51 -> 0 | AO33: ='Main calculation'!AO51 -> 0 | AP33: ='Main calculation'!AP51 -> 0 | AQ33: ='Main calculation'!AQ51 -> 0 | AR33: ='Main calculation'!AR51 -> 0 | AS33: ='Main calculation'!AS51 -> 0 | AT33: ='Main calculation'!AT51 -> 0 | AU33: ='Main calculation'!AU51 -> 0 | AV33: ='Main calculation'!AV51 -> 0 | AW33: ='Main calculation'!AW51 -> 0 | AX33: ='Main calculation'!AX51 -> 0 | AY33: ='Main calculation'!AY51 -> 0 | AZ33: ='Main calculation'!AZ51 -> 0 | BA33: ='Main calculation'!BA51 -> 0 | BB33: ='Main calculation'!BB51 -> 0
B34: Total expenditure | D34: =SUM(D28:D33) -> 137701.6394 | E34: 4166.790707 | F34: 4181.175935 | G34: 4202.007816 | H34: 4224.617805 | I34: 4249.02634 | J34: 4275.259025 | K34: 4302.157845 | L34: 4329.734639 | M34: 4358.001497 | N34: 4386.970768 | O34: 4416.655062 | P34: 4447.067259 | Q34: 4478.220509 | R34: 4510.12824 | S34: 4542.804165 | T34: 4576.262286 | U34: 4610.516897 | V34: 4645.582594 | W34: 4681.474278 | X34: 4718.207165 | Y34: 4755.796785 | Z34: 4794.258994 | AA34: 4833.60998 | AB34: 4873.866266 | AC34: 4915.044721 | AD34: 4957.162562 | AE34: 5000.237365 | AF34: 5044.287069 | AG34: 5089.329987 | AH34: 5135.384808 | AI34: 0 | AJ34: =SUM(AJ28:AJ33) -> 0 | AK34: 0 | AL34: 0 | AM34: 0 | AN34: 0 | AO34: 0 | AP34: 0 | AQ34: 0 | AR34: 0 | AS34: 0 | AT34: 0 | AU34: 0 | AV34: 0 | AW34: 0 | AX34: 0 | AY34: 0 | AZ34: 0 | BA34: 0 | BB34: 0
B36: Annual result | D36: =D19+D25-D34 -> 0 | E36: -9.268519091 | F36: -15.74117081 | G36: -12.90282805 | H36: -7.996033188 | I36: -1.010096841 | J36: 7.736254231 | K36: 16.81769208 | L36: 26.23976978 | M36: 36.0081756 | N36: 46.12873573 | O36: 56.60741706 | P36: 67.4503301 | Q36: 78.6637319 | R36: 90.25402901 | S36: 102.2277806 | T36: 114.5917016 | U36: 127.3526658 | V36: 140.5177094 | W36: 154.0940339 | X36: 168.0890101 | Y36: -170.9555376 | Z36: -160.2476869 | AA36: -149.2010818 | AB36: -137.8102009 | AC36: -126.069399 | AD36: -113.9729047 | AE36: -101.5148185 | AF36: -88.68910992 | AG36: -75.48961512 | AH36: -61.91003448 | AI36: 0 | AJ36: =AJ19+AJ25-AJ34 -> 0 | AK36: 0 | AL36: 0 | AM36: 0 | AN36: 0 | AO36: 0 | AP36: 0 | AQ36: 0 | AR36: 0 | AS36: 0 | AT36: 0 | AU36: 0 | AV36: 0 | AW36: 0 | AX36: 0 | AY36: 0 | AZ36: 0 | BA36: 0 | BB36: 0
D38: The default cashflow calculation is set to achieve a break even at the end of loan period to identify the maximum energiesprong investment envelope based on debt finance.

Sheet Financing
B7: Total investment | C7: 1 | D7: =D8*C7/C8 -> 30480.20801
B8: Debt | C8: =Input!F100 -> 1 | D8: =Results!C17 -> 30480.20801
B9: Own investment | C9: =Input!F99 -> 0 | D9: =C9*D7 -> 0
B10: Grant | C10: =Input!F98 -> 0 | D10: =D7*C10 -> 0
B12: Cost of borrowing | C12: =Input!F97 -> 0.028
B13: Loan period | C13: =Input!F101 -> 30
C14: =C13*12 -> 360
D16: 1 | E16: 2 | F16: 3 | G16: 4 | H16: 5 | I16: 6 | J16: 7 | K16: 8 | L16: 9 | M16: 10 | N16: 11 | O16: 12 | P16: 13 | Q16: 14 | R16: 15 | S16: 16 | T16: 17 | U16: 18 | V16: 19 | W16: 20 | X16: 21 | Y16: 22 | Z16: 23 | AA16: 24 | AB16: 25 | AC16: 26 | AD16: 27 | AE16: 28 | AF16: 29 | AG16: 30 | AH16: 31 | AI16: 32 | AJ16: 33 | AK16: 34 | AL16: 35 | AM16: 36 | AN16: 37 | AO16: 38 | AP16: 39 | AQ16: 40 | AR16: 41 | AS16: 42 | AT16: 43 | AU16: 44 | AV16: 45 | AW16: 46 | AX16: 47 | AY16: 48 | AZ16: 49 | BA16: 50
B17: Repayment of debt finance | C17: =SUM(C18:C19) -> 45454.36328 | D17: =IF(D16>$C$13,0,PMT($C$12,$C$13,$D$8)) -> -1515.145443 | E17: -1515.145443 | F17: -1515.145443 | G17: -1515.145443 | H17: -1515.145443 | I17: -1515.145443 | J17: -1515.145443 | K17: -1515.145443 | L17: -1515.145443 | M17: -1515.145443 | N17: -1515.145443 | O17: -1515.145443 | P17: -1515.145443 | Q17: -1515.145443 | R17: -1515.145443 | S17: -1515.145443 | T17: -1515.145443 | U17: -1515.145443 | V17: -1515.145443 | W17: -1515.145443 | X17: -1515.145443 | Y17: -1515.145443 | Z17: -1515.145443 | AA17: -1515.145443 | AB17: -1515.145443 | AC17: -1515.145443 | AD17: -1515.145443 | AE17: -1515.145443 | AF17: -1515.145443 | AG17: -1515.145443 | AH17: 0 | AI17: 0 | AJ17: =IF(AJ16>$C$13,0,PMT($C$12,$C$13,$D$8)) -> 0 | AK17: 0 | AL17: 0 | AM17: 0 | AN17: 0 | AO17: 0 | AP17: 0 | AQ17: 0 | AR17: 0 | AS17: 0 | AT17: 0 | AU17: 0 | AV17: 0 | AW17: 0 | AX17: 0 | AY17: 0 | AZ17: 0 | BA17: 0
B18: Repayment of loan (principal) | C18: =-SUM(D18:AQ18) -> 30480.20801 | D18: =IF(D16>$C$13,0,PPMT($C$12,D16,$C$13,$D$8)) -> -661.6996182 | E18: -680.2272075 | F18: -699.2735693 | G18: -718.8532293 | H18: -738.9811197 | I18: -759.6725911 | J18: -780.9434236 | K18: -802.8098395 | L18: -825.288515 | M18: -848.3965934 | N18: -872.151698 | O18: -896.5719456 | P18: -921.67596 | Q18: -947.4828869 | R18: -974.0124077 | S18: -1001.284755 | T18: -1029.320728 | U18: -1058.141709 | V18: -1087.769677 | W18: -1118.227227 | X18: -1149.53759 | Y18: -1181.724642 | Z18: -1214.812932 | AA18: -1248.827694 | AB18: -1283.79487 | AC18: -1319.741126 | AD18: -1356.693878 | AE18: -1394.681306 | AF18: -1433.732383 | AG18: -1473.87689 | AH18: 0 | AI18: 0 | AJ18: =IF(AJ16>$C$13,0,PPMT($C$12,AJ16,$C$13,$D$8)) -> 0 | AK18: 0 | AL18: 0 | AM18: 0 | AN18: 0 | AO18: 0 | AP18: 0 | AQ18: 0 | AR18: 0 | AS18: 0 | AT18: 0 | AU18: 0 | AV18: 0 | AW18: 0 | AX18: 0 | AY18: 0 | AZ18: 0 | BA18: 0
B19: Repayment of loan (interest) | C19: =-SUM(D19:AQ19) -> 14974.15526 | D19: =IF(D16>$C$13,0,IPMT($C$12,D16,$C$13,$D$8)) -> -853.4458244 | E19: -834.9182351 | F19: -815.8718732 | G19: -796.2922133 | H19: -776.1643229 | I19: -755.4728515 | J19: -734.202019 | K19: -712.3356031 | L19: -689.8569276 | M19: -666.7488492 | N19: -642.9937446 | O19: -618.573497 | P19: -593.4694826 | Q19: -567.6625557 | R19: -541.1330348 | S19: -513.8606874 | T19: -485.8247143 | U19: -457.0037339 | V19: -427.375766 | W19: -396.9182151 | X19: -365.6078527 | Y19: -333.4208002 | Z19: -300.3325102 | AA19: -266.3177481 | AB19: -231.3505727 | AC19: -195.4043163 | AD19: -158.4515648 | AE19: -120.4641362 | AF19: -81.41305963 | AG19: -41.26855291 | AH19: 0 | AI19: 0 | AJ19: =IF(AJ16>$C$13,0,IPMT($C$12,AJ16,$C$13,$D$8)) -> 0 | AK19: 0 | AL19: 0 | AM19: 0 | AN19: 0 | AO19: 0 | AP19: 0 | AQ19: 0 | AR19: 0 | AS19: 0 | AT19: 0 | AU19: 0 | AV19: 0 | AW19: 0 | AX19: 0 | AY19: 0 | AZ19: 0 | BA19: 0

Sheet Cost of living
A6: PRE ENERGIESPRONG | E6: 1 | F6: =E6+1 -> 2 | G6: =F6+1 -> 3 | H6: 4 | I6: 5 | J6: 6 | K6: 7 | L6: 8 | M6: 9 | N6: 10 | O6: 11 | P6: 12 | Q6: 13 | R6: 14 | S6: 15 | T6: 16 | U6: 17 | V6: 18 | W6: 19 | X6: 20 | Y6: 21 | Z6: 22 | AA6: 23 | AB6: 24 | AC6: 25 | AD6: 26 | AE6: 27 | AF6: 28 | AG6: 29 | AH6: 30 | AI6: 31 | AJ6: 32 | AK6: 33 | AL6: 34 | AM6: 35 | AN6: 36 | AO6: 37 | AP6: 38 | AQ6: 39 | AR6: 40 | AS6: 41 | AT6: 42 | AU6: =AT6+1 -> 43 | AV6: 44 | AW6: =AV6+1 -> 45 | AX6: 46 | AY6: 47 | AZ6: =AY6+1 -> 48 | BA6: 49 | BB6: 50
B8: Cost to tenant
C9: Rent (£) | E9: ='Main calculation'!E9 -> 4700.28 | F9: ='Main calculation'!F32 -> 4653.2772 | G9: ='Main calculation'!G32 -> 4606.744428 | H9: ='Main calculation'!H32 -> 4560.676984 | I9: ='Main calculation'!I32 -> 4515.070214 | J9: ='Main calculation'!J32 -> 4600.856548 | K9: ='Main calculation'!K32 -> 4692.873679 | L9: ='Main calculation'!L32 -> 4786.731152 | M9: ='Main calculation'!M32 -> 4882.465776 | N9: ='Main calculation'!N32 -> 4980.115091 | O9: ='Main calculation'!O32 -> 5079.717393 | P9: ='Main calculation'!P32 -> 5181.311741 | Q9: ='Main calculation'!Q32 -> 5284.937976 | R9: ='Main calculation'!R32 -> 5390.636735 | S9: ='Main calculation'!S32 -> 5498.44947 | T9: ='Main calculation'!T32 -> 5608.418459 | U9: ='Main calculation'!U32 -> 5720.586828 | V9: ='Main calculation'!V32 -> 5834.998565 | W9: ='Main calculation'!W32 -> 5951.698536 | X9: ='Main calculation'!X32 -> 6070.732507 | Y9: ='Main calculation'!Y32 -> 6192.147157 | Z9: ='Main calculation'!Z32 -> 6315.9901 | AA9: ='Main calculation'!AA32 -> 6442.309902 | AB9: ='Main calculation'!AB32 -> 6571.1561 | AC9: ='Main calculation'!AC32 -> 6702.579222 | AD9: ='Main calculation'!AD32 -> 6836.630807 | AE9: ='Main calculation'!AE32 -> 6973.363423 | AF9: ='Main calculation'!AF32 -> 7112.830691 | AG9: ='Main calculation'!AG32 -> 7255.087305 | AH9: ='Main calculation'!AH32 -> 7400.189051 | AI9: ='Main calculation'!AI32 -> 0 | AJ9: ='Main calculation'!AJ32 -> 0 | AK9: ='Main calculation'!AK32 -> 0 | AL9: ='Main calculation'!AL32 -> 0 | AM9: ='Main calculation'!AM32 -> 0 | AN9: ='Main calculation'!AN32 -> 0 | AO9: ='Main calculation'!AO32 -> 0 | AP9: ='Main calculation'!AP32 -> 0 | AQ9: ='Main calculation'!AQ32 -> 0 | AR9: ='Main calculation'!AR32 -> 0 | AS9: ='Main calculation'!AS32 -> 0 | AT9: ='Main calculation'!AT32 -> 0 | AU9: ='Main calculation'!AU32 -> 0 | AV9: ='Main calculation'!AV32 -> 0 | AW9: ='Main calculation'!AW32 -> 0 | AX9: ='Main calculation'!AX32 -> 0 | AY9: ='Main calculation'!AY32 -> 0 | AZ9: ='Main calculation'!AZ32 -> 0 | BA9: ='Main calculation'!BA32 -> 0 | BB9: ='Main calculation'!BB32 -> 0
C10: Service charge (£) | E10: ='Main calculation'!E11 -> 416 | F10: ='Main calculation'!F11 -> 420.992 | G10: ='Main calculation'!G11 -> 428.148864 | H10: ='Main calculation'!H11 -> 435.8555436 | I10: ='Main calculation'!I11 -> 444.1367989 | J10: ='Main calculation'!J11 -> 453.0195349 | K10: ='Main calculation'!K11 -> 462.0799256 | L10: ='Main calculation'!L11 -> 471.3215241 | M10: ='Main calculation'!M11 -> 480.7479545 | N10: ='Main calculation'!N11 -> 490.3629136 | O10: ='Main calculation'!O11 -> 500.1701719 | P10: ='Main calculation'!P11 -> 510.1735753 | Q10: ='Main calculation'!Q11 -> 520.3770469 | R10: ='Main calculation'!R11 -> 530.7845878 | S10: ='Main calculation'!S11 -> 541.4002795 | T10: ='Main calculation'!T11 -> 552.2282851 | U10: ='Main calculation'!U11 -> 563.2728508 | V10: ='Main calculation'!V11 -> 574.5383079 | W10: ='Main calculation'!W11 -> 586.029074 | X10: ='Main calculation'!X11 -> 597.7496555 | Y10: ='Main calculation'!Y11 -> 609.7046486 | Z10: ='Main calculation'!Z11 -> 621.8987416 | AA10: ='Main calculation'!AA11 -> 634.3367164 | AB10: ='Main calculation'!AB11 -> 647.0234507 | AC10: ='Main calculation'!AC11 -> 659.9639198 | AD10: ='Main calculation'!AD11 -> 673.1631981 | AE10: ='Main calculation'!AE11 -> 686.6264621 | AF10: ='Main calculation'!AF11 -> 700.3589914 | AG10: ='Main calculation'!AG11 -> 714.3661712 | AH10: ='Main calculation'!AH11 -> 728.6534946 | AI10: ='Main calculation'!AI11 -> 0 | AJ10: ='Main calculation'!AJ11 -> 0 | AK10: ='Main calculation'!AK11 -> 0 | AL10: ='Main calculation'!AL11 -> 0 | AM10: ='Main calculation'!AM11 -> 0 | AN10: ='Main calculation'!AN11 -> 0 | AO10: ='Main calculation'!AO11 -> 0 | AP10: ='Main calculation'!AP11 -> 0 | AQ10: ='Main calculation'!AQ11 -> 0 | AR10: ='Main calculation'!AR11 -> 0 | AS10: ='Main calculation'!AS11 -> 0 | AT10: ='Main calculation'!AT11 -> 0 | AU10: ='Main calculation'!AU11 -> 0 | AV10: ='Main calculation'!AV11 -> 0 | AW10: ='Main calculation'!AW11 -> 0 | AX10: ='Main calculation'!AX11 -> 0 | AY10: ='Main calculation'!AY11 -> 0 | AZ10: ='Main calculation'!AZ11 -> 0 | BA10: ='Main calculation'!BA11 -> 0 | BB10: ='Main calculation'!BB11 -> 0
C11: Electricity bill (£) | E11: ='Main calculation'!E72*'Main calculation'!E87 -> 700.9130335 | F11: ='Main calculation'!F72*'Main calculation'!F87 -> 709.3239899 | G11: ='Main calculation'!G72*'Main calculation'!G87 -> 721.3824977 | H11: ='Main calculation'!H72*'Main calculation'!H87 -> 734.3673827 | I11: ='Main calculation'!I72*'Main calculation'!I87 -> 748.3203629 | J11: ='Main calculation'!J72*'Main calculation'!J87 -> 763.2867702 | K11: ='Main calculation'!K72*'Main calculation'!K87 -> 778.5525056 | L11: ='Main calculation'!L72*'Main calculation'!L87 -> 794.1235557 | M11: ='Main calculation'!M72*'Main calculation'!M87 -> 810.0060268 | N11: ='Main calculation'!N72*'Main calculation'!N87 -> 826.2061474 | O11: ='Main calculation'!O72*'Main calculation'!O87 -> 842.7302703 | P11: ='Main calculation'!P72*'Main calculation'!P87 -> 859.5848757 | Q11: ='Main calculation'!Q72*'Main calculation'!Q87 -> 876.7765732 | R11: ='Main calculation'!R72*'Main calculation'!R87 -> 894.3121047 | S11: ='Main calculation'!S72*'Main calculation'!S87 -> 912.1983468 | T11: ='Main calculation'!T72*'Main calculation'!T87 -> 930.4423137 | U11: ='Main calculation'!U72*'Main calculation'!U87 -> 949.05116 | V11: ='Main calculation'!V72*'Main calculation'!V87 -> 968.0321832 | W11: ='Main calculation'!W72*'Main calculation'!W87 -> 987.3928269 | X11: ='Main calculation'!X72*'Main calculation'!X87 -> 1007.140683 | Y11: ='Main calculation'!Y72*'Main calculation'!Y87 -> 1027.283497 | Z11: ='Main calculation'!Z72*'Main calculation'!Z87 -> 1047.829167 | AA11: ='Main calculation'!AA72*'Main calculation'!AA87 -> 1068.78575 | AB11: ='Main calculation'!AB72*'Main calculation'!AB87 -> 1090.161465 | AC11: ='Main calculation'!AC72*'Main calculation'!AC87 -> 1111.964695 | AD11: ='Main calculation'!AD72*'Main calculation'!AD87 -> 1134.203989 | AE11: ='Main calculation'!AE72*'Main calculation'!AE87 -> 1156.888068 | AF11: ='Main calculation'!AF72*'Main calculation'!AF87 -> 1180.02583 | AG11: ='Main calculation'!AG72*'Main calculation'!AG87 -> 1203.626346 | AH11: ='Main calculation'!AH72*'Main calculation'!AH87 -> 1227.698873 | AI11: ='Main calculation'!AI72*'Main calculation'!AI87 -> 0 | AJ11: ='Main calculation'!AJ72*'Main calculation'!AJ87 -> 0 | AK11: ='Main calculation'!AK72*'Main calculation'!AK87 -> 0 | AL11: ='Main calculation'!AL72*'Main calculation'!AL87 -> 0 | AM11: ='Main calculation'!AM72*'Main calculation'!AM87 -> 0 | AN11: ='Main calculation'!AN72*'Main calculation'!AN87 -> 0 | AO11: ='Main calculation'!AO72*'Main calculation'!AO87 -> 0 | AP11: ='Main calculation'!AP72*'Main calculation'!AP87 -> 0 | AQ11: ='Main calculation'!AQ72*'Main calculation'!AQ87 -> 0 | AR11: ='Main calculation'!AR72*'Main calculation'!AR87 -> 0 | AS11: ='Main calculation'!AS72*'Main calculation'!AS87 -> 0 | AT11: ='Main calculation'!AT72*'Main calculation'!AT87 -> 0 | AU11: ='Main calculation'!AU72*'Main calculation'!AU87 -> 0 | AV11: ='Main calculation'!AV72*'Main calculation'!AV87 -> 0 | AW11: ='Main calculation'!AW72*'Main calculation'!AW87 -> 0 | AX11: ='Main calculation'!AX72*'Main calculation'!AX87 -> 0 | AY11: ='Main calculation'!AY72*'Main calculation'!AY87 -> 0 | AZ11: ='Main calculation'!AZ72*'Main calculation'!AZ87 -> 0 | BA11: ='Main calculation'!BA72*'Main calculation'!BA87 -> 0 | BB11: ='Main calculation'!BB72*'Main calculation'!BB87 -> 0
C12: Gas bill (£) | E12: ='Main calculation'!E74*'Main calculation'!E87 -> 958.821366 | F12: ='Main calculation'!F74*'Main calculation'!F87 -> 970.3272224 | G12: ='Main calculation'!G74*'Main calculation'!G87 -> 986.8227852 | H12: ='Main calculation'!H74*'Main calculation'!H87 -> 1004.585595 | I12: ='Main calculation'!I74*'Main calculation'!I87 -> 1023.672722 | J12: ='Main calculation'!J74*'Main calculation'!J87 -> 1044.146176 | K12: ='Main calculation'!K74*'Main calculation'!K87 -> 1065.0291 | L12: ='Main calculation'!L74*'Main calculation'!L87 -> 1086.329682 | M12: ='Main calculation'!M74*'Main calculation'!M87 -> 1108.056275 | N12: ='Main calculation'!N74*'Main calculation'!N87 -> 1130.217401 | O12: ='Main calculation'!O74*'Main calculation'!O87 -> 1152.821749 | P12: ='Main calculation'!P74*'Main calculation'!P87 -> 1175.878184 | Q12: ='Main calculation'!Q74*'Main calculation'!Q87 -> 1199.395747 | R12: ='Main calculation'!R74*'Main calculation'!R87 -> 1223.383662 | S12: ='Main calculation'!S74*'Main calculation'!S87 -> 1247.851336 | T12: ='Main calculation'!T74*'Main calculation'!T87 -> 1272.808362 | U12: ='Main calculation'!U74*'Main calculation'!U87 -> 1298.26453 | V12: ='Main calculation'!V74*'Main calculation'!V87 -> 1324.22982 | W12: ='Main calculation'!W74*'Main calculation'!W87 -> 1350.714417 | X12: ='Main calculation'!X74*'Main calculation'!X87 -> 1377.728705 | Y12: ='Main calculation'!Y74*'Main calculation'!Y87 -> 1405.283279 | Z12: ='Main calculation'!Z74*'Main calculation'!Z87 -> 1433.388945 | AA12: ='Main calculation'!AA74*'Main calculation'!AA87 -> 1462.056723 | AB12: ='Main calculation'!AB74*'Main calculation'!AB87 -> 1491.297858 | AC12: ='Main calculation'!AC74*'Main calculation'!AC87 -> 1521.123815 | AD12: ='Main calculation'!AD74*'Main calculation'!AD87 -> 1551.546291 | AE12: ='Main calculation'!AE74*'Main calculation'!AE87 -> 1582.577217 | AF12: ='Main calculation'!AF74*'Main calculation'!AF87 -> 1614.228762 | AG12: ='Main calculation'!AG74*'Main calculation'!AG87 -> 1646.513337 | AH12: ='Main calculation'!AH74*'Main calculation'!AH87 -> 1679.443604 | AI12: ='Main calculation'!AI74*'Main calculation'!AI87 -> 0 | AJ12: ='Main calculation'!AJ74*'Main calculation'!AJ87 -> 0 | AK12: ='Main calculation'!AK74*'Main calculation'!AK87 -> 0 | AL12: ='Main calculation'!AL74*'Main calculation'!AL87 -> 0 | AM12: ='Main calculation'!AM74*'Main calculation'!AM87 -> 0 | AN12: ='Main calculation'!AN74*'Main calculation'!AN87 -> 0 | AO12: ='Main calculation'!AO74*'Main calculation'!AO87 -> 0 | AP12: ='Main calculation'!AP74*'Main calculation'!AP87 -> 0 | AQ12: ='Main calculation'!AQ74*'Main calculation'!AQ87 -> 0 | AR12: ='Main calculation'!AR74*'Main calculation'!AR87 -> 0 | AS12: ='Main calculation'!AS74*'Main calculation'!AS87 -> 0 | AT12: ='Main calculation'!AT74*'Main calculation'!AT87 -> 0 | AU12: ='Main calculation'!AU74*'Main calculation'!AU87 -> 0 | AV12: ='Main calculation'!AV74*'Main calculation'!AV87 -> 0 | AW12: ='Main calculation'!AW74*'Main calculation'!AW87 -> 0 | AX12: ='Main calculation'!AX74*'Main calculation'!AX87 -> 0 | AY12: ='Main calculation'!AY74*'Main calculation'!AY87 -> 0 | AZ12: ='Main calculation'!AZ74*'Main calculation'!AZ87 -> 0 | BA12: ='Main calculation'!BA74*'Main calculation'!BA87 -> 0 | BB12: ='Main calculation'!BB74*'Main calculation'!BB87 -> 0
C13: Water and sewage bill (£) | E13: ='Main calculation'!E75*'Main calculation'!E87 -> 393 | F13: ='Main calculation'!F75*'Main calculation'!F87 -> 397.716 | G13: ='Main calculation'!G75*'Main calculation'!G87 -> 404.477172 | H13: ='Main calculation'!H75*'Main calculation'!H87 -> 411.7577611 | I13: ='Main calculation'!I75*'Main calculation'!I87 -> 419.5811586 | J13: ='Main calculation'!J75*'Main calculation'!J87 -> 427.9727817 | K13: ='Main calculation'!K75*'Main calculation'!K87 -> 436.5322374 | L13: ='Main calculation'!L75*'Main calculation'!L87 -> 445.2628821 | M13: ='Main calculation'!M75*'Main calculation'!M87 -> 454.1681398 | N13: ='Main calculation'!N75*'Main calculation'!N87 -> 463.2515025 | O13: ='Main calculation'!O75*'Main calculation'!O87 -> 472.5165326 | P13: ='Main calculation'!P75*'Main calculation'!P87 -> 481.9668632 | Q13: ='Main calculation'!Q75*'Main calculation'!Q87 -> 491.6062005 | R13: ='Main calculation'!R75*'Main calculation'!R87 -> 501.4383245 | S13: ='Main calculation'!S75*'Main calculation'!S87 -> 511.467091 | T13: ='Main calculation'!T75*'Main calculation'!T87 -> 521.6964328 | U13: ='Main calculation'!U75*'Main calculation'!U87 -> 532.1303615 | V13: ='Main calculation'!V75*'Main calculation'!V87 -> 542.7729687 | W13: ='Main calculation'!W75*'Main calculation'!W87 -> 553.6284281 | X13: ='Main calculation'!X75*'Main calculation'!X87 -> 564.7009967 | Y13: ='Main calculation'!Y75*'Main calculation'!Y87 -> 575.9950166 | Z13: ='Main calculation'!Z75*'Main calculation'!Z87 -> 587.5149169 | AA13: ='Main calculation'!AA75*'Main calculation'!AA87 -> 599.2652153 | AB13: ='Main calculation'!AB75*'Main calculation'!AB87 -> 611.2505196 | AC13: ='Main calculation'!AC75*'Main calculation'!AC87 -> 623.47553 | AD13: ='Main calculation'!AD75*'Main calculation'!AD87 -> 635.9450406 | AE13: ='Main calculation'!AE75*'Main calculation'!AE87 -> 648.6639414 | AF13: ='Main calculation'!AF75*'Main calculation'!AF87 -> 661.6372202 | AG13: ='Main calculation'!AG75*'Main calculation'!AG87 -> 674.8699646 | AH13: ='Main calculation'!AH75*'Main calculation'!AH87 -> 688.3673639 | AI13: ='Main calculation'!AI75*'Main calculation'!AI87 -> 0 | AJ13: ='Main calculation'!AJ75*'Main calculation'!AJ87 -> 0 | AK13: ='Main calculation'!AK75*'Main calculation'!AK87 -> 0 | AL13: ='Main calculation'!AL75*'Main calculation'!AL87 -> 0 | AM13: ='Main calculation'!AM75*'Main calculation'!AM87 -> 0 | AN13: ='Main calculation'!AN75*'Main calculation'!AN87 -> 0 | AO13: ='Main calculation'!AO75*'Main calculation'!AO87 -> 0 | AP13: ='Main calculation'!AP75*'Main calculation'!AP87 -> 0 | AQ13: ='Main calculation'!AQ75*'Main calculation'!AQ87 -> 0 | AR13: ='Main calculation'!AR75*'Main calculation'!AR87 -> 0 | AS13: ='Main calculation'!AS75*'Main calculation'!AS87 -> 0 | AT13: ='Main calculation'!AT75*'Main calculation'!AT87 -> 0 | AU13: ='Main calculation'!AU75*'Main calculation'!AU87 -> 0 | AV13: ='Main calculation'!AV75*'Main calculation'!AV87 -> 0 | AW13: ='Main calculation'!AW75*'Main calculation'!AW87 -> 0 | AX13: ='Main calculation'!AX75*'Main calculation'!AX87 -> 0 | AY13: ='Main calculation'!AY75*'Main calculation'!AY87 -> 0 | AZ13: ='Main calculation'!AZ75*'Main calculation'!AZ87 -> 0 | BA13: ='Main calculation'!BA75*'Main calculation'!BA87 -> 0 | BB13: ='Main calculation'!BB75*'Main calculation'!BB87 -> 0
B14: Total cost of living | E14: =SUM(E9:E13) -> 7169.0144 | F14: =SUM(F9:F13) -> 7151.636412 | G14: 7147.575747 | H14: 7147.243266 | I14: 7150.781256 | J14: 7289.281811 | K14: 7435.067447 | L14: 7583.768796 | M14: 7735.444172 | N14: 7890.153055 | O14: 8047.956116 | P14: 8208.915239 | Q14: 8373.093544 | R14: 8540.555414 | S14: 8711.366523 | T14: 8885.593853 | U14: 9063.30573 | V14: 9244.571845 | W14: 9429.463282 | X14: 9618.052547 | Y14: 9810.413598 | Z14: 10006.62187 | AA14: 10206.75431 | AB14: 10410.88939 | AC14: 10619.10718 | AD14: 10831.48933 | AE14: 11048.11911 | AF14: 11269.08149 | AG14: 11494.46312 | AH14: 11724.35239 | AI14: 0 | AJ14: 0 | AK14: 0 | AL14: 0 | AM14: 0 | AN14: 0 | AO14: 0 | AP14: 0 | AQ14: 0 | AR14: 0 | AS14: 0 | AT14: 0 | AU14: 0 | AV14: 0 | AW14: 0 | AX14: 0 | AY14: 0 | AZ14: 0 | BA14: 0 | BB14: 0
C15: Total cost of living per month | E15: =E14/12 -> 597.4178666 | F15: =F14/12 -> 595.969701 | G15: 595.6313122 | H15: 595.6036055 | I15: 595.898438 | J15: 607.4401509 | K15: 619.5889539 | L15: 631.980733 | M15: 644.6203477 | N15: 657.5127546 | O15: 670.6630097 | P15: 684.0762699 | Q15: 697.7577953 | R15: 711.7129512 | S15: 725.9472102 | T15: 740.4661544 | U15: 755.2754775 | V15: 770.3809871 | W15: 785.7886068 | X15: 801.5043789 | Y15: 817.5344665 | Z15: 833.8851559 | AA15: 850.562859 | AB15: 867.5741162 | AC15: 884.9255985 | AD15: 902.6241104 | AE15: 920.6765927 | AF15: 939.0901245 | AG15: 957.871927 | AH15: 977.0293655 | AI15: 0 | AJ15: 0 | AK15: 0 | AL15: 0 | AM15: 0 | AN15: 0 | AO15: 0 | AP15: 0 | AQ15: 0 | AR15: 0 | AS15: 0 | AT15: 0 | AU15: 0 | AV15: 0 | AW15: 0 | AX15: 0 | AY15: 0 | AZ15: 0 | BA15: 0 | BB15: 0
A18: POST ENERGIESPRONG | E18: 1 | F18: =E18+1 -> 2 | G18: =F18+1 -> 3 | H18: 4 | I18: 5 | J18: 6 | K18: 7 | L18: 8 | M18: 9 | N18: 10 | O18: 11 | P18: 12 | Q18: 13 | R18: 14 | S18: 15 | T18: 16 | U18: 17 | V18: 18 | W18: 19 | X18: 20 | Y18: 21 | Z18: 22 | AA18: 23 | AB18: 24 | AC18: 25 | AD18: 26 | AE18: 27 | AF18: 28 | AG18: 29 | AH18: 30 | AI18: 31 | AJ18: 32 | AK18: 33 | AL18: 34 | AM18: 35 | AN18: 36 | AO18: 37 | AP18: 38 | AQ18: 39 | AR18: 40 | AS18: 41 | AT18: 42 | AU18: =AT18+1 -> 43 | AV18: =AU18+1 -> 44 | AW18: =AV18+1 -> 45 | AX18: =AW18+1 -> 46 | AY18: 47 | AZ18: =AY18+1 -> 48 | BA18: =AZ18+1 -> 49 | BB18: 50
B20: Cost to tenant
C21: Rent (£) | E21: ='Main calculation'!E32 -> 4700.28 | F21: ='Main calculation'!F32 -> 4653.2772 | G21: ='Main calculation'!G32 -> 4606.744428 | H21: ='Main calculation'!H32 -> 4560.676984 | I21: ='Main calculation'!I32 -> 4515.070214 | J21: ='Main calculation'!J32 -> 4600.856548 | K21: ='Main calculation'!K32 -> 4692.873679 | L21: ='Main calculation'!L32 -> 4786.731152 | M21: ='Main calculation'!M32 -> 4882.465776 | N21: ='Main calculation'!N32 -> 4980.115091 | O21: ='Main calculation'!O32 -> 5079.717393 | P21: ='Main calculation'!P32 -> 5181.311741 | Q21: ='Main calculation'!Q32 -> 5284.937976 | R21: ='Main calculation'!R32 -> 5390.636735 | S21: ='Main calculation'!S32 -> 5498.44947 | T21: ='Main calculation'!T32 -> 5608.418459 | U21: ='Main calculation'!U32 -> 5720.586828 | V21: ='Main calculation'!V32 -> 5834.998565 | W21: ='Main calculation'!W32 -> 5951.698536 | X21: ='Main calculation'!X32 -> 6070.732507 | Y21: ='Main calculation'!Y32 -> 6192.147157 | Z21: ='Main calculation'!Z32 -> 6315.9901 | AA21: ='Main calculation'!AA32 -> 6442.309902 | AB21: ='Main calculation'!AB32 -> 6571.1561 | AC21: ='Main calculation'!AC32 -> 6702.579222 | AD21: ='Main calculation'!AD32 -> 6836.630807 | AE21: ='Main calculation'!AE32 -> 6973.363423 | AF21: ='Main calculation'!AF32 -> 7112.830691 | AG21: ='Main calculation'!AG32 -> 7255.087305 | AH21: ='Main calculation'!AH32 -> 7400.189051 | AI21: ='Main calculation'!AI32 -> 0 | AJ21: ='Main calculation'!AJ32 -> 0 | AK21: ='Main calculation'!AK32 -> 0 | AL21: ='Main calculation'!AL32 -> 0 | AM21: ='Main calculation'!AM32 -> 0 | AN21: ='Main calculation'!AN32 -> 0 | AO21: ='Main calculation'!AO32 -> 0 | AP21: ='Main calculation'!AP32 -> 0 | AQ21: ='Main calculation'!AQ32 -> 0 | AR21: ='Main calculation'!AR32 -> 0 | AS21: ='Main calculation'!AS32 -> 0 | AT21: ='Main calculation'!AT32 -> 0 | AU21: ='Main calculation'!AU32 -> 0 | AV21: ='Main calculation'!AV32 -> 0 | AW21: ='Main calculation'!AW32 -> 0 | AX21: ='Main calculation'!AX32 -> 0 | AY21: ='Main calculation'!AY32 -> 0 | AZ21: ='Main calculation'!AZ32 -> 0 | BA21: ='Main calculation'!BA32 -> 0 | BB21: ='Main calculation'!BB32 -> 0
C22: Service charge (£) | E22: ='Main calculation'!E34 -> 416 | F22: ='Main calculation'!F34 -> 420.992 | G22: ='Main calculation'!G34 -> 428.148864 | H22: ='Main calculation'!H34 -> 435.8555436 | I22: ='Main calculation'!I34 -> 444.1367989 | J22: ='Main calculation'!J34 -> 453.0195349 | K22: ='Main calculation'!K34 -> 462.0799256 | L22: ='Main calculation'!L34 -> 471.3215241 | M22: ='Main calculation'!M34 -> 480.7479545 | N22: ='Main calculation'!N34 -> 490.3629136 | O22: ='Main calculation'!O34 -> 500.1701719 | P22: ='Main calculation'!P34 -> 510.1735753 | Q22: ='Main calculation'!Q34 -> 520.3770469 | R22: ='Main calculation'!R34 -> 530.7845878 | S22: ='Main calculation'!S34 -> 541.4002795 | T22: ='Main calculation'!T34 -> 552.2282851 | U22: ='Main calculation'!U34 -> 563.2728508 | V22: ='Main calculation'!V34 -> 574.5383079 | W22: ='Main calculation'!W34 -> 586.029074 | X22: ='Main calculation'!X34 -> 597.7496555 | Y22: ='Main calculation'!Y34 -> 609.7046486 | Z22: ='Main calculation'!Z34 -> 621.8987416 | AA22: ='Main calculation'!AA34 -> 634.3367164 | AB22: ='Main calculation'!AB34 -> 647.0234507 | AC22: ='Main calculation'!AC34 -> 659.9639198 | AD22: ='Main calculation'!AD34 -> 673.1631981 | AE22: ='Main calculation'!AE34 -> 686.6264621 | AF22: ='Main calculation'!AF34 -> 700.3589914 | AG22: ='Main calculation'!AG34 -> 714.3661712 | AH22: ='Main calculation'!AH34 -> 728.6534946 | AI22: ='Main calculation'!AI34 -> 0 | AJ22: ='Main calculation'!AJ34 -> 0 | AK22: ='Main calculation'!AK34 -> 0 | AL22: ='Main calculation'!AL34 -> 0 | AM22: ='Main calculation'!AM34 -> 0 | AN22: ='Main calculation'!AN34 -> 0 | AO22: ='Main calculation'!AO34 -> 0 | AP22: ='Main calculation'!AP34 -> 0 | AQ22: ='Main calculation'!AQ34 -> 0 | AR22: ='Main calculation'!AR34 -> 0 | AS22: ='Main calculation'!AS34 -> 0 | AT22: ='Main calculation'!AT34 -> 0 | AU22: ='Main calculation'!AU34 -> 0 | AV22: ='Main calculation'!AV34 -> 0 | AW22: ='Main calculation'!AW34 -> 0 | AX22: ='Main calculation'!AX34 -> 0 | AY22: ='Main calculation'!AY34 -> 0 | AZ22: ='Main calculation'!AZ34 -> 0 | BA22: ='Main calculation'!BA34 -> 0 | BB22: ='Main calculation'!BB34 -> 0
C23: Electricity bill (£) - standing charge only | E23: ='Main calculation'!E73*'Main calculation'!E88 -> 54 | F23: ='Main calculation'!F73*'Main calculation'!F88 -> 54.648 | G23: ='Main calculation'!G73*'Main calculation'!G88 -> 55.577016 | H23: ='Main calculation'!H73*'Main calculation'!H88 -> 56.57740229 | I23: ='Main calculation'!I73*'Main calculation'!I88 -> 57.65237293 | J23: ='Main calculation'!J73*'Main calculation'!J88 -> 58.80542039 | K23: ='Main calculation'!K73*'Main calculation'!K88 -> 59.9815288 | L23: ='Main calculation'!L73*'Main calculation'!L88 -> 61.18115937 | M23: ='Main calculation'!M73*'Main calculation'!M88 -> 62.40478256 | N23: ='Main calculation'!N73*'Main calculation'!N88 -> 63.65287821 | O23: ='Main calculation'!O73*'Main calculation'!O88 -> 64.92593578 | P23: ='Main calculation'!P73*'Main calculation'!P88 -> 66.22445449 | Q23: ='Main calculation'!Q73*'Main calculation'!Q88 -> 67.54894358 | R23: ='Main calculation'!R73*'Main calculation'!R88 -> 68.89992245 | S23: ='Main calculation'!S73*'Main calculation'!S88 -> 70.2779209 | T23: ='Main calculation'!T73*'Main calculation'!T88 -> 71.68347932 | U23: ='Main calculation'!U73*'Main calculation'!U88 -> 73.11714891 | V23: ='Main calculation'!V73*'Main calculation'!V88 -> 74.57949189 | W23: ='Main calculation'!W73*'Main calculation'!W88 -> 76.07108172 | X23: ='Main calculation'!X73*'Main calculation'!X88 -> 77.59250336 | Y23: ='Main calculation'!Y73*'Main calculation'!Y88 -> 79.14435342 | Z23: ='Main calculation'!Z73*'Main calculation'!Z88 -> 80.72724049 | AA23: ='Main calculation'!AA73*'Main calculation'!AA88 -> 82.3417853 | AB23: ='Main calculation'!AB73*'Main calculation'!AB88 -> 83.98862101 | AC23: ='Main calculation'!AC73*'Main calculation'!AC88 -> 85.66839343 | AD23: ='Main calculation'!AD73*'Main calculation'!AD88 -> 87.3817613 | AE23: ='Main calculation'!AE73*'Main calculation'!AE88 -> 89.12939652 | AF23: ='Main calculation'!AF73*'Main calculation'!AF88 -> 90.91198445 | AG23: ='Main calculation'!AG73*'Main calculation'!AG88 -> 92.73022414 | AH23: ='Main calculation'!AH73*'Main calculation'!AH88 -> 94.58482863 | AI23: ='Main calculation'!AI73*'Main calculation'!AI88 -> 0 | AJ23: ='Main calculation'!AJ73*'Main calculation'!AJ88 -> 0 | AK23: ='Main calculation'!AK73*'Main calculation'!AK88 -> 0 | AL23: ='Main calculation'!AL73*'Main calculation'!AL88 -> 0 | AM23: ='Main calculation'!AM73*'Main calculation'!AM88 -> 0 | AN23: ='Main calculation'!AN73*'Main calculation'!AN88 -> 0 | AO23: ='Main calculation'!AO73*'Main calculation'!AO88 -> 0 | AP23: ='Main calculation'!AP73*'Main calculation'!AP88 -> 0 | AQ23: ='Main calculation'!AQ73*'Main calculation'!AQ88 -> 0 | AR23: ='Main calculation'!AR73*'Main calculation'!AR88 -> 0 | AS23: ='Main calculation'!AS73*'Main calculation'!AS88 -> 0 | AT23: ='Main calculation'!AT73*'Main calculation'!AT88 -> 0 | AU23: ='Main calculation'!AU73*'Main calculation'!AU88 -> 0 | AV23: ='Main calculation'!AV73*'Main calculation'!AV88 -> 0 | AW23: ='Main calculation'!AW73*'Main calculation'!AW88 -> 0 | AX23: ='Main calculation'!AX73*'Main calculation'!AX88 -> 0 | AY23: ='Main calculation'!AY73*'Main calculation'!AY88 -> 0 | AZ23: ='Main calculation'!AZ73*'Main calculation'!AZ88 -> 0 | BA23: ='Main calculation'!BA73*'Main calculation'!BA88 -> 0 | BB23: ='Main calculation'!BB73*'Main calculation'!BB88 -> 0
C24: Water and sewage bill (£) | E24: ='Main calculation'!E75*'Main calculation'!E88 -> 393 | F24: ='Main calculation'!F75*'Main calculation'!F88 -> 397.716 | G24: ='Main calculation'!G75*'Main calculation'!G88 -> 404.477172 | H24: ='Main calculation'!H75*'Main calculation'!H88 -> 411.7577611 | I24: ='Main calculation'!I75*'Main calculation'!I88 -> 419.5811586 | J24: ='Main calculation'!J75*'Main calculation'!J88 -> 427.9727817 | K24: ='Main calculation'!K75*'Main calculation'!K88 -> 436.5322374 | L24: ='Main calculation'!L75*'Main calculation'!L88 -> 445.2628821 | M24: ='Main calculation'!M75*'Main calculation'!M88 -> 454.1681398 | N24: ='Main calculation'!N75*'Main calculation'!N88 -> 463.2515025 | O24: ='Main calculation'!O75*'Main calculation'!O88 -> 472.5165326 | P24: ='Main calculation'!P75*'Main calculation'!P88 -> 481.9668632 | Q24: ='Main calculation'!Q75*'Main calculation'!Q88 -> 491.6062005 | R24: ='Main calculation'!R75*'Main calculation'!R88 -> 501.4383245 | S24: ='Main calculation'!S75*'Main calculation'!S88 -> 511.467091 | T24: ='Main calculation'!T75*'Main calculation'!T88 -> 521.6964328 | U24: ='Main calculation'!U75*'Main calculation'!U88 -> 532.1303615 | V24: ='Main calculation'!V75*'Main calculation'!V88 -> 542.7729687 | W24: ='Main calculation'!W75*'Main calculation'!W88 -> 553.6284281 | X24: ='Main calculation'!X75*'Main calculation'!X88 -> 564.7009967 | Y24: ='Main calculation'!Y75*'Main calculation'!Y88 -> 575.9950166 | Z24: ='Main calculation'!Z75*'Main calculation'!Z88 -> 587.5149169 | AA24: ='Main calculation'!AA75*'Main calculation'!AA88 -> 599.2652153 | AB24: ='Main calculation'!AB75*'Main calculation'!AB88 -> 611.2505196 | AC24: ='Main calculation'!AC75*'Main calculation'!AC88 -> 623.47553 | AD24: ='Main calculation'!AD75*'Main calculation'!AD88 -> 635.9450406 | AE24: ='Main calculation'!AE75*'Main calculation'!AE88 -> 648.6639414 | AF24: ='Main calculation'!AF75*'Main calculation'!AF88 -> 661.6372202 | AG24: ='Main calculation'!AG75*'Main calculation'!AG88 -> 674.8699646 | AH24: ='Main calculation'!AH75*'Main calculation'!AH88 -> 688.3673639 | AI24: ='Main calculation'!AI75*'Main calculation'!AI88 -> 0 | AJ24: ='Main calculation'!AJ75*'Main calculation'!AJ88 -> 0 | AK24: ='Main calculation'!AK75*'Main calculation'!AK88 -> 0 | AL24: ='Main calculation'!AL75*'Main calculation'!AL88 -> 0 | AM24: ='Main calculation'!AM75*'Main calculation'!AM88 -> 0 | AN24: ='Main calculation'!AN75*'Main calculation'!AN88 -> 0 | AO24: ='Main calculation'!AO75*'Main calculation'!AO88 -> 0 | AP24: ='Main calculation'!AP75*'Main calculation'!AP88 -> 0 | AQ24: ='Main calculation'!AQ75*'Main calculation'!AQ88 -> 0 | AR24: ='Main calculation'!AR75*'Main calculation'!AR88 -> 0 | AS24: ='Main calculation'!AS75*'Main calculation'!AS88 -> 0 | AT24: ='Main calculation'!AT75*'Main calculation'!AT88 -> 0 | AU24: ='Main calculation'!AU75*'Main calculation'!AU88 -> 0 | AV24: ='Main calculation'!AV75*'Main calculation'!AV88 -> 0 | AW24: ='Main calculation'!AW75*'Main calculation'!AW88 -> 0 | AX24: ='Main calculation'!AX75*'Main calculation'!AX88 -> 0 | AY24: ='Main calculation'!AY75*'Main calculation'!AY88 -> 0 | AZ24: ='Main calculation'!AZ75*'Main calculation'!AZ88 -> 0 | BA24: ='Main calculation'!BA75*'Main calculation'!BA88 -> 0 | BB24: ='Main calculation'!BB75*'Main calculation'!BB88 -> 0
C25: Energy plan (£) | E25: ='Main calculation'!E35 -> 960 | F25: ='Main calculation'!F35 -> 971.52 | G25: ='Main calculation'!G35 -> 988.03584 | H25: ='Main calculation'!H35 -> 1005.820485 | I25: ='Main calculation'!I35 -> 1024.931074 | J25: ='Main calculation'!J35 -> 1045.429696 | K25: ='Main calculation'!K35 -> 1066.33829 | L25: ='Main calculation'!L35 -> 1087.665056 | M25: ='Main calculation'!M35 -> 1109.418357 | N25: ='Main calculation'!N35 -> 1131.606724 | O25: ='Main calculation'!O35 -> 1154.238858 | P25: ='Main calculation'!P35 -> 1177.323635 | Q25: ='Main calculation'!Q35 -> 1200.870108 | R25: ='Main calculation'!R35 -> 1224.88751 | S25: ='Main calculation'!S35 -> 1249.38526 | T25: ='Main calculation'!T35 -> 1274.372966 | U25: ='Main calculation'!U35 -> 1299.860425 | V25: ='Main calculation'!V35 -> 1325.857634 | W25: ='Main calculation'!W35 -> 1352.374786 | X25: ='Main calculation'!X35 -> 1379.422282 | Y25: ='Main calculation'!Y35 -> 1407.010728 | Z25: ='Main calculation'!Z35 -> 1435.150942 | AA25: ='Main calculation'!AA35 -> 1463.853961 | AB25: ='Main calculation'!AB35 -> 1493.13104 | AC25: ='Main calculation'!AC35 -> 1522.993661 | AD25: ='Main calculation'!AD35 -> 1553.453534 | AE25: ='Main calculation'!AE35 -> 1584.522605 | AF25: ='Main calculation'!AF35 -> 1616.213057 | AG25: ='Main calculation'!AG35 -> 1648.537318 | AH25: ='Main calculation'!AH35 -> 1681.508064 | AI25: ='Main calculation'!AI35 -> 0 | AJ25: ='Main calculation'!AJ35 -> 0 | AK25: ='Main calculation'!AK35 -> 0 | AL25: ='Main calculation'!AL35 -> 0 | AM25: ='Main calculation'!AM35 -> 0 | AN25: ='Main calculation'!AN35 -> 0 | AO25: ='Main calculation'!AO35 -> 0 | AP25: ='Main calculation'!AP35 -> 0 | AQ25: ='Main calculation'!AQ35 -> 0 | AR25: ='Main calculation'!AR35 -> 0 | AS25: ='Main calculation'!AS35 -> 0 | AT25: ='Main calculation'!AT35 -> 0 | AU25: ='Main calculation'!AU35 -> 0 | AV25: ='Main calculation'!AV35 -> 0 | AW25: ='Main calculation'!AW35 -> 0 | AX25: ='Main calculation'!AX35 -> 0 | AY25: ='Main calculation'!AY35 -> 0 | AZ25: ='Main calculation'!AZ35 -> 0 | BA25: ='Main calculation'!BA35 -> 0 | BB25: ='Main calculation'!BB35 -> 0
B26: Total cost of living | E26: =SUM(E21:E25) -> 6523.28 | F26: 6498.1532 | G26: 6482.98332 | H26: 6470.688176 | I26: 6461.371619 | J26: 6586.083981 | K26: 6717.80566 | L26: 6852.161774 | M26: 6989.205009 | N26: 7128.989109 | O26: 7271.568891 | P26: 7417.000269 | Q26: 7565.340275 | R26: 7716.64708 | S26: 7870.980022 | T26: 8028.399622 | U26: 8188.967615 | V26: 8352.746967 | W26: 8519.801906 | X26: 8690.197944 | Y26: 8864.001903 | Z26: 9041.281941 | AA26: 9222.10758 | AB26: 9406.549732 | AC26: 9594.680726 | AD26: 9786.574341 | AE26: 9982.305828 | AF26: 10181.95194 | AG26: 10385.59098 | AH26: 10593.3028 | AI26: 0 | AJ26: 0 | AK26: =SUM(AK21:AK25) -> 0 | AL26: 0 | AM26: 0 | AN26: 0 | AO26: 0 | AP26: 0 | AQ26: 0 | AR26: 0 | AS26: 0 | AT26: 0 | AU26: 0 | AV26: 0 | AW26: 0 | AX26: 0 | AY26: 0 | AZ26: 0 | BA26: 0 | BB26: 0
C27: Total cost of living per month | E27: =E26/12 -> 543.6066667 | F27: =F26/12 -> 541.5127667 | G27: 540.24861 | H27: 539.2240146 | I27: 538.4476349 | J27: 548.8403317 | K27: 559.8171384 | L27: 571.0134811 | M27: 582.4337508 | N27: 594.0824258 | O27: 605.9640743 | P27: 618.0833558 | Q27: 630.4450229 | R27: 643.0539233 | S27: 655.9150018 | T27: 669.0333018 | U27: 682.4139679 | V27: 696.0622472 | W27: 709.9834922 | X27: 724.183162 | Y27: 738.6668253 | Z27: 753.4401618 | AA27: 768.508965 | AB27: 783.8791443 | AC27: 799.5567272 | AD27: 815.5478617 | AE27: 831.858819 | AF27: 848.4959954 | AG27: 865.4659153 | AH27: 882.7752336 | AI27: 0 | AJ27: 0 | AK27: 0 | AL27: 0 | AM27: 0 | AN27: 0 | AO27: 0 | AP27: 0 | AQ27: 0 | AR27: 0 | AS27: 0 | AT27: 0 | AU27: 0 | AV27: 0 | AW27: 0 | AX27: 0 | AY27: 0 | AZ27: 0 | BA27: 0 | BB27: 0
B29: Savings to tenant | D29: =SUM(E29:BB29) -> 25853.41203 | E29: =E14-E26 -> 645.7343995 | F29: =F14-F26 -> 653.4832123 | G29: 664.5924269 | H29: 676.5550906 | I29: 689.4096373 | J29: 703.1978301 | K29: 717.2617867 | L29: 731.6070224 | M29: 746.2391629 | N29: 761.1639461 | O29: 776.387225 | P29: 791.9149695 | Q29: 807.7532689 | R29: 823.9083343 | S29: 840.386501 | T29: 857.194231 | U29: 874.3381156 | V29: 891.8248779 | W29: 909.6613755 | X29: 927.854603 | Y29: 946.4116951 | Z29: 965.339929 | AA29: 984.6467276 | AB29: 1004.339662 | AC29: 1024.426455 | AD29: 1044.914984 | AE29: 1065.813284 | AF29: 1087.12955 | AG29: 1108.872141 | AH29: 1131.049584 | AI29: 0 | AJ29: 0 | AK29: 0 | AL29: 0 | AM29: 0 | AN29: 0 | AO29: 0 | AP29: 0 | AQ29: 0 | AR29: 0 | AS29: 0 | AT29: 0 | AU29: 0 | AV29: 0 | AW29: 0 | AX29: 0 | AY29: 0 | AZ29: 0 | BA29: 0 | BB29: 0
C30: Monthly savings to tenant | E30: =E15-E27 -> 53.81119996 | F30: =F15-F27 -> 54.45693436 | G30: 55.38270224 | H30: 56.37959088 | I30: 57.45080311 | J30: 58.59981917 | K30: 59.77181556 | L30: 60.96725187 | M30: 62.1865969 | N30: 63.43032884 | O30: 64.69893542 | P30: 65.99291413 | Q30: 67.31277241 | R30: 68.65902786 | S30: 70.03220842 | T30: 71.43285258 | U30: 72.86150964 | V30: 74.31873983 | W30: 75.80511462 | X30: 77.32121692 | Y30: 78.86764126 | Z30: 80.44499408 | AA30: 82.05389396 | AB30: 83.69497184 | AC30: 85.36887128 | AD30: 87.0762487 | AE30: 88.81777368 | AF30: 90.59412915 | AG30: 92.40601173 | AH30: 94.25413197 | AI30: 0 | AJ30: 0 | AK30: 0 | AL30: 0 | AM30: 0 | AN30: 0 | AO30: 0 | AP30: 0 | AQ30: 0 | AR30: 0 | AS30: 0 | AT30: 0 | AU30: 0 | AV30: 0 | AW30: 0 | AX30: 0 | AY30: 0 | AZ30: 0 | BA30: 0 | BB30: 0

Sheet Parameters
B2: Workbook Parameters
B3: This sheet contains all the background data lookup tables, assumptions and source information used throughout the finance model.
B5: Archetypes
B7: Overview | W7: Performance | AI7: Energy Consumption (kWh/year) | AW7: CO2 Emissions (kgCO2/year) | BK7: Costs Breakdown (£/year)
B8: Archetype Ref | C8: Archetype Description | D8: Created on | E8: Created by | F8: Region | G8: SAP Age band | H8: Built Form | I8: Dwelling Type | J8: TFA (m2) | K8: Number of Storeys | L8: Habitable rooms | M8: Conservation Status | N8: SAP 2009 Rating | O8: SAP 2009 Rating Band | P8: Total Energy (kWh/yr) | Q8: Total Energy (kWh/m2.yr) | R8: Total CO2 (kgCO2/year) | S8: Total CO2 (kgCO2/m2.yr) | T8: Total Energy Cost (£/yr) | U8: Gas Spend (£/yr) | V8: Electricity Spend (£/yr) | W8: Assumed Occupancy Level | X8: Dwelling Heat Loss (W/oC) | Y8: Mean Internal Temp (oC) | Z8: Infiltration rate (ACH) | AA8: Window 1 U-Value (W/m2K) | AB8: Wall U-Value (W/m2K) | AC8: Roof U-Value (W/m2K) | AD8: Floor U-Value (W/m2K) | AE8: Main Heating System | AF8: Secondary Heating System | AG8: DHW System | AH8: DHW System Type | AI8: Gas | AJ8: Oil | AK8: Solid | AL8: Biomass | AM8: Electricity | AN8: Renewable | AO8: Space Heating - main | AP8: Space Heating - secondary | AQ8: Water Heating | AR8: Space Cooling | AS8: Lighting | AT8: Electrical Appliances | AU8: Cooking | AV8: Pumps and fans | AW8: Gas | AX8: Oil | AY8: Solid | AZ8: Biomass | BA8: Electricity | BB8: Renewable | BC8: Space Heating - main | BD8: Space Heating - secondary | BE8: Water Heating | BF8: Space Cooling | BG8: Lighting | BH8: Electrical Appliances | BI8: Cooking | BJ8: Pumps and fans | BK8: Space Heating - main | BL8: Space Heating - secondary | BM8: Water Heating | BN8: Space Cooling | BO8: Lighting | BP8: Electrical Appliances | BQ8: Cooking | BR8: Pumps and fans | BS8: Additional Standing Charges
B9: ESUK1_HS_3049_E_GENERIC | C9: House_Semi-detached_1930-1949 | D9: 2014-09-14 | E9: Luke Smith | F9: East Midlands | G9: 1930 - 1949 | H9: House | I9: Semi-detached | J9: 85.64 | K9: 2 | L9: 5 | M9: None | N9: 47 | O9: E | P9: 17386.49281 | Q9: =P9/J9 -> 203.0183654 | R9: 8988.816785 | S9: =R9/J9 -> 104.9604949 | T9: 1437.506579 | U9: 0 | V9: 1437.506579 | W9: 2.561220459 | X9: 248.3346805 | Y9: 18.50627371 | Z9: 1.17817556 | AA9: 2.355072464 | AB9: 0.65 | AC9: 0.13 | AD9: 0.65 | AE9: Electric storage | AF9: No secondary system | AG9: Other electric | AH9: Single Immersion | AI9: 0 | AJ9: 0 | AK9: 0 | AL9: 0 | AM9: 17390.70908 | AN9: 0 | AO9: 11369.05655 | AP9: 0 | AQ9: 2413.177547 | AR9: 4.216269384 | AS9: 459.139969 | AT9: 2635.481832 | AU9: 509.6369195 | AV9: 0 | AW9: 0 | AX9: 0 | AY9: 0 | AZ9: 0 | BA9: 8990.996596 | BB9: 0 | BC9: 5877.802234 | BD9: 0 | BE9: 1247.612792 | BF9: 2.179811272 | BG9: 237.375364 | BH9: 1362.544107 | BI9: 263.4822874 | BJ9: 0 | BK9: 726.2553321 | BL9: 0 | BM9: 251.1635191 | BN9: 0.5066269292 | BO9: 55.17025868 | BP9: 316.6794969 | BQ9: 61.23797225 | BR9: 0 | BS9: 27
B10: ESUK2_HS_3049_G_GENERIC | C10: House_Semi-detached_1930-1949 | D10: 2014-09-14 | E10: Luke Smith | F10: East Midlands | G10: 1930 - 1949 | H10: House | I10: Semi-detached | J10: 85.64 | K10: 2 | L10: 5 | M10: None | N10: 64 | O10: D | P10: 21169.38438 | Q10: =P10/J10 -> 247.1903828 | R10: 5330.841407 | S10: 62.24709723 | T10: 1060.826953 | U10: 651.5349212 | V10: 409.2920316 | W10: 2.561220459 | X10: 249.6192805 | Y10: 17.74170406 | Z10: 1.17817556 | AA10: 2.355072464 | AB10: 0.65 | AC10: 0.16 | AD10: 0.65 | AE10: Gas Standard | AF10: No secondary system | AG10: Gas Standard | AH10: 0 | AI10: 17597.90068 | AJ10: 0 | AK10: 0 | AL10: 0 | AM10: 3582.043783 | AN10: 0 | AO10: 12199.09296 | AP10: 0 | AQ10: 5029.08003 | AR10: 10.56008666 | AS10: 550.9679628 | AT10: 2635.481832 | AU10: 579.7615913 | AV10: 175 | AW10: 3484.384335 | AX10: 0 | AY10: 0 | AZ10: 0 | BA10: 1851.916636 | BB10: 0 | BC10: 2415.420407 | BD10: 0 | BE10: 995.7578459 | BF10: 5.459564801 | BG10: 284.8504368 | BH10: 1362.544107 | BI10: 181.7936097 | BJ10: 90.475 | BK10: 378.1718819 | BL10: 0 | BM10: 155.9014809 | BN10: 1.210185931 | BO10: 63.14092854 | BP10: 302.026218 | BQ10: 35.53144351 | BR10: 20.055 | BS10: 106
B11: ESUK3_HM_0029_G_GENERIC | C11: House_Mid-terrace_1900-1929 | D11: 2014-09-14 | E11: Luke Smith | F11: East Midlands | G11: 1900 - 1929 | H11: House | I11: Mid-terrace | J11: 68 | K11: 2 | L11: 4 | M11: None | N11: 63 | O11: D | P11: 18004.9336 | Q11: 264.7784353 | R11: 4531.098753 | S11: 66.63380519 | T11: 917.3435086 | U11: 570.2664873 | V11: 347.0770212 | W11: 2.196606716 | X11: 273.9246104 | Y11: 16.91792709 | Z11: 1.059117647 | AA11: 2.758007117 | AB11: 2.1 | AC11: 0.16 | AD11: 0.6 | AE11: Gas - combi | AF11: No secondary system | AG11: Gas - combi (instantaneous) | AH11: 0 | AI11: 14976.3383 | AJ11: 0 | AK11: 0 | AL11: 0 | AM11: 3028.595299 | AN11: 0 | AO11: 12398.64148 | AP11: 0 | AQ11: 2226.199821 | AR11: 0 | AS11: 454.8117758 | AT11: 2198.877781 | AU11: 551.4027446 | AV11: 175 | AW11: 2965.314984 | AX11: 0 | AY11: 0 | AZ11: 0 | BA11: 1565.783769 | BB11: 0 | BC11: 2454.931013 | BD11: 0 | BE11: 440.7875646 | BF11: 0 | BG11: 235.1376881 | BH11: 1136.819813 | BI11: 172.9476752 | BJ11: 90.475 | BK11: 384.3578858 | BL11: 0 | BM11: 69.01219446 | BN11: 0 | BO11: 52.12142951 | BP11: 251.9913937 | BQ11: 33.80560512 | BR11: 20.055 | BS11: 106
B12: ESUK4_BS_5066_G_GENERIC | C12: Bungalow_Semi-detached_1950-1966 | D12: 2014-09-14 | E12: Luke Smith | F12: East Midlands | G12: 1950 - 1966 | H12: Bungalow | I12: Semi-detached | J12: 47.33 | K12: 1 | L12: 4 | M12: None | N12: 63 | O12: D | P12: 13933.80114 | Q12: 294.3968126 | R12: 3490.029337 | S12: 73.73820699 | T12: 729.556077 | U12: 466.8969323 | V12: 262.6591446 | W12: 1.611874828 | X12: 173.7186518 | Y12: 17.71425286 | Z12: 1.379625731 | AA12: 2.355072464 | AB12: 0.65 | AC12: 0.16 | AD12: 0.72 | AE12: Gas - combi | AF12: No secondary system | AG12: Gas - combi (instantaneous) | AH12: 0 | AI12: 11641.83653 | AJ12: 0 | AK12: 0 | AL12: 0 | AM12: 2291.964613 | AN12: 0 | AO12: 9345.60713 | AP12: 0 | AQ12: 1973.968989 | AR12: 0 | AS12: 331.3487518 | AT12: 1601.952671 | AU12: 505.9235977 | AV12: 175 | AW12: 2305.083632 | AX12: 0 | AY12: 0 | AZ12: 0 | BA12: 1184.945705 | BB12: 0 | BC12: 1850.430212 | BD12: 0 | BE12: 390.8458597 | BF12: 0 | BG12: 171.3073047 | BH12: 828.2095311 | BI12: 158.7614299 | BJ12: 90.475 | BK12: 289.713821 | BL12: 0 | BM12: 61.19303865 | BN12: 0 | BO12: 37.97256696 | BP12: 183.5837761 | BQ12: 31.03787418 | BR12: 20.055 | BS12: 106
B13: ESUK5_FE_5066_E_GENERIC | C13: Flat_Enclosed mid-terrace_1950-1966 | D13: 2014-09-14 | E13: Luke Smith | F13: East Midlands | G13: 1950 - 1966 | H13: Flat | I13: Flat – purpose built | J13: 48.9 | K13: 1 | L13: 4 | M13: None | N13: 61 | O13: D | P13: 8955.643322 | Q13: 183.1419902 | R13: 4630.067597 | S13: 94.68440895 | T13: 815.8835935 | U13: 0 | V13: 815.8835935 | W13: 1.657766866 | X13: 112.8397554 | Y13: 19.29792166 | Z13: 0.9454323074 | AA13: 2.758007117 | AB13: 2 | AC13: 0 | AD13: 0.36 | AE13: Electric storage | AF13: No secondary system | AG13: Other electric | AH13: Single Immersion | AI13: 0 | AJ13: 0 | AK13: 0 | AL13: 0 | AM13: 8964.577301 | AN13: 0 | AO13: 4515.82535 | AP13: 0 | AQ13: 2056.956303 | AR13: 8.933978594 | AS13: 284.9969199 | AT13: 1648.458069 | AU13: 449.40668 | AV13: 0 | AW13: 0 | AX13: 0 | AY13: 0 | AZ13: 0 | BA13: 4634.686464 | BB13: 0 | BC13: 2334.681706 | BD13: 0 | BE13: 1063.446409 | BF13: 4.618866933 | BG13: 147.3434076 | BH13: 852.2528218 | BI13: 232.3432535 | BJ13: 0 | BK13: 288.4709233 | BL13: 0 | BM13: 214.088012 | BN13: 1.073506868 | BO13: 34.2452299 | BP13: 198.0787216 | BQ13: 54.00070666 | BR13: 0 | BS13: 27
B14: GLA1_SD_3049_Gas | C14: House_Semi-detached_1930-1949_Gas | D14: 27/112015 | E14: Luke Smith | F14: London | G14: 1930-1949 | H14: House | I14: Semi-detached house | J14: 121 | K14: 2 | O14: E | P14: 29008.63414 | Q14: 239.740778 | R14: 7751.95026 | S14: 64.06570463 | T14: 1659.7344 | U14: 958.821366 | V14: 700.9130335 | AI14: 24104.06224 | AM14: 4904.571899 | AR14: 0 | AW14: 5206.477444 | BA14: 2545.472816
B15: GLA2_ET_3049_Gas | C15: House_End-Terrace_1930-1949_Gas | D15: 27/112016 | E15: Luke Smith | F15: London | G15: 1930-1949 | H15: House | I15: End terrace house | J15: 77 | K15: 2 | O15: D | P15: 20373.79018 | Q15: 264.5946777 | R15: 5557.298136 | S15: =R15/J15 -> 72.17270306 | T15: 1253.641308 | U15: 696.1753272 | V15: 557.4659811 | AI15: 16556.76228 | AM15: 3817.027908 | AR15: 0 | AW15: 3576.260651 | BA15: 1981.037484
B16: GLA3_MT_Pre30_Gas | C16: House_Mid-Terrace_Pre 1930_Gas | D16: 27/112017 | E16: Luke Smith | F16: London | G16: before 1930 | H16: House | I16: Mid terrace house | J16: 77 | K16: 2 | O16: D | P16: 18738.93457 | Q16: 243.3627867 | R16: 5111.759372 | S16: 66.38648535 | T16: 1167.134451 | U16: 649.8957722 | V16: 517.2386785 | AI16: 15226.89001 | AM16: 3512.044568 | AR16: 0 | AW16: 3289.008241 | BA16: 1822.751131
B17: GLA4_MT_3049_Gas | C17: House_Mid-Terrace_1930-1949_Gas | D17: 27/112018 | E17: Luke Smith | F17: London | G17: 1930-1949 | H17: House | I17: Mid terrace house | J17: 77 | K17: 2 | O17: D | P17: 18697.78796 | Q17: 242.8284151 | R17: 5140.138019 | S17: 66.75503921 | T17: 1177.644988 | U17: 644.1837786 | V17: 533.4612096 | AI17: 15062.75226 | AM17: 3635.035706 | AR17: 0 | AW17: 3253.554488 | BA17: 1886.583531
B18: GLA5_Flat_Pre30_Gas | C18: Flat_Enclosed Mid-Terrace_Pre 1930_Gas | D18: 27/112019 | E18: Luke Smith | F18: London | G18: before 1930 | H18: Flat | I18: Flat – converted | J18: 42 | K18: 1 | O18: D | P18: 15874.42763 | Q18: 377.9625625 | R18: 4409.208658 | S18: 104.9811585 | T18: 1040.589373 | U18: 559.8374618 | V18: 480.7519115 | AI18: 12639.00752 | AM18: 3235.420103 | AR18: 0 | AW18: 2730.025625 | BA18: 1679.183033
B19: GLA6_Flat_6782_Gas | C19: Flat_Enclosed Mid-Terrace_1967-1982_Gas | D19: 27/112020 | E19: Luke Smith | F19: London | G19: 1967-1982 | H19: Flat | I19: Flat – purpose built | J19: 42 | K19: 1 | O19: C | P19: 9347.736783 | Q19: 222.5651615 | R19: 2642.777821 | S19: 62.92328144 | T19: 699.162739 | U19: 373.6721961 | V19: 325.4905429 | AI19: 7289.430923 | AM19: 2058.30586 | AR19: 0 | AW19: 1574.517079 | BA19: 1068.260741
B20: GLA7_Flat_Pre30_Elec | C20: Flat_Enclosed Mid-Terrace_Pre 1930_Electric | D20: 27/112021 | E20: Luke Smith | F20: London | G20: before 1930 | H20: Flat | I20: Flat – converted | J20: 42 | K20: 1 | O20: E | P20: 6064.202537 | Q20: 144.3857747 | R20: 3147.321117 | S20: 74.93621706 | T20: 853.8683146 | U20: 0 | V20: 853.8683146 | AI20: 0 | AM20: 6064.202537 | AR20: 0 | AW20: 0 | BA20: 3147.321117
B21: GLA8_Flat_6782_Elec | C21: Flat_Enclosed Mid-Terrace_1967-1982_Electric | D21: 27/112022 | E21: Luke Smith | F21: London | G21: 1967-1982 | H21: Flat | I21: Flat – purpose built | J21: 42 | K21: 1 | O21: D | P21: 5706.938835 | Q21: 135.8794961 | R21: 2961.901256 | S21: =R21/J21 -> 70.52145847 | T21: 806.7452324 | U21: 0 | V21: 806.7452324 | AI21: 0 | AM21: 5706.938835 | AR21: 0 | AW21: 0 | BA21: 2961.901256
B22: User1
B23: User2
B24: User3
B25: User4
B26: User5
B27: User6
B28: User7
B29: User8
B30: User9
B31: User10
B32: User11
B33: User12
J35: =AVERAGE(J9:J33) -> 65.80846154 | K35: =AVERAGE(K9:K33) -> 1.538461538 | L35: =AVERAGE(L9:L33) -> 4.4 | N35: =AVERAGE(N9:N33) -> 59.6 | P35: =AVERAGE(P9:P33) -> 15635.59292 | Q35: =AVERAGE(Q9:Q33) -> 235.6804337 | R35: =AVERAGE(R9:R33) -> 4899.477578 | S35: =AVERAGE(S9:S33) -> 75.769697 | T35: =AVERAGE(T9:T33) -> 1047.664424 | U35: =AVERAGE(U9:U33) -> 428.5603264 | V35: 619.104098 | W35: =AVERAGE(W9:W33) -> 2.117737866 | X35: 211.6873957 | Y35: 18.03561588 | Z35: 1.148105361 | AA35: 2.516246325 | AB35: 1.21 | AC35: 0.122 | AD35: 0.596 | AI35: =AVERAGE(AI9:AI33) -> 10391.9216 | AJ35: 0 | AK35: 0 | AL35: 0 | AM35: 5245.495192 | AN35: 0 | AO35: 9965.644693 | AP35: 0 | AQ35: 2739.876538 | AR35: 1.823871895 | AS35: 416.2530759 | AT35: 2144.050437 | AU35: 519.2263066 | AV35: 105 | AW35: 2183.432806 | AX35: 0 | AY35: 0 | AZ35: 0 | BA35: 2716.987714 | BB35: 0 | BC35: 2986.653114 | BD35: 0 | BE35: 827.6900942 | BF35: 2.451648601 | BG35: 215.2028402 | BH35: 1108.474076 | BI35: 201.8656511 | BJ35: 54.285 | BK35: 413.3939688 | BL35: 0 | BM35: 150.271649 | BN35: 0.5580639456 | BO35: 48.53008272 | BP35: 250.4719213 | BQ35: 43.12272035 | BR35: 12.033 | BS35: 74.4
B37: Data source: DCLG (last updated 11 December 2014) | C37: https://www.gov.uk/government/uploads/system/uploads/attachment_data/file/385119/LT_702.xlsx
B38: T702 and T704 | C38: https://www.gov.uk/government/uploads/system/uploads/attachment_data/file/385120/LT_704.xlsx
B39: Rents, Lettings and Tenancies
B40: Average weekly rents by district (£) | D40: LA | E40: HA
C41: Barking and Dagenham | D41: 90.39 | E41: 120.92
C42: Barnet | D42: 98.62 | E42: 123.29
C43: Bexley | D43: LSVT | E43: 106.35
C44: Brent | D44: 112.81 | E44: 118.15
C45: Bromley | D45: LSVT | E45: 111.69
C46: Camden | D46: 103.96 | E46: 127.14
C47: City of London | D47: 95.18 | E47: 115.56
C48: Croydon | D48: 104.99 | E48: 118.44
C49: Ealing | D49: 91.95 | E49: 120.94
C50: Enfield | D50: 96.1 | E50: 120.11
C51: Greenwich | D51: 97.46 | E51: 111.15
C52: Hackney | D52: 99.45 | E52: 115.58
C53: Hammersmith and Fulham | D53: 99.31 | E53: 121.13
C54: Haringey | D54: 98.28 | E54: 113.88
C55: Harrow | D55: 108.79 | E55: 125.88
C56: Havering | D56: 85.72 | E56: 110.47
C57: Hillingdon | D57: 104.53 | E57: 119.76
C58: Hounslow | D58: 95.92 | E58: 118.07
C59: Islington | D59: 105.84 | E59: 118.8
C60: Kensington and Chelsea | D60: 111.87 | E60: 118.05
C61: Kingston upon Thames | D61: 107.6 | E61: 124.45
C62: Lambeth | D62: 102.12 | E62: 111.51
C63: Lewisham | D63: 95.91 | E63: 103.94
C64: Merton | D64: LSVT | E64: 109.76
C65: Newham | D65: 100.0412518 | E65: 128.89
C66: Redbridge | D66: 102.82 | E66: 124.95
C67: Richmond upon Thames | D67: LSVT | E67: 114.08
C68: Southwark | D68: 96.46 | E68: 116.32
C69: Sutton | D69: 99.41 | E69: 114.68
C70: Tower Hamlets | D70: 103.56 | E70: 115.73
C71: Waltham Forest | D71: 96.47 | E71: 117.86
C72: Wandsworth | D72: 130.83 | E72: 121.88
C73: Westminster | D73: 117.92 | E73: 122.03
C74: LSVT: all or most of the local authority's stock has been transferred to the Private Registered Provider sector
C76: Cost of borrowing | D76: LAs | E76: RPs
D77: 0.028 | E77: 0.042
B81: Dropdown Selections
B83: Yes
B84: No
B86: Prepaid
B87: Consumption
B89: Metered
B90: Unmetered
